Department family,Entity,Date,Expense Type,Expense Area, Supplier,Transaction number, Amount, Invoice Description
DFID,DFID,01/11/2012,Aid Programme - Voluntary contributions ,West and Southern Africa , USAID ,202637-102 ,"4,000,000.00",
DFID,DFID,01/11/2012,Aid Programme - Accountable Grant Payments ,Policy Division ,BBC Media Action ,202629-101 ,"3,600,000.00",
DFID,DFID,01/11/2012,Operating Lease rental of buildings ,Human Resources Security & Facilities Division ,LLOYDS TSB LEASING LTD ,100157-101 ,"2,405,218.12",Rent for Chatham House Nov 2012 
DFID,DFID,01/11/2012,Aid Programme - Accountable Grant Payments ,East and Central Africa ,GHANA CENTER FOR DEMOCRATIC DEVELOPMENT US DOLLAR ACCOUNT ,202501-102 ,"1,038,872.85",
DFID,DFID,01/11/2012,Aid Programme - Partnership Programme Arrangements ,Policy Division ,PLAN INTERNATIONAL UK ,202755-101 ,"1,025,263.75",
DFID,DFID,01/11/2012,Aid Programme - Voluntary contributions ,Policy Division ,IBRD (HSBC)  C/O THE WORLD BANK ,201656-101 ,"1,000,000.00",
DFID,DFID,01/11/2012,Aid Programme - Voluntary contributions ,Research and Evidence Division ,International Monetary Fund (GBP) ,200829-102 ,"500,000.00",
DFID,DFID,01/11/2012,Technical and Advisory Services ,West and Southern Africa ,Crown Agents Bank ,200469-110 ,"484,875.47",
DFID,DFID,01/11/2012,Technical and Advisory Services ,West and Southern Africa ,ADAM SMITH INTERNATIONAL  LTD ,104190-102 ,"436,399.22",
DFID,DFID,01/11/2012,Aid Programme - Accountable Grant Payments ,Western Asia and Stabilisation Division ,Supplier Name withheld ,201023-111 ,"363,769.00",
DFID,DFID,01/11/2012,Technical and Advisory Services ,Policy Division ,PRICEWATERHOUSECOOPERS ,202372-102 ,"343,896.36",
DFID,DFID,01/11/2012,Technical and Advisory Services ,Policy Division ,IMPERIAL COLLEGE LONDON ,200706-101 ,"301,158.58",
DFID,DFID,01/11/2012,Technical and Advisory Services ,West and Southern Africa ,RE-ACTION ,200546-101 ,"288,627.00",
DFID,DFID,01/11/2012,Aid Programme - Core contributions ,International Finance Division ,AIDSPAN ORG ,200227-104 ,"224,216.85",
DFID,DFID,01/11/2012,Aid Programme - Accountable Grant Payments ,West and Southern Africa ,HivosGBP ,202351-102 ,"206,720.00",
DFID,DFID,01/11/2012,Aid Programme - Accountable Grant Payments ,International Finance Division ,FSD Kenya ,201394-102 ,"201,705.00",
DFID,DFID,01/11/2012,Aid Programme - Accountable Grant Payments ,Policy Division ,Sightsavers ,203145-102 ,"161,313.00",
DFID,DFID,01/11/2012,Technical and Advisory Services ,East and Central Africa ,ADAM SMITH INTERNATIONAL  LTD ,200294-104 ,"152,211.05",
DFID,DFID,01/11/2012,Technical and Advisory Services ,Asia  Caribbean and Overseas Territories ,INFRASTRUCTURE PROFESSIONALS ENTERPRISE ,114040-101 ,"140,405.06",
DFID,DFID,01/11/2012,Technical and Advisory Services ,West and Southern Africa ,GRM INTERNATIONAL LTD ,202370-102 ,"129,435.77",
DFID,DFID,01/11/2012,Technical and Advisory Services ,Western Asia and Stabilisation Division ,Supplier Name withheld ,200898-103 ,"111,845.12",
DFID,DFID,01/11/2012,Other Building Products ,Human Resources Security & Facilities Division ,ISG Fit Out Ltd ,203156-101 ,"105,785.60",
DFID,DFID,01/11/2012,Aid Programme - Accountable Grant Payments ,Middle East & North Africa Division (MENAD) ,CHF INTERNATIONAL ,114325-103 ,"88,083.73",
DFID,DFID,01/11/2012,Aid Programme - Accountable Grant Payments ,East and Central Africa , THE RESEARCH FOUNDATION ,201913-110 ,"83,601.12",
DFID,DFID,01/11/2012,Technical and Advisory Services ,International Relations Division ,COFFEY INTERNATIONAL DEVELOPMENT LTD ,200857-101 ,"67,502.16",
DFID,DFID,01/11/2012,Computer software maintenance ,Business Solutions Division Level ,Unit 4 ,200002-107 ,"62,365.61",HR Databases Annual Maintenance Support 2012/13 
DFID,DFID,01/11/2012,Aid Programme - Accountable Grant Payments ,East and Central Africa ,FSD Kenya ,201394-105 ,"60,000.00",
DFID,DFID,01/11/2012,Aid Programme - Accountable Grant Payments ,Policy Division ,Global Canopy Programme ,201724-114 ,"58,269.51",
DFID,DFID,01/11/2012,Technical and Advisory Services ,West and Southern Africa ,Crown Agents Bank ,200469-110 ,"50,518.45",
DFID,DFID,01/11/2012,Hostile Environment Training ,Western Asia and Stabilisation Division ,GroundTruth Consulting ,202288-102 ,"49,764.00",Hostile environment training for October 2012
DFID,DFID,01/11/2012,Technical and Advisory Services ,East and Central Africa ,RSM Tenon Limited ,200250-111 ,"40,824.00",
DFID,DFID,01/11/2012,Aid Programme - Accountable Grant Payments ,Policy Division ,Institute of Development Studies. ,201692-101 ,"38,295.00",
DFID,DFID,01/11/2012,Technical and Advisory Services ,Policy Division ,COFFEY INTERNATIONAL DEVELOPMENT LTD ,202372-104 ,"36,957.54",
DFID,DFID,01/11/2012,Technical and Advisory Services ,Middle East & North Africa Division (MENAD) ,MINISTRY OF DEFENCE ,202398-101 ,"31,629.02",Staff Secondment costs 
DFID,DFID,01/11/2012,Technical and Advisory Services ,Conflict Humanitarian and Security Division ,THE HALO TRUST ,201745-106 ,"29,050.00",
DFID,DFID,01/11/2012,Repairs  Maint  Alter - Property & Constrct. Services ,Middle East & North Africa Division (MENAD) ,TURNER & TOWNSEND ,100302-101 ,"25,622.08",
DFID,DFID,01/11/2012,Technical and Advisory Services ,Conflict Humanitarian and Security Division ,THE HALO TRUST ,201745-106 ,"24,600.00",
DFID,DFID,01/11/2012,Technical and Advisory Services ,Policy Division ,PRICEWATERHOUSECOOPERS ,202372-102 ,"24,564.00",
DFID,DFID,01/11/2012,Technical and Advisory Services ,Policy Division ,HLSP LTD ,202860-101 ,"23,214.13",
DFID,DFID,01/11/2012,Technical and Advisory Services ,Asia  Caribbean and Overseas Territories ,SIDBI MUMBAI ,114293-103 ,"18,241.62",
DFID,DFID,01/11/2012,Technical and Advisory Services ,Conflict Humanitarian and Security Division ,THE HALO TRUST ,201745-106 ,"17,200.00",
DFID,DFID,01/11/2012,Technical and Advisory Services ,Conflict Humanitarian and Security Division ,THE HALO TRUST ,201745-106 ,"17,200.00",
DFID,DFID,01/11/2012,Technical and Advisory Services ,Conflict Humanitarian and Security Division ,THE HALO TRUST ,201745-106 ,"15,687.00",
DFID,DFID,01/11/2012,Hostile Environment Training ,Western Asia and Stabilisation Division ,GroundTruth Consulting ,202288-102 ,"13,612.80",
DFID,DFID,01/11/2012,Technical and Advisory Services ,Western Asia and Stabilisation Division ,REPIM ,108715-101 ,"13,180.00",
DFID,DFID,01/11/2012,Technical and Advisory Services ,Asia  Caribbean and Overseas Territories ,QUADRA LTD ,114186-101 ,"10,594.22",
DFID,DFID,01/11/2012,Technical and Advisory Services ,Asia  Caribbean and Overseas Territories ,GARTH ARMSTRONG ,202083-102 ,"8,121.98",
DFID,DFID,01/11/2012,Storage & Distribution costs ,East and Central Africa ,CROWN RELOCATIONS  UK ,202586-101 ,"7,794.50",
DFID,DFID,01/11/2012,Technical and Advisory Services ,Research and Evidence Division ,Burt Perrin ,203069-103 ,"7,670.44",
DFID,DFID,01/11/2012,Technical and Advisory Services ,West and Southern Africa ,Ignatius Peprah (Ghana) ,202490-101 ,"7,590.62",
DFID,DFID,01/11/2012,Training - Course Fees ,Conflict Humanitarian and Security Division ,LONDON BUSINESS SCHOOL ,202410-101 ,"7,300.00",
DFID,DFID,01/11/2012,Technical and Advisory Services ,West and Southern Africa ,RE-ACTION ,200546-101 ,"6,762.00",
DFID,DFID,01/11/2012,Hotels - Accommodation only ,International Relations Division ,Bridgestreet Corporate Housing ,100240-102 ,"4,550.04",
DFID,DFID,01/11/2012,Technical and Advisory Services ,East and Central Africa ,Demissie Fantaye Biftu ,201312-101 ,"3,382.44",
DFID,DFID,01/11/2012,Technical and Advisory Services ,Research and Evidence Division ,HTSPE LTD ,202242-108 ,"3,325.73",
DFID,DFID,01/11/2012,Technical and Advisory Services ,East and Central Africa ,HTSPE LTD ,203153-102 ,"2,851.20",
DFID,DFID,01/11/2012,Relocation costs ,East and Central Africa ,CROWN RELOCATIONS  UK ,101628-101 ,"2,284.60",
DFID,DFID,01/11/2012,Training - Course Fees ,Internal Audit ,Matthew Leitch Associates Limited ,100121-101 ,"1,468.38",
DFID,DFID,01/11/2012,Contract & Agency Staff ,Finance and Corporate Performance Division ,Hays Specialist Recruitment Ltd ,100201-101 ,"1,165.50",
DFID,DFID,01/11/2012,Contract & Agency Staff ,Finance and Corporate Performance Division ,MICHAEL PAGE INTERNATIONAL RECRUITMENT LIMITED ,100201-101 ,"1,150.02",
DFID,DFID,01/11/2012,Postage Costs ,Human Resources Security & Facilities Division ,Royal Mail Courier Services Ltd ,201157-101 ,"1,125.00",
DFID,DFID,01/11/2012,Air fares ,Human Resources Security & Facilities Division ,David Hoyle ,100269-128 ,"1,012.29",
DFID,DFID,01/11/2012,Technical and Advisory Services ,Asia  Caribbean and Overseas Territories ,HAREWELLE INTERNATIONAL LIMITED ,114320-112 ,915.00,
DFID,DFID,01/11/2012,Travel documentation costs ,West and Southern Africa ,Supplier Name withheld ,101622-101 ,857.93,
DFID,DFID,01/11/2012,Conference Travel & Subsistence ,West and Southern Africa ,Recipient name withheld ,101622-101 ,818.18,
DFID,DFID,01/11/2012,Contract & Agency Staff ,Finance and Corporate Performance Division ,Hays Specialist Recruitment Ltd ,100201-101 ,678.10,
DFID,DFID,01/11/2012,Other Building Costs ,Human Resources Security & Facilities Division ,MITIE Technical Facilities Management Ltd ,100187-101 ,620.62,
DFID,DFID,01/11/2012,Other Building Costs ,Human Resources Security & Facilities Division ,MITIE Technical Facilities Management Ltd ,100187-101 ,583.00,
DFID,DFID,01/11/2012,Training - Travel & Subsistence ,East and Central Africa ,The Express Travel Group ,101612-101 ,558.66,
DFID,DFID,01/11/2012,Technical and Advisory Services ,Asia  Caribbean and Overseas Territories ,DEREK TAYLOR ,202083-101 ,550.70,
DFID,DFID,01/11/2012,Hotels - Accommodation only ,International Relations Division ,Bridgestreet Corporate Housing ,100240-102 ,537.42,
DFID,DFID,02/11/2012,Aid Programme - Other Financial Aid to Government ,Asia  Caribbean and Overseas Territories , The Government of India ,108027-102 ,"1,171,533.94",
DFID,DFID,02/11/2012,Contraceptives ,East and Central Africa ,DKT International ,202980-103 ,"1,000,000.00",
DFID,DFID,02/11/2012,Technical and Advisory Services ,East and Central Africa ,ATOS CONSULTING LIMITED ,203542-102 ,"372,972.65",
DFID,DFID,02/11/2012,Aid Programme - Accountable Grant Payments ,Policy Division ,Disability Rights Fund Inc. ,114012-104 ,"259,359.00",
DFID,DFID,02/11/2012,Aid Programme - Accountable Grant Payments ,West and Southern Africa ,Health Reform Foundation of Nigeria ,201160-101 ,"231,013.00",
DFID,DFID,02/11/2012,Technical and Advisory Services ,West and Southern Africa ,HLSP LIMITED ,200325-101 ,"223,308.93",
DFID,DFID,02/11/2012,Technical and Advisory Services ,West and Southern Africa ,HLSP LIMITED ,200325-101 ,"198,333.23",
DFID,DFID,02/11/2012,Technical and Advisory Services ,Western Asia and Stabilisation Division ,Supplier Name withheld ,200898-103 ,"156,084.13",
DFID,DFID,02/11/2012,Aid Programme - Accountable Grant Payments ,Asia  Caribbean and Overseas Territories ,Education Support Organization ,114487-104 ,"127,365.51",
DFID,DFID,02/11/2012,Aid Programme - Accountable Grant Payments ,Policy Division ,Freshwater Action Network Global  ,200769-101 ,"107,119.00",
DFID,DFID,02/11/2012,Aid Programme - Accountable Grant Payments ,Policy Division ,WELL GROUNDED LTD ,201724-108 ,"98,991.00",
DFID,DFID,02/11/2012,Technical and Advisory Services ,Research and Evidence Division ,GRM INTERNATIONAL LTD ,202242-103 ,"89,787.50",
DFID,DFID,02/11/2012,Technical and Advisory Services ,Western Asia and Stabilisation Division ,GRM INTERNATIONAL LTD ,110182-101 ,"82,819.45",
DFID,DFID,02/11/2012,Technical and Advisory Services ,East and Central Africa ,COFFEY INTERNATIONAL DEVELOPMENT LTD ,201462-102 ,"73,794.01",
DFID,DFID,02/11/2012,Aid Programme - Accountable Grant Payments ,Research and Evidence Division ,International Union Against Tuberculosis and Lung Disease ,202506-102 ,"72,836.27",
DFID,DFID,02/11/2012,Other shared service charges ,Asia  Caribbean and Overseas Territories ,FOREIGN AND COMMONWEALTH OFFICE (FCO) ,202403-101 ,"56,795.85",Secure staff accomodation rental period 1 premises for 9 months (April - Dec 2012)  and 1 premises for 3 months (Oct-Dec 2012)
DFID,DFID,02/11/2012,Research & Development costs ,Research and Evidence Division ,CENTRE FOR ECONOMIC POLICY RESEARCH ,202835-101 ,"48,192.00",
DFID,DFID,02/11/2012,Technical and Advisory Services ,West and Southern Africa ,CHARLES KENDALL & PARTNERS LIMITED (PROCUREMENT) ,113961-106 ,"43,818.25",
DFID,DFID,02/11/2012,Technical and Advisory Services ,West and Southern Africa ,CHARLES KENDALL & PARTNERS LIMITED (PROCUREMENT) ,113961-106 ,"23,625.00",
DFID,DFID,02/11/2012,Technical and Advisory Services ,West and Southern Africa ,Trend Projects ,100221-106 ,"23,173.50",
DFID,DFID,02/11/2012,Technical and Advisory Services ,Policy Division ,RSM Tenon Limited ,114143-101 ,"19,636.55",
DFID,DFID,02/11/2012,Contract & Agency Staff ,Business Solutions Division Level ,OPIN SYSTEMS LIMITED ,200001-101 ,"18,000.00",
DFID,DFID,02/11/2012,Technical and Advisory Services ,Western Asia and Stabilisation Division ,Supplier Name withheld ,202190-105 ,"16,457.81",
DFID,DFID,02/11/2012,Technical and Advisory Services ,East and Central Africa ,JHughesDevelopment  Inc ,203109-101 ,"15,062.82",
DFID,DFID,02/11/2012,Technical and Advisory Services ,Western Asia and Stabilisation Division ,Supplier Name withheld ,201023-109 ,"14,858.25",
DFID,DFID,02/11/2012,Technical and Advisory Services ,Asia  Caribbean and Overseas Territories ,GRM INTERNATIONAL LTD ,113537-104 ,"14,093.50",
DFID,DFID,02/11/2012,Technical and Advisory Services ,West and Southern Africa ,CHARLES KENDALL & PARTNERS LIMITED (PROCUREMENT) ,113961-106 ,"9,481.90",
DFID,DFID,02/11/2012,Hardware -monitors ,East and Central Africa ,MISCO ,100082-101 ,"6,134.80",
DFID,DFID,02/11/2012,Technical and Advisory Services ,Asia  Caribbean and Overseas Territories ,Foreign & Commonwealth Office ,201942-101 ,"5,911.61",
DFID,DFID,02/11/2012,DFID Purchased Relief Supplies ,West and Southern Africa ,CHARLES KENDALL & PARTNERS LIMITED (PROCUREMENT) ,202524-112 ,"5,205.71",
DFID,DFID,02/11/2012,Technical and Advisory Services ,West and Southern Africa ,Dr Tarry Asoka ,201160-102 ,"5,094.39",
DFID,DFID,02/11/2012,Air fares ,West and Southern Africa ,Foreign & Commonwealth Office ,101631-101 ,"4,760.00",
DFID,DFID,02/11/2012,Technical and Advisory Services ,Asia  Caribbean and Overseas Territories , Yin Yongyuan ,200581-113 ,"4,162.10",
DFID,DFID,02/11/2012,Facilities Management payments ,East and Central Africa ,Ikondera Company Ltd ,100212-101 ,"3,654.95",
DFID,DFID,02/11/2012,Property rates ,Middle East & North Africa Division (MENAD) ,Foreign & Commonwealth Office ,201705-101 ,"3,242.34",
DFID,DFID,02/11/2012,Furniture & Fittings ,East and Central Africa ,Foreign & Commonwealth Office ,202586-101 ,"3,191.13",
DFID,DFID,02/11/2012,Travel - Subsistence ,West and Southern Africa ,Foreign & Commonwealth Office ,101631-101 ,"3,000.00",
DFID,DFID,02/11/2012,Printer Consumables ,East and Central Africa ,MISCO ,100082-101 ,"2,939.29",
DFID,DFID,02/11/2012,Technical and Advisory Services ,East and Central Africa ,Paulina Mrosso ,202593-101 ,"2,850.06",
DFID,DFID,02/11/2012,Hotels - Accommodation only ,West and Southern Africa ,Supplier Name withheld ,101622-101 ,"2,819.40",
DFID,DFID,02/11/2012,Technical and Advisory Services ,Western Asia and Stabilisation Division ,Supplier Name withheld ,203336-105 ,"2,800.00",
DFID,DFID,02/11/2012,Furniture & Fittings ,East and Central Africa ,Foreign & Commonwealth Office ,101630-101 ,"2,776.69",
DFID,DFID,02/11/2012,Computer Consumables ,East and Central Africa ,MISCO ,100082-101 ,"2,625.16",
DFID,DFID,02/11/2012,Travel - Subsistence ,West and Southern Africa ,Foreign & Commonwealth Office ,101631-101 ,"2,174.76",
DFID,DFID,02/11/2012,Contract & Agency Staff ,Human Resources Security & Facilities Division ,Michaeil Page Int. Recruitment Ltd ,100268-101 ,"1,998.00",
DFID,DFID,02/11/2012,Furniture & Fittings ,East and Central Africa ,Foreign & Commonwealth Office ,101616-101 ,"1,707.29",
DFID,DFID,02/11/2012,Facilities Management payments ,East and Central Africa ,Ikondera Company Ltd ,101628-101 ,"1,545.63",
DFID,DFID,02/11/2012,Hotels - Accommodation only ,West and Southern Africa ,Supplier Name withheld ,201433-104 ,"1,402.62",
DFID,DFID,02/11/2012,Facilities Management payments ,East and Central Africa ,Ikondera Company Ltd ,101628-101 ,"1,382.87",
DFID,DFID,02/11/2012,Other Building Costs ,Human Resources Security & Facilities Division ,MITIE Technical Facilities Management Ltd ,100187-101 ,"1,367.00",
DFID,DFID,02/11/2012,Telephone Usage & services ,East and Central Africa ,Sudanese Mobile Telephone (Zain) Co Ltd ,202586-101 ,"1,363.09",
DFID,DFID,02/11/2012,Technical and Advisory Services ,West and Southern Africa ,CHARLES KENDALL & PARTNERS LIMITED (PROCUREMENT) ,113961-106 ,"1,181.25",
DFID,DFID,02/11/2012,Furniture & Fittings ,East and Central Africa ,Foreign & Commonwealth Office ,101630-101 ,"1,021.11",
DFID,DFID,02/11/2012,Other Building Costs ,Human Resources Security & Facilities Division ,MITIE Technical Facilities Management Ltd ,100187-101 ,"1,018.04",
DFID,DFID,02/11/2012,Storage & Distribution costs ,East and Central Africa ,Foreign & Commonwealth Office ,101616-101 ,"1,005.87",
DFID,DFID,12/11/2012,Hostile Environment Training ,Finance and Corporate Performance Division ,Pilgrims Group ,100008-104 ,540.00,
DFID,DFID,02/11/2012,Other Building Costs ,Human Resources Security & Facilities Division ,MITIE Technical Facilities Management Ltd ,100187-101 ,890.04,
DFID,DFID,02/11/2012,Secure Staff Accomodation ,Middle East & North Africa Division (MENAD) ,Foreign & Commonwealth Office ,100303-101 ,883.15,
DFID,DFID,02/11/2012,Furniture & Fittings ,East and Central Africa ,Foreign & Commonwealth Office ,101616-101 ,873.19,
DFID,DFID,02/11/2012,Air fares ,West and Southern Africa ,Harvey World Travel Centurion ,101631-101 ,868.69,
DFID,DFID,02/11/2012,Technical and Advisory Services ,West and Southern Africa ,CHARLES KENDALL & PARTNERS LIMITED (PROCUREMENT) ,113961-106 ,854.46,
DFID,DFID,21/11/2012,Hostile Environment Training ,West and Southern Africa ,Pilgrims Group ,101610-101 ,634.14,
DFID,DFID,02/11/2012,Legal costs ,East and Central Africa ,Foreign & Commonwealth Office ,200842-109 ,753.00,
DFID,DFID,02/11/2012,Training Providers/Facilitation Services ,Business Solutions Division Level ,Info Trek Sdn. Bhd. ,200001-101 ,746.90,
DFID,DFID,02/11/2012,Hotels - Accommodation only ,West and Southern Africa ,Supplier Name withheld ,101622-101 ,719.60,
DFID,DFID,02/11/2012,Air fares ,West and Southern Africa ,Harvey World Travel Centurion ,101618-101 ,700.24,
DFID,DFID,02/11/2012,Legal costs ,East and Central Africa ,Foreign & Commonwealth Office ,101630-101 ,644.54,
DFID,DFID,02/11/2012,Legal costs ,East and Central Africa ,Foreign & Commonwealth Office ,101630-101 ,643.09,
DFID,DFID,02/11/2012,Medical/Health Services ,East and Central Africa ,Foreign & Commonwealth Office ,101633-101 ,604.00,
DFID,DFID,02/11/2012,Other Building Costs ,Human Resources Security & Facilities Division ,MITIE Technical Facilities Management Ltd ,100187-101 ,581.04,
DFID,DFID,02/11/2012,Legal costs ,East and Central Africa ,Foreign & Commonwealth Office ,101625-102 ,570.54,
DFID,DFID,02/11/2012,Air fares ,West and Southern Africa ,Harvey World Travel Centurion ,101631-101 ,518.43,
DFID,DFID,02/11/2012,Furniture & Fittings ,East and Central Africa ,Foreign & Commonwealth Office ,101616-101 ,509.00,
DFID,DFID,05/11/2012,Aid Programme - Trust Funds contributions ,Research and Evidence Division ,IBRD HSBC T ,202211-101 ,"16,000,000.00",
DFID,DFID,05/11/2012,Technical and Advisory Services ,West and Southern Africa ,ABT ASSOCIATES INC ,104229-101 ,"2,330,317.33",
DFID,DFID,05/11/2012,Aid Programme - Core contributions ,East and Central Africa ,NEPAD (International Partnership for Africa Fisheries) ,200157-106 ,"661,456.23",
DFID,DFID,05/11/2012,Technical and Advisory Services ,Western Asia and Stabilisation Division ,Supplier Name withheld ,200898-103 ,"625,374.12",
DFID,DFID,05/11/2012,Aid Programme - Core contributions ,Research and Evidence Division ,UNU-Wider ,201459-101 ,"531,667.00",
DFID,DFID,05/11/2012,Aid Programme - Voluntary contributions ,Policy Division ,WHO (GENEVA) ,203070-103 ,"500,000.00",
DFID,DFID,05/11/2012,Research & Development costs ,Research and Evidence Division ,Crown Agents Bank ,114010-102 ,"337,239.00",
DFID,DFID,05/11/2012,Aid Programme - Accountable Grant Payments ,Policy Division ,Access to Medicine Foundation ,201055-101 ,"150,000.00",
DFID,DFID,05/11/2012,Technical and Advisory Services ,Western Asia and Stabilisation Division ,McKinsey & Co  Inc UK ,203297-101 ,"134,065.00",
DFID,DFID,05/11/2012,Technical and Advisory Services ,Asia  Caribbean and Overseas Territories ,ADAM SMITH INTERNATIONAL  LTD ,114234-102 ,"57,148.00",
DFID,DFID,05/11/2012,Technical and Advisory Services ,Western Asia and Stabilisation Division ,Supplier Name withheld ,202054-102 ,"45,303.58",
DFID,DFID,05/11/2012,Repairs  Maint  Alter - Property & Constrct. Services ,West and Southern Africa ,OROSTREAM INT CONTRACTS LTD ,101610-101 ,"24,048.08",
DFID,DFID,05/11/2012,Technical and Advisory Services ,Asia  Caribbean and Overseas Territories ,OPTIONS CONSULTANCY SERVICES LIMITED ,113963-101 ,"17,450.46",
DFID,DFID,05/11/2012,Technical and Advisory Services ,West and Southern Africa ,THE POLICY PRACTICE LTD ,200681-101 ,"15,421.88",
DFID,DFID,05/11/2012,Aid Programme - Accountable Grant Payments ,Research and Evidence Division ,INTERNATIONAL ALERT ,202125-104 ,"13,553.45",
DFID,DFID,05/11/2012,Technical and Advisory Services ,West and Southern Africa ,THE POLICY PRACTICE LTD ,203230-101 ,"13,500.00",
DFID,DFID,05/11/2012,Secure Staff Accomodation ,West and Southern Africa ,Supplier Name withheld ,101610-101 ,"11,603.24",
DFID,DFID,05/11/2012,Aid Programme - Accountable Grant Payments ,East and Central Africa ,CRANFIELD UNIVERSITY ,203510-101 ,"9,839.50",
DFID,DFID,05/11/2012,Aid Programme - Accountable Grant Payments ,Asia  Caribbean and Overseas Territories ,ROYAL SOCIETY FOR THE PROTECTION OF BIRDS ,201049-101 ,"8,363.52",
DFID,DFID,05/11/2012,Technical and Advisory Services ,Western Asia and Stabilisation Division ,Supplier Name withheld ,202054-102 ,"6,985.55",
DFID,DFID,05/11/2012,Technical and Advisory Services ,East and Central Africa ,Robert Poppe ,201587-103 ,"4,941.14",
DFID,DFID,05/11/2012,Technical and Advisory Services ,West and Southern Africa ,HLSP LTD ,201927-103 ,"3,609.36",
DFID,DFID,05/11/2012,Technical and Advisory Services ,East and Central Africa ,HLSP LIMITED ,202994-101 ,"2,900.00",
DFID,DFID,05/11/2012,Technical and Advisory Services ,West and Southern Africa ,Maria von Wogau -Consultoria ,104038-101 ,"2,495.32",
DFID,DFID,05/11/2012,UK Staff overseas - Flexi Travel Allowance,Western Asia and Stabilisation Division ,Recipient name withheld ,101601-110 ,"2,010.57",
DFID,DFID,05/11/2012,Technical and Advisory Services ,Western Asia and Stabilisation Division ,Supplier Name withheld ,202054-102 ,"1,974.91",
DFID,DFID,05/11/2012,Training - Travel & Subsistence ,East and Central Africa ,The Express Travel Group ,101612-101 ,"1,869.77",
DFID,DFID,05/11/2012,Air fares ,Internal Audit ,Stellar Travels  Agency Ltd ,100121-101 ,"1,807.25",
DFID,DFID,05/11/2012,Technical and Advisory Services ,Western Asia and Stabilisation Division ,Henry George Hogger ,203336-105 ,"1,800.00",
DFID,DFID,05/11/2012,Technical and Advisory Services ,Western Asia and Stabilisation Division ,MOTT MACDONALD LTD ,114153-101 ,"1,670.85",
DFID,DFID,05/11/2012,Hotels - Accommodation only ,Internal Audit ,Golden Jubilee Ltd ,100121-101 ,"1,610.99",
DFID,DFID,05/11/2012,Technical and Advisory Services ,East and Central Africa ,Margaret Kakande ,200349-104 ,"1,556.66",
DFID,DFID,05/11/2012,Training - Travel & Subsistence ,East and Central Africa ,Simbatravelcare Limited ,101635-101 ,"1,539.33",
DFID,DFID,05/11/2012,Aid Programme - Accountable Grant Payments ,West and Southern Africa ,VOLUNTARY SERVICE OVERSEAS (VSO) ,201853-103 ,"1,521.00",
DFID,DFID,05/11/2012,Hotels - Accommodation only ,Internal Audit ,Golden Jubilee Ltd ,100121-101 ,"1,464.54",
DFID,DFID,05/11/2012,Hotels - Accommodation only ,Internal Audit ,Golden Jubilee Ltd ,100121-101 ,"1,464.54",
DFID,DFID,05/11/2012,Data Network - land lines ,West and Southern Africa ,MICRO COM Sprl ,101610-101 ,"1,406.74",
DFID,DFID,05/11/2012,Technical and Advisory Services ,Policy Division ,HLSP LIMITED ,202926-103 ,"1,393.35",
DFID,DFID,05/11/2012,Training - Travel & Subsistence ,East and Central Africa ,The Express Travel Group ,100082-101 ,"1,084.29",
DFID,DFID,05/11/2012,Training - Travel & Subsistence ,East and Central Africa ,Simbatravelcare Limited ,100234-101 ,778.57,
DFID,DFID,05/11/2012,Training - Travel & Subsistence ,East and Central Africa ,Simbatravelcare Limited ,101635-101 ,773.29,
DFID,DFID,05/11/2012,Training - Travel & Subsistence ,East and Central Africa ,Simbatravelcare Limited ,101635-101 ,773.29,
DFID,DFID,05/11/2012,Training - Travel & Subsistence ,East and Central Africa ,Simbatravelcare Limited ,101635-101 ,737.56,
DFID,DFID,05/11/2012,Training - Travel & Subsistence ,East and Central Africa ,Simbatravelcare Limited ,101635-101 ,737.56,
DFID,DFID,05/11/2012,Air fares ,East and Central Africa ,The Express Travel Group ,101612-101 ,633.55,
DFID,DFID,05/11/2012,Technical and Advisory Services ,East and Central Africa ,PriceWaterhouseCoopers ,100218-101 ,616.53,
DFID,DFID,05/11/2012,Training Providers/Facilitation Services ,East and Central Africa ,Estelle  Galés- Mayer ,101628-101 ,615.00,
DFID,DFID,05/11/2012,Contract & Agency Staff ,Human Resources Security & Facilities Division ,Hays Specialist Recruitment Ltd ,100270-102 ,573.40,
DFID,DFID,05/11/2012,Printer Consumables ,East and Central Africa ,Computer Point ,101635-101 ,567.07,
DFID,DFID,05/11/2012,Air fares ,East and Central Africa ,The Express Travel Group ,202913-104 ,531.95,
DFID,DFID,05/11/2012,Recruitment costs ,Human Resources Security & Facilities Division ,MTB CONSULTING ,100269-130 ,501.12,
DFID,DFID,06/11/2012,Aid Programme - Core contributions ,International Finance Division ,Department for International Development ,202280-102 ,"5,498,274.94",
DFID,DFID,06/11/2012,Aid Programme - Accountable Grant Payments ,Policy Division , Triple Line Consulting Ltd ,202035-101 ,"1,333,301.43",
DFID,DFID,06/11/2012,Aid Programme - Accountable Grant Payments ,East and Central Africa ,ALLIANCE FOR A GREEN REVOLUTION IN AFRICA ,201956-101 ,"1,239,712.48",
DFID,DFID,06/11/2012,Aid Programme - Voluntary contributions ,Research and Evidence Division ,UNDESA ,113965-103 ,"532,000.00",
DFID,DFID,06/11/2012,Aid Programme - Accountable Grant Payments ,East and Central Africa ,AGRA IN AFRICA (NO2) ,201913-109 ,"500,000.00",
DFID,DFID,06/11/2012,Research & Development costs ,Research and Evidence Division ,JHU Bloomberg School of Public Health ,201888-101 ,"441,755.00",
DFID,DFID,06/11/2012,Aid Programme - Core contributions ,Research and Evidence Division ,The Foundation for Innovative Diagnostics (FIND) ,201368-101 ,"400,000.00",
DFID,DFID,06/11/2012,Aid Programme - Accountable Grant Payments ,Policy Division ,THE RAINFOREST FOUNDATION UK ,201724-127 ,"287,433.00",
DFID,DFID,06/11/2012,Technical and Advisory Services ,Conflict Humanitarian and Security Division ,MINES ADVISORY GROUP ,201745-104 ,"176,035.00",
DFID,DFID,06/11/2012,Aid Programme - Accountable Grant Payments ,Policy Division ,UNITED NATIONS FOUNDATION ,202822-111 ,"175,778.00",
DFID,DFID,06/11/2012,Aid Programme - Accountable Grant Payments ,East and Central Africa ,AGRA IN AFRICA (NO2) ,200094-103 ,"145,681.00",
DFID,DFID,06/11/2012,Aid Programme - Accountable Grant Payments ,East and Central Africa ,AGRA IN AFRICA (NO2) ,201575-102 ,"128,875.50",
DFID,DFID,06/11/2012,Aid Programme - Accountable Grant Payments ,East and Central Africa ,AGRA IN AFRICA (NO2) ,201575-101 ,"128,875.50",
DFID,DFID,06/11/2012,Aid Programme - Accountable Grant Payments ,Policy Division , Triple Line Consulting Ltd ,202035-101 ,"79,233.37",
DFID,DFID,06/11/2012,Aid Programme - Accountable Grant Payments ,Policy Division ,THE GLOBAL FORUM ON MSM AND HIV ,200886-101 ,"59,199.48",
DFID,DFID,06/11/2012,Aid Programme - Accountable Grant Payments ,Policy Division ,BOND ,202907-101 ,"57,076.00",
DFID,DFID,06/11/2012,FCO shared service charges ,Western Asia and Stabilisation Division ,Supplier Name withheld ,101601-110 ,"51,119.00",FCO shared services (Security) - Afghanistan
DFID,DFID,06/11/2012,Technical and Advisory Services ,International Relations Division ,COFFEY INTERNATIONAL DEVELOPMENT LTD ,202842-101 ,"45,507.87",
DFID,DFID,06/11/2012,Technical and Advisory Services ,Asia  Caribbean and Overseas Territories ,COFFEY INTERNATIONAL DEVELOPMENT LTD ,202083-101 ,"40,826.77",
DFID,DFID,06/11/2012,FCO shared service charges ,Western Asia and Stabilisation Division ,Supplier Name withheld ,100011-110 ,"17,784.00",
DFID,DFID,06/11/2012,Vehicle Repairs & Maintenance ,Western Asia and Stabilisation Division ,Supplier Name withheld ,101601-110 ,"17,236.00",
DFID,DFID,06/11/2012,Technical and Advisory Services ,West and Southern Africa ,David Geilinger ,201806-103 ,"10,000.00",
DFID,DFID,06/11/2012,Technical and Advisory Services ,Asia  Caribbean and Overseas Territories ,Adroit Consultants LLP ,114129-101 ,"3,200.00",
DFID,DFID,06/11/2012,Technical and Advisory Services ,East and Central Africa ,Edward Russell ,203603-101 ,"2,309.00",
DFID,DFID,06/11/2012,Repairs  Maint  Alter - Property & Constrct. Services ,West and Southern Africa ,GreyStone Park Electrical ,101638-103 ,"1,975.63",
DFID,DFID,06/11/2012,Training Providers/Facilitation Services ,Policy Division ,Truman National Security Project ,100275-101 ,"1,663.71",
DFID,DFID,06/11/2012,Repairs  Maint  Alter - Property & Constrct. Services ,West and Southern Africa ,GreyStone Park Electrical ,101638-103 ,"1,635.00",
DFID,DFID,06/11/2012,Air fares ,Asia  Caribbean and Overseas Territories ,Saimon Overseas Ltd ,203398-101 ,"1,603.02",
DFID,DFID,06/11/2012,Other passenger transport ,East and Central Africa ,ETHIODER Pvt. Ltd.Co. Tour Operators ,100082-101 ,"1,232.86",
DFID,DFID,06/11/2012,Other Building Costs ,Human Resources Security & Facilities Division ,MITIE Technical Facilities Management Ltd ,100106-101 ,"1,126.16",
DFID,DFID,06/11/2012,Hotels - Accommodation only ,Asia  Caribbean and Overseas Territories ,Recipient name withheld ,101603-102 ,"1,109.49",
DFID,DFID,06/11/2012,Training - Travel & Subsistence ,West and Southern Africa ,Premier Travel ,101638-101 ,"1,031.25",
DFID,DFID,06/11/2012,Technical and Advisory Services ,International Relations Division ,ART OF LIVING ,202319-101 ,971.63,
DFID,DFID,06/11/2012,Training - Travel & Subsistence ,West and Southern Africa ,Premier Travel ,101638-101 ,931.25,
DFID,DFID,06/11/2012,Training - Travel & Subsistence ,West and Southern Africa ,Premier Travel ,101638-101 ,922.50,
DFID,DFID,06/11/2012,Air fares ,Research and Evidence Division ,Recipient name withheld ,100039-114 ,812.82,
DFID,DFID,06/11/2012,Contract & Agency Staff ,Asia  Caribbean and Overseas Territories ,Hays Specialist Recruitment Ltd ,100084-101 ,684.24,
DFID,DFID,06/11/2012,Contract & Agency Staff ,Asia  Caribbean and Overseas Territories ,Hays Specialist Recruitment Ltd ,100084-101 ,611.61,
DFID,DFID,06/11/2012,Air fares ,Human Resources Security & Facilities Division ,Nikolai Hutchinson ,100269-128 ,608.00,
DFID,DFID,06/11/2012,Courier & Bag Services ,Human Resources Security & Facilities Division ,TNT Express (UK) Ltd ,100106-101 ,550.05,
DFID,DFID,07/11/2012,Aid Programme - Poverty Reduction Budget Support ,West and Southern Africa ,Ministry of Finance and Economic Planning Ghana ,201629-105 ,"1,818,000.00",
DFID,DFID,07/11/2012,Aid Programme - Accountable Grant Payments ,Asia  Caribbean and Overseas Territories ,YAYASAN KEANEKARAGMAN HAYATI INDONESIA - KEHATI ,202799-101 ,"706,055.00",
DFID,DFID,07/11/2012,Aid Programme - Voluntary contributions ,Policy Division ,WHO (GENEVA) ,203037-101 ,"700,000.00",
DFID,DFID,07/11/2012,Technical and Advisory Services ,Research and Evidence Division ,London School of Hygiene and Tropical Medicine ,114396-102 ,"540,195.32",
DFID,DFID,07/11/2012,Technical and Advisory Services ,Western Asia and Stabilisation Division ,Supplier Name withheld ,114488-101 ,"485,534.00",
DFID,DFID,07/11/2012,Aid Programme - Accountable Grant Payments ,East and Central Africa ,Aga Khan Foundation (Tanzania) ,200716-101 ,"403,264.00",
DFID,DFID,07/11/2012,Technical and Advisory Services ,East and Central Africa ,HEALTH PARTNERS INTERNATIONAL ,200250-115 ,"347,564.00",
DFID,DFID,07/11/2012,Aid Programme - Accountable Grant Payments ,Research and Evidence Division ,ASSOCIATION OF COMMONWEALTH UNIVER ,202004-101 ,"215,170.00",
DFID,DFID,07/11/2012,Technical and Advisory Services ,Conflict Humanitarian and Security Division ,MINES ADVISORY GROUP ,201745-108 ,"181,440.00",
DFID,DFID,07/11/2012,Technical and Advisory Services ,Conflict Humanitarian and Security Division ,MINES ADVISORY GROUP ,201745-102 ,"158,037.00",
DFID,DFID,07/11/2012,Technical and Advisory Services ,West and Southern Africa ,COFFEY INTERNATIONAL DEVELOPMENT LTD ,104190-103 ,"139,627.68",
DFID,DFID,07/11/2012,Technical and Advisory Services ,International Finance Division ,Nathan Associates London Ltd ,114009-102 ,"121,916.94",
DFID,DFID,07/11/2012,Aid Programme - Core contributions ,Research and Evidence Division ,Program for Appropriate Technology in Health ,202045-101 ,"92,000.00",
DFID,DFID,07/11/2012,Technical and Advisory Services ,West and Southern Africa ,GRM INTERNATIONAL LTD ,202352-102 ,"76,862.50",
DFID,DFID,07/11/2012,Aid Programme - Accountable Grant Payments ,Asia  Caribbean and Overseas Territories ,YAYASAN KEANEKARAGMAN HAYATI INDONESIA - KEHATI ,202799-101 ,"67,150.00",
DFID,DFID,07/11/2012,Aid Programme - Accountable Grant Payments ,Communications Division ,INTERN DEVEL EDUC ASSOC OF SCOTLAND ,201496-102 ,"64,874.00",
DFID,DFID,07/11/2012,Technical and Advisory Services ,Policy Division ,Triple Line Consulting Limited ,201242-101 ,"48,061.13",
DFID,DFID,07/11/2012,Technical and Advisory Services ,Asia  Caribbean and Overseas Territories ,ERNST &  YOUNG PRIVATE LTD ,200599-101 ,"45,630.19",
DFID,DFID,07/11/2012,Technical and Advisory Services ,West and Southern Africa ,GRM INTERNATIONAL LTD ,202352-102 ,"44,318.47",
DFID,DFID,07/11/2012,Technical and Advisory Services ,Western Asia and Stabilisation Division ,Supplier Name withheld ,201630-103 ,"23,684.34",
DFID,DFID,07/11/2012,Secure Staff Accomodation ,West and Southern Africa ,Supplier Name withheld ,100214-101 ,"23,000.00",
DFID,DFID,07/11/2012,Technical and Advisory Services ,East and Central Africa ,MOTT MACDONALD LTD ,202377-103 ,"20,872.15",
DFID,DFID,07/11/2012,Technical and Advisory Services ,Policy Division ,Triple Line Consulting Limited ,100045-101 ,"19,630.60",
DFID,DFID,07/11/2012,Technical and Advisory Services ,Human Resources Security & Facilities Division ,Healix International Limited (Fees) ,202423-101 ,"16,706.28",
DFID,DFID,07/11/2012,Technical and Advisory Services ,Western Asia and Stabilisation Division ,META-DEVELOPMENT LLP ,114153-101 ,"16,518.87",
DFID,DFID,07/11/2012,Technical and Advisory Services ,Asia  Caribbean and Overseas Territories ,Andrew Rogers (Self Employed) ,202083-101 ,"15,719.74",
DFID,DFID,07/11/2012,Consultancy Services (As defined by central gov) ,East and Central Africa ,LUCA CRUDELI ,100230-101 ,"13,891.22",
DFID,DFID,07/11/2012,Hotels - Accommodation only ,West and Southern Africa ,Supplier Name withheld ,101622-101 ,"13,528.91",
DFID,DFID,07/11/2012,Technical and Advisory Services ,Western Asia and Stabilisation Division ,Supplier Name withheld ,203309-102 ,"12,838.24",
DFID,DFID,07/11/2012,Technical and Advisory Services ,Asia  Caribbean and Overseas Territories ,TURNER & TOWNSEND ,100151-101 ,"12,038.37",
DFID,DFID,07/11/2012,Supplier Services ,Asia  Caribbean and Overseas Territories ,FCO SERVICES ,100114-104 ,"8,733.00",
DFID,DFID,07/11/2012,Technical and Advisory Services ,Western Asia and Stabilisation Division ,Supplier Name withheld ,203309-102 ,"7,119.06",
DFID,DFID,07/11/2012,Technical and Advisory Services ,East and Central Africa ,IMC Worldwide Ltd ,202704-102 ,"6,950.00",
DFID,DFID,07/11/2012,Technical and Advisory Services ,International Finance Division ,Nathan Associates London Ltd ,114009-103 ,"4,389.01",
DFID,DFID,07/11/2012,Aid Programme - Accountable Grant Payments ,Policy Division ,Protea Hotel Abuja ,201086-104 ,"3,382.23",
DFID,DFID,07/11/2012,Technical and Advisory Services ,West and Southern Africa ,Malawi Institute of Management ,200251-102 ,"2,926.38",
DFID,DFID,07/11/2012,Electricity ,East and Central Africa ,Tanzania Electric supply company Ltd ,101634-101 ,"2,692.44",
DFID,DFID,07/11/2012,Computer hardware maintenance ,West and Southern Africa ,Applied Satellite Technology Systems Ltd ,101622-101 ,"2,582.10",
DFID,DFID,07/11/2012,Technical and Advisory Services ,Policy Division ,PATH ,202674-101 ,"2,522.65",
DFID,DFID,07/11/2012,Air fares ,East and Central Africa ,WFP Somalia ,101630-101 ,"2,218.09",
DFID,DFID,07/11/2012,Telephone Usage & services ,Western Asia and Stabilisation Division ,Supplier Name withheld ,101601-110 ,"2,028.18",
DFID,DFID,07/11/2012,Computer hardware maintenance ,West and Southern Africa ,Applied Satellite Technology Systems Ltd ,100152-101 ,"1,947.90",
DFID,DFID,07/11/2012,Further Education costs ,East and Central Africa ,Supplier Name withheld ,200109-108 ,"1,791.31",
DFID,DFID,07/11/2012,Contract & Agency Staff ,Finance and Corporate Performance Division ,MICHAEL PAGE INTERNATIONAL RECRUITMENT LIMITED ,100201-101 ,"1,650.00",
DFID,DFID,07/11/2012,Contract & Agency Staff ,Finance and Corporate Performance Division ,MICHAEL PAGE INTERNATIONAL RECRUITMENT LIMITED ,100201-101 ,"1,534.32",
DFID,DFID,07/11/2012,Contract & Agency Staff ,Finance and Corporate Performance Division ,MICHAEL PAGE INTERNATIONAL RECRUITMENT LIMITED ,100201-101 ,"1,534.32",
DFID,DFID,07/11/2012,Repairs  Maint  Alter - Property & Constrct. Services ,West and Southern Africa ,Pekolyn Tech. Services ,101622-101 ,"1,394.73",
DFID,DFID,07/11/2012,Furniture & Fittings ,West and Southern Africa ,Worldwide Movers Ltd ,101618-101 ,"1,302.74",
DFID,DFID,07/11/2012,Conferences  Seminars & Meeting/Event Resource ,West and Southern Africa ,Africa Business Media Ltd. ,201629-103 ,"1,245.49",
DFID,DFID,07/11/2012,Contract & Agency Staff ,Finance and Corporate Performance Division ,Search Consultancy Ltd ,100201-101 ,"1,200.00",
DFID,DFID,07/11/2012,Contract & Agency Staff ,Finance and Corporate Performance Division ,Hays Specialist Recruitment Ltd ,100201-101 ,"1,102.50",
DFID,DFID,07/11/2012,Entertainment & Hospitality ,East and Central Africa ,Ole Sereni Hotel ,101630-101 ,"1,045.62",
DFID,DFID,07/11/2012,Cleaning Costs ,West and Southern Africa ,Yeane Enterprises ,101629-101 ,946.04,
DFID,DFID,07/11/2012,Contract & Agency Staff ,Finance and Corporate Performance Division ,Hays Specialist Recruitment Ltd ,100201-101 ,932.40,
DFID,DFID,07/11/2012,Facilities Management payments ,West and Southern Africa ,Sparklean Services Nig Ltd ,101622-101 ,862.84,
DFID,DFID,07/11/2012,Air fares ,East and Central Africa ,Bon Voyage Travel Centre Ltd(USD) ,101634-101 ,716.07,
DFID,DFID,07/11/2012,Telephone Usage & services ,Western Asia and Stabilisation Division ,Supplier Name withheld ,100011-110 ,705.46,
DFID,DFID,07/11/2012,Taxi costs ,Business Solutions Division Level ,d&m taxis ,200001-101 ,700.00,
DFID,DFID,07/11/2012,Electricity ,West and Southern Africa ,National Power Authority ,101629-101 ,684.92,
DFID,DFID,07/11/2012,Air fares ,West and Southern Africa ,Lamar Travel Agency ,101629-101 ,681.68,
DFID,DFID,07/11/2012,Cleaning Costs ,West and Southern Africa ,Yeane Enterprises ,101629-101 ,663.98,
DFID,DFID,07/11/2012,Contract & Agency Staff ,Finance and Corporate Performance Division ,Hays Specialist Recruitment Ltd ,100201-101 ,661.50,
DFID,DFID,07/11/2012,Facilities Management payments ,West and Southern Africa ,Pekolyn Tech. Services ,101622-101 ,632.47,
DFID,DFID,07/11/2012,Training - Course Fees ,Conflict Humanitarian and Security Division ,WORKING SOLUTIONS ,100049-101 ,600.00,
DFID,DFID,07/11/2012,Cleaning Costs ,West and Southern Africa ,Yeane Enterprises ,101629-101 ,595.73,
DFID,DFID,07/11/2012,Repairs  Maint  Alter - Removal & waste disposal services ,West and Southern Africa ,Pekolyn Tech. Services ,101622-101 ,540.32,
DFID,DFID,07/11/2012,Air fares ,East and Central Africa ,Bon Voyage Travel Centre Ltd(USD) ,202593-104 ,525.33,
DFID,DFID,08/11/2012,Aid Programme - Challenge Fund payments ,Policy Division ,Triple Line Consulting Limited ,201242-101 ,"1,524,841.60",
DFID,DFID,08/11/2012,Technical and Advisory Services ,West and Southern Africa ,HEALTH PARTNERS INTERNATIONAL ,104227-102 ,"448,003.08",
DFID,DFID,08/11/2012,Aid Programme - Core contributions ,Research and Evidence Division ,Program for Appropriate Technology in Health ,201370-101 ,"398,166.00",
DFID,DFID,08/11/2012,Aid Programme - Accountable Grant Payments ,West and Southern Africa ,FinMark  TRUST ,200880-102 ,"393,722.48",
DFID,DFID,08/11/2012,Aid Programme - Accountable Grant Payments ,Policy Division ,GLOBAL WITNESS LTD ,201724-116 ,"312,216.00",
DFID,DFID,08/11/2012,Aid Programme - Accountable Grant Payments ,East and Central Africa , ACTED ,202522-105 ,"309,449.00",
DFID,DFID,08/11/2012,Technical and Advisory Services ,Conflict Humanitarian and Security Division ,MINES ADVISORY GROUP ,201745-101 ,"214,081.00",
DFID,DFID,08/11/2012,Technical and Advisory Services ,West and Southern Africa ,SEARCH FOR COMMON GROUND ,200856-103 ,"207,052.00",
DFID,DFID,08/11/2012,Aid Programme - Pooled/Basket funding ,Research and Evidence Division ,WELLCOME TRUST ,114075-102 ,"177,730.50",
DFID,DFID,08/11/2012,Aid Programme - Accountable Grant Payments ,West and Southern Africa ,TechnoServe  Incorporated ,202351-104 ,"171,044.00",
DFID,DFID,08/11/2012,Technical and Advisory Services ,Conflict Humanitarian and Security Division ,MINES ADVISORY GROUP ,201745-103 ,"163,154.00",
DFID,DFID,08/11/2012,Technical and Advisory Services ,Asia  Caribbean and Overseas Territories ,ADAM SMITH INTERNATIONAL  LTD ,201367-103 ,"135,973.69",
DFID,DFID,08/11/2012,Aid Programme - Accountable Grant Payments ,Western Asia and Stabilisation Division ,SAVE THE CHILDREN ,203101-101 ,"129,559.80",
DFID,DFID,08/11/2012,Aid Programme - Accountable Grant Payments ,West and Southern Africa ,School for Life ,203330-101 ,"124,626.05",
DFID,DFID,08/11/2012,Technical and Advisory Services ,Research and Evidence Division ,London School of Hygiene and Tropical Medicine ,114396-102 ,"105,287.72",
DFID,DFID,08/11/2012,Technical and Advisory Services ,Western Asia and Stabilisation Division ,Supplier Name withheld ,114525-102 ,"101,670.50",
DFID,DFID,08/11/2012,Technical and Advisory Services ,East and Central Africa ,OXFORD ECONOMICS LTD ,200250-113 ,"98,676.00",
DFID,DFID,08/11/2012,Aid Programme - Joint programme contribution ,West and Southern Africa ,The World  Bank IBRD ,104190-111 ,"94,125.00",
DFID,DFID,08/11/2012,Technical and Advisory Services ,Asia  Caribbean and Overseas Territories ,INFRASTRUCTURE PROFESSIONALS ENTERPRISE ,114040-101 ,"84,241.91",
DFID,DFID,08/11/2012,Technical and Advisory Services ,Asia  Caribbean and Overseas Territories ,INFRASTRUCTURE PROFESSIONALS ENTERPRISE ,114040-101 ,"84,241.91",
DFID,DFID,08/11/2012,Technical and Advisory Services ,Asia  Caribbean and Overseas Territories ,INFRASTRUCTURE PROFESSIONALS ENTERPRISE ,114040-101 ,"84,241.91",
DFID,DFID,08/11/2012,Technical and Advisory Services ,Asia  Caribbean and Overseas Territories ,ERNST &  YOUNG PRIVATE LTD ,200599-101 ,"74,907.68",
DFID,DFID,08/11/2012,Technical and Advisory Services ,Asia  Caribbean and Overseas Territories ,ERNST &  YOUNG PRIVATE LTD ,200599-101 ,"74,907.68",
DFID,DFID,08/11/2012,Technical and Advisory Services ,Western Asia and Stabilisation Division ,PRICEWATERHOUSECOOPERS ,202378-104 ,"69,542.40",
DFID,DFID,08/11/2012,Technical and Advisory Services ,Asia  Caribbean and Overseas Territories ,ERNST &  YOUNG PRIVATE LTD ,200599-101 ,"51,498.32",
DFID,DFID,08/11/2012,Aid Programme - Accountable Grant Payments ,Communications Division ,INTERNATIONAL BROADCASTING TRUST ,201455-101 ,"50,451.00",
DFID,DFID,08/11/2012,Aid Programme - Accountable Grant Payments ,East and Central Africa ,VOLUNTARY SERVICE OVERSEAS ,200250-117 ,"42,275.00",
DFID,DFID,08/11/2012,Technical and Advisory Services ,Asia  Caribbean and Overseas Territories ,Castlerock Consulting Pte. Ltd. ,201942-101 ,"33,893.75",
DFID,DFID,08/11/2012,Technical and Advisory Services ,Asia  Caribbean and Overseas Territories ,ERNST &  YOUNG PRIVATE LTD ,200599-101 ,"33,708.00",
DFID,DFID,08/11/2012,Technical and Advisory Services ,Policy Division ,PRICEWATERHOUSECOOPERS ,202648-101 ,"31,319.42",
DFID,DFID,08/11/2012,Technical and Advisory Services ,Asia  Caribbean and Overseas Territories ,INFRASTRUCTURE PROFESSIONALS ENTERPRISE ,114040-101 ,"27,243.48",
DFID,DFID,08/11/2012,Technical and Advisory Services ,International Relations Division ,PUBLIC ADMINISTRATION INTERN ,203302-101 ,"18,656.08",
DFID,DFID,08/11/2012,Repairs  Maint  Alter - Property & Constrct. Services ,East and Central Africa ,WESTBURY ESTATE SERVICES LTD ,100211-101 ,"15,498.09",
DFID,DFID,08/11/2012,Supplier Services ,Asia  Caribbean and Overseas Territories ,TURNER & TOWNSEND ,202083-101 ,"14,820.00",
DFID,DFID,08/11/2012,Technical and Advisory Services ,East and Central Africa ,HLSP LIMITED ,202618-101 ,"13,557.50",
DFID,DFID,08/11/2012,Technical and Advisory Services ,Policy Division ,PATH ,202674-101 ,"13,126.75",
DFID,DFID,08/11/2012,Technical and Advisory Services ,International Relations Division ,GARTH ARMSTRONG ,200857-101 ,"13,097.02",
DFID,DFID,08/11/2012,Technical and Advisory Services ,Asia  Caribbean and Overseas Territories ,GRM INTERNATIONAL LTD ,113537-104 ,"12,000.00",
DFID,DFID,08/11/2012,Technical and Advisory Services ,Asia  Caribbean and Overseas Territories ,GRM INTERNATIONAL LTD ,113537-104 ,"12,000.00",
DFID,DFID,08/11/2012,Technical and Advisory Services ,Asia  Caribbean and Overseas Territories ,ERNST &  YOUNG PRIVATE LTD ,200599-101 ,"11,705.17",
DFID,DFID,08/11/2012,Technical and Advisory Services ,Asia  Caribbean and Overseas Territories ,ERNST &  YOUNG PRIVATE LTD ,200599-101 ,"11,705.17",
DFID,DFID,08/11/2012,Technical and Advisory Services ,Asia  Caribbean and Overseas Territories ,ERNST &  YOUNG PRIVATE LTD ,200599-101 ,"11,236.00",
DFID,DFID,08/11/2012,Technical and Advisory Services ,Non-Departmental Public Body ,NATIONAL AUDIT OFFICE ,203064-101 ,"9,206.90",
DFID,DFID,08/11/2012,Technical and Advisory Services ,Asia  Caribbean and Overseas Territories ,Mid Century Design Ltd ,202824-102 ,"8,925.00",
DFID,DFID,08/11/2012,Other Building Costs ,West and Southern Africa ,Kay Two Zambia Limited ,100255-101 ,"8,866.15",
DFID,DFID,08/11/2012,Technical and Advisory Services ,East and Central Africa ,Lestrade Consultancy Ltd ,202913-101 ,"8,500.00",
DFID,DFID,08/11/2012,Technical and Advisory Services ,East and Central Africa ,OXFORD ECONOMICS LTD ,200250-113 ,"8,154.60",
DFID,DFID,08/11/2012,Secure Staff Accomodation ,West and Southern Africa ,Supplier Name withheld ,101637-101 ,"8,153.46",
DFID,DFID,08/11/2012,Computer software maintenance ,Human Resources Security & Facilities Division ,WORLD CAREERS NETWORK PLC ,100269-131 ,"7,147.62",
DFID,DFID,08/11/2012,FCO shared service charges ,East and Central Africa ,JMC Umoja House ,101634-101 ,"6,699.94",
DFID,DFID,08/11/2012,Technical and Advisory Services ,Asia  Caribbean and Overseas Territories ,COFFEY INTERNATIONAL DEVELOPMENT LTD ,201739-101 ,"5,576.96",
DFID,DFID,08/11/2012,Postage Costs ,Human Resources Security & Facilities Division ,NEOPOST LIMITED ,100106-101 ,"5,000.00",
DFID,DFID,08/11/2012,Technical and Advisory Services ,West and Southern Africa ,Tonderai Makumire ,202351-105 ,"3,883.75",
DFID,DFID,08/11/2012,Aid Programme - Accountable Grant Payments ,Asia  Caribbean and Overseas Territories ,Centre for Development Economics ,114320-110 ,"3,728.21",
DFID,DFID,08/11/2012,Technical and Advisory Services ,East and Central Africa ,Mekdim Enkossa Ayana ,203016-102 ,"3,663.70",
DFID,DFID,08/11/2012,Other Building Costs ,West and Southern Africa ,S R Nicolaou ,101637-101 ,"3,517.52",
DFID,DFID,08/11/2012,Technical and Advisory Services ,West and Southern Africa ,Leonardo Garrido (GBP) ,203393-101 ,"3,244.30",
DFID,DFID,08/11/2012,Other non-passenger transportation ,Asia  Caribbean and Overseas Territories ,G4S FACILITY SERVICES (INDIA) PVT. L ,201689-105 ,"3,186.65",
DFID,DFID,08/11/2012,Electricity ,Human Resources Security & Facilities Division ,EDF ENERGY ,203717-101 ,"3,177.62",
DFID,DFID,08/11/2012,Other Building Costs ,West and Southern Africa ,Kay Two Zambia Limited ,200625-102 ,"3,145.61",
DFID,DFID,08/11/2012,Technical and Advisory Services ,Western Asia and Stabilisation Division ,Supplier Name withheld ,202190-104 ,"3,125.00",
DFID,DFID,08/11/2012,Secure Staff Accomodation ,Western Asia and Stabilisation Division ,Supplier Name withheld ,202288-107 ,"2,580.00",
DFID,DFID,08/11/2012,Other shared service charges ,Asia  Caribbean and Overseas Territories ,Foreign & Commonwealth Office ,202403-101 ,"2,000.00",
DFID,DFID,08/11/2012,FCO shared service charges ,East and Central Africa ,JMC Umoja House ,100230-101 ,"1,675.61",
DFID,DFID,08/11/2012,Contract & Agency Staff ,Policy Division ,Hays Specialist Recruitment Ltd ,100191-101 ,"1,488.48",
DFID,DFID,08/11/2012,Contract & Agency Staff ,Finance and Corporate Performance Division ,Hays Specialist Recruitment Ltd ,100201-101 ,"1,260.00",
DFID,DFID,08/11/2012,Water charges ,East and Central Africa ,EWSA ,101628-101 ,"1,186.91",
DFID,DFID,08/11/2012,Contract & Agency Staff ,Finance and Corporate Performance Division ,Hays Specialist Recruitment Ltd ,100201-101 ,"1,130.16",
DFID,DFID,08/11/2012,Training - Course Fees ,Asia  Caribbean and Overseas Territories ,RedR UK ,101621-108 ,"1,054.00",
DFID,DFID,08/11/2012,Books & Publications ,Human Resources Security & Facilities Division ,Inclusive Learning/Skill Boosters ,100269-119 ,"1,012.00",
DFID,DFID,08/11/2012,Other Building Costs ,West and Southern Africa ,Kay Two Zambia Limited ,101637-101 ,950.88,
DFID,DFID,08/11/2012,Air fares ,West and Southern Africa ,DANA Agency ,101620-101 ,925.22,
DFID,DFID,08/11/2012,Vehicle Petrol & Oil ,Asia  Caribbean and Overseas Territories ,QUTAB SERVICE STATION ,201689-105 ,872.63,
DFID,DFID,08/11/2012,Technical and Advisory Services ,Research and Evidence Division ,RICK DAVIES ,201014-102 ,720.00,
DFID,DFID,08/11/2012,Building Plant - Air Conditioners ,West and Southern Africa ,Drake & Gorham ( Z) Ltd ,101637-101 ,701.07,
DFID,DFID,08/11/2012,Conferences  Seminars & Meeting/Event Resource ,Western Asia and Stabilisation Division ,Maureen Brown ,203350-101 ,698.57,
DFID,DFID,08/11/2012,Contract & Agency Staff ,Asia  Caribbean and Overseas Territories ,Hays Specialist Recruitment Ltd ,100084-101 ,672.76,
DFID,DFID,08/11/2012,Air fares ,East and Central Africa ,The Express Travel Group ,101612-101 ,658.59,
DFID,DFID,08/11/2012,Electricity ,East and Central Africa ,EWSA ,100212-101 ,651.66,
DFID,DFID,08/11/2012,Contract & Agency Staff ,Asia  Caribbean and Overseas Territories ,Hays Specialist Recruitment Ltd ,100084-101 ,642.20,
DFID,DFID,08/11/2012,Air fares ,East and Central Africa ,The Express Travel Group ,100082-101 ,625.38,
DFID,DFID,08/11/2012,Electricity ,East and Central Africa ,EWSA ,101628-101 ,624.32,
DFID,DFID,08/11/2012,Air fares ,West and Southern Africa ,DANA Agency ,101620-101 ,593.49,
DFID,DFID,08/11/2012,Telephone Usage & services ,West and Southern Africa ,ABICA ,101620-101 ,504.00,
DFID,DFID,09/11/2012,Aid Programme - Other Financial Aid to Government ,Asia  Caribbean and Overseas Territories , The Government of India ,114487-101 ,"27,347,000.00",
DFID,DFID,09/11/2012,Aid Programme - Other Financial Aid to Government ,Asia  Caribbean and Overseas Territories , The Government of India ,114487-102 ,"9,115,000.00",
DFID,DFID,09/11/2012,Aid Programme - Trust Funds contributions ,Middle East & North Africa Division (MENAD) ,IBRD HSBC T ,202564-101 ,"7,500,000.00",
DFID,DFID,09/11/2012,Aid Programme - Other Financial Aid to Government ,West and Southern Africa ,Ministry of Finance & Economic Planning Ghana Election Support ,202477-105 ,"1,693,286.24",
DFID,DFID,09/11/2012,Aid Programme - Core contributions ,Policy Division ,IUCN - THE WORLD CONSERVATION UNION ,203034-104 ,"763,049.00",
DFID,DFID,09/11/2012,Aid Programme - Accountable Grant Payments ,Middle East & North Africa Division (MENAD) ,Supplier Name withheld ,203216-117 ,"571,578.00",
DFID,DFID,09/11/2012,Aid Programme - Trust Funds contributions ,Asia  Caribbean and Overseas Territories ,IBRD (HSBC)  C/O THE WORLD BANK ,201989-102 ,"400,000.00",
DFID,DFID,09/11/2012,Aid Programme - Accountable Grant Payments ,Asia  Caribbean and Overseas Territories ,THE ASIA FOUNDATION ,202798-102 ,"168,460.63",
DFID,DFID,09/11/2012,Aid Programme - Accountable Grant Payments ,Policy Division ,Heath Action International ,202779-101 ,"168,065.00",
DFID,DFID,09/11/2012,Aid Programme - Accountable Grant Payments ,Asia  Caribbean and Overseas Territories ,CHRISTIAN AID ,108078-104 ,"151,097.75",
DFID,DFID,09/11/2012,Aid Programme - Accountable Grant Payments ,Asia  Caribbean and Overseas Territories ,Oxfam (India) Trust ,108078-107 ,"134,678.00",
DFID,DFID,09/11/2012,Repairs  Maint  Alter - Property & Constrct. Services ,East and Central Africa ,IPA-International Procurement Agency (BV) ,203542-106 ,"129,941.35",
DFID,DFID,09/11/2012,Aid Programme - Accountable Grant Payments ,Asia  Caribbean and Overseas Territories ,THE SAVE THE CHILDREN FUND ,108078-105 ,"121,791.00",
DFID,DFID,09/11/2012,Technical and Advisory Services ,Asia  Caribbean and Overseas Territories ,OPTIONS CONSULTANCY SERVICES LIMITED ,113963-101 ,"91,104.54",
DFID,DFID,09/11/2012,Repairs  Maint  Alter - Property & Constrct. Services ,East and Central Africa ,APLUS-SUDAN PROJECT MANANGMENT CO LTD ,202586-101 ,"40,480.52",Upgrade and maintenance of new DFID South Sudan office 
DFID,DFID,09/11/2012,Technical and Advisory Services ,West and Southern Africa ,The World Bank (EFO) ,202785-101 ,"40,000.00",
DFID,DFID,09/11/2012,Aid Programme - Accountable Grant Payments ,Communications Division ,TROCAIRE ,202197-101 ,"33,619.00",
DFID,DFID,09/11/2012,Aid Programme - Accountable Grant Payments ,Asia  Caribbean and Overseas Territories ,SKILLSHARE INTERNATIONAL ,108078-108 ,"33,597.00",
DFID,DFID,09/11/2012,Aid Programme - Voluntary contributions ,West and Southern Africa ,COMESA Zambia ,201927-107 ,"32,028.85",
DFID,DFID,09/11/2012,Technical and Advisory Services ,Policy Division ,HLSP LIMITED ,201261-101 ,"27,056.35",
DFID,DFID,09/11/2012,Technical and Advisory Services ,Joint Trade Policy Division ,Rewired State ,203530-102 ,"21,600.00",
DFID,DFID,09/11/2012,Aid Programme - Accountable Grant Payments ,Asia  Caribbean and Overseas Territories ,VOLUNTARY SERVICE OVERSEAS ,108078-103 ,"17,764.00",
DFID,DFID,09/11/2012,Technical and Advisory Services ,International Relations Division ,Data GISconsulting Sh.P.K. ,202961-101 ,"14,360.62",
DFID,DFID,09/11/2012,Secure Staff Accomodation ,East and Central Africa ,Supplier Name withheld ,202913-104 ,"12,880.80",
DFID,DFID,09/11/2012,Technical and Advisory Services ,West and Southern Africa ,Brigitte B. ,201123-102 ,"12,747.33",
DFID,DFID,09/11/2012,Technical and Advisory Services ,Asia  Caribbean and Overseas Territories ,Recipient name withheld ,202799-103 ,"8,375.00",
DFID,DFID,09/11/2012,Repairs  Maint  Alter - Property & Constrct. Services ,East and Central Africa ,DMS AFRICA ,202594-101 ,"7,341.23",
DFID,DFID,09/11/2012,Technical and Advisory Services ,West and Southern Africa ,Camco Advisory Services Kenya Ltd ,202536-103 ,"7,248.12",
DFID,DFID,09/11/2012,Technical and Advisory Services ,West and Southern Africa ,Charles Kendall & Partners ,202214-103 ,"7,111.38",
DFID,DFID,09/11/2012,Technical and Advisory Services ,West and Southern Africa ,Pat Hiddleston ,103269-101 ,"6,684.66",
DFID,DFID,09/11/2012,Electricity ,Human Resources Security & Facilities Division ,EDF ENERGY ,203717-101 ,"5,256.24",
DFID,DFID,09/11/2012,Technical and Advisory Services ,East and Central Africa ,Die Tuin Consulting ,202844-101 ,"4,411.60",
DFID,DFID,09/11/2012,Technical and Advisory Services ,East and Central Africa ,IPA-International Procurement Agency (BV) ,113400-111 ,"4,387.30",
DFID,DFID,09/11/2012,Recruitment costs ,Human Resources Security & Facilities Division ,Job Board Enterprises ,100269-127 ,"3,540.00",
DFID,DFID,09/11/2012,Air fares ,East and Central Africa ,The Express Travel Group ,202913-104 ,"3,377.77",
DFID,DFID,09/11/2012,Technical and Advisory Services ,West and Southern Africa ,Charles Kendall & Partners ,202214-103 ,"3,102.90",
DFID,DFID,09/11/2012,Technical and Advisory Services ,Research and Evidence Division ,Ian C Davies Conseil Inc ,201014-102 ,"2,798.60",
DFID,DFID,09/11/2012,Telephone Usage & services ,West and Southern Africa ,MTN Nigeria Communications Ltd ,101622-101 ,"2,332.75",
DFID,DFID,09/11/2012,Training - Travel & Subsistence ,East and Central Africa ,The Express Travel Group ,101612-101 ,"2,028.14",
DFID,DFID,09/11/2012,Relocation costs ,Human Resources Security & Facilities Division ,CROWN RELOCATIONS  UK ,100269-161 ,"2,009.00",
DFID,DFID,09/11/2012,Repairs  Maint  Alter - Property & Constrct. Services ,East and Central Africa ,DMS AFRICA ,202586-101 ,"1,835.31",
DFID,DFID,09/11/2012,Contract & Agency Staff ,Policy Division ,Hays Specialist Recruitment Ltd ,100191-101 ,"1,701.12",
DFID,DFID,09/11/2012,Contract & Agency Staff ,Policy Division ,Hays Specialist Recruitment Ltd ,100191-101 ,"1,658.59",
DFID,DFID,09/11/2012,Telephone Usage & services ,West and Southern Africa ,MTN (Zambia) Limited ,101637-101 ,"1,654.08",
DFID,DFID,09/11/2012,Other non-passenger transportation ,West and Southern Africa ,Dangerous Goods International Global Logistics SA (PTY) LTD ,101637-101 ,"1,607.10",
DFID,DFID,09/11/2012,Contract & Agency Staff ,Finance and Corporate Performance Division ,MICHAEL PAGE INTERNATIONAL RECRUITMENT LIMITED ,100201-101 ,"1,534.32",
DFID,DFID,09/11/2012,Contract & Agency Staff ,Finance and Corporate Performance Division ,MICHAEL PAGE INTERNATIONAL RECRUITMENT LIMITED ,100201-101 ,"1,534.32",
DFID,DFID,09/11/2012,Hotels - Accommodation only ,Policy Division ,Recipient name withheld ,202402-104 ,"1,506.07",
DFID,DFID,09/11/2012,Contract & Agency Staff ,Finance and Corporate Performance Division ,Search Consultancy Ltd ,100201-101 ,"1,200.00",
DFID,DFID,09/11/2012,Training - Course Fees ,West and Southern Africa ,Harvey World Travel Centurion ,101631-101 ,980.09,
DFID,DFID,09/11/2012,Technical and Advisory Services ,Joint Trade Policy Division ,Eggplant12 Films Ltd ,203530-102 ,950.00,
DFID,DFID,09/11/2012,Technical and Advisory Services ,Research and Evidence Division ,Development Evaluation Consulting LLC ,201014-102 ,942.90,
DFID,DFID,09/11/2012,Technical and Advisory Services ,Asia  Caribbean and Overseas Territories ,Recipient name withheld ,202799-103 ,940.00,
DFID,DFID,23/11/2012,Training Providers/Facilitation Services ,Top Management Group ,Pilgrims Group ,100232-109 ,634.14,
DFID,DFID,09/11/2012,Other non-passenger transportation ,West and Southern Africa ,Dangerous Goods International Global Logistics SA (PTY) LTD ,100254-101 ,756.28,
DFID,DFID,09/11/2012,Training Providers/Facilitation Services ,International Finance Division ,KINGS COLLEGE LONDON ,202259-101 ,750.00,
DFID,DFID,30/11/2012,Hostile Environment Training ,West and Southern Africa ,Pilgrims Group ,100189-101 ,634.14,
DFID,DFID,09/11/2012,Training - Travel & Subsistence ,West and Southern Africa ,British Airways Ltd ,101637-101 ,638.03,
DFID,DFID,09/11/2012,Telephone Usage & services ,West and Southern Africa ,MTN Nigeria Communications Ltd ,100152-101 ,578.84,
DFID,DFID,09/11/2012,Hotels - Accommodation only ,Conflict Humanitarian and Security Division ,Recipient name withheld ,202410-101 ,556.14,
DFID,DFID,09/11/2012,Technical and Advisory Services ,Human Resources Security & Facilities Division ,BRUTON KNOWLES ,100187-101 ,552.96,
DFID,DFID,09/11/2012,Hotels - Accommodation only ,West and Southern Africa ,Harvey World Travel Centurion ,101631-101 ,528.61,
DFID,DFID,09/11/2012,Training - Travel & Subsistence ,East and Central Africa ,The Express Travel Group ,100082-101 ,503.71,
DFID,DFID,11/11/2012,Technical and Advisory Services ,Western Asia and Stabilisation Division ,Supplier Name withheld ,200970-101 ,"11,488.83",
DFID,DFID,11/11/2012,Air fares ,Asia  Caribbean and Overseas Territories ,Saimon Overseas Ltd ,101603-102 ,"5,179.57",
DFID,DFID,11/11/2012,Air fares ,Western Asia and Stabilisation Division ,Supplier Name withheld ,101601-110 ,"2,514.44",
DFID,DFID,11/11/2012,Air fares ,Asia  Caribbean and Overseas Territories ,Aryan Tourist and Travel Agency ,100084-101 ,"1,030.58",
DFID,DFID,11/11/2012,Air fares ,Asia  Caribbean and Overseas Territories ,Saimon Overseas Ltd ,101603-101 ,898.05,
DFID,DFID,12/11/2012,Aid Programme - Emergency Food Aid ,West and Southern Africa ,WFP CONTRIBUTIONS UNIT ,203681-102 ,"5,457,000.00",
DFID,DFID,12/11/2012,Aid Programme - Partnership Programme Arrangements ,Policy Division ,  Norwegian Refugee Council ,202688-101 ,"635,786.25",
DFID,DFID,12/11/2012,Technical and Advisory Services ,East and Central Africa ,CHARLES KENDALL & PARTNERS LIMITED (PROCUREMENT) ,202513-101 ,"485,576.73",
DFID,DFID,12/11/2012,Aid Programme - Accountable Grant Payments ,East and Central Africa ,EISA ,200892-101 ,"446,844.41",
DFID,DFID,12/11/2012,Aid Programme - Accountable Grant Payments ,Asia  Caribbean and Overseas Territories ,Helvetas Nepal ,201489-101 ,"401,946.81",
DFID,DFID,12/11/2012,Aid Programme - Accountable Grant Payments ,Asia  Caribbean and Overseas Territories ,ActionAid India ,108078-106 ,"320,394.38",
DFID,DFID,12/11/2012,Research & Development costs ,Research and Evidence Division ,LIVERPOOL SCHOOL OF TROPICAL MEDICINE ,201401-101 ,"217,660.39",
DFID,DFID,12/11/2012,Technical and Advisory Services ,Asia  Caribbean and Overseas Territories ,IMC Worldwide Ltd ,113537-103 ,"207,052.88",
DFID,DFID,12/11/2012,Aid Programme - Accountable Grant Payments ,East and Central Africa ,IPAS ,113656-101 ,"198,499.14",
DFID,DFID,12/11/2012,Aid Programme - Other Financial Aid to Government ,East and Central Africa ,The Federal Democratic Republic of Ethiopia Ministry of Education ,201587-110 ,"185,760.97",
DFID,DFID,12/11/2012,Aid Programme - Accountable Grant Payments ,Policy Division ,Chatham House Enterprises ,201724-111 ,"150,599.00",
DFID,DFID,12/11/2012,Technical and Advisory Services ,East and Central Africa ,CHARLES KENDALL & PARTNERS LIMITED (PROCUREMENT) ,202513-104 ,"142,566.84",
DFID,DFID,12/11/2012,Technical and Advisory Services ,Asia  Caribbean and Overseas Territories ,IMC Worldwide Ltd ,113537-101 ,"110,417.54",
DFID,DFID,12/11/2012,Technical and Advisory Services ,Asia  Caribbean and Overseas Territories ,GHK CONSULTING LTD ,114168-101 ,"109,513.00",
DFID,DFID,12/11/2012,Research & Development costs ,Research and Evidence Division ,THE UNIVERSITY OF MANCHESTER ,201010-101 ,"108,784.04",
DFID,DFID,12/11/2012,Technical and Advisory Services ,West and Southern Africa ,Charles Kendall & Partners ,202214-103 ,"106,200.00",
DFID,DFID,12/11/2012,Technical and Advisory Services ,Asia  Caribbean and Overseas Territories ,IMC Worldwide Ltd ,113537-102 ,"103,362.10",
DFID,DFID,12/11/2012,Aid Programme - Accountable Grant Payments ,Asia  Caribbean and Overseas Territories ,WaterAid  (INDIA) ,108078-109 ,"100,735.00",
DFID,DFID,12/11/2012,Technical and Advisory Services ,Asia  Caribbean and Overseas Territories ,INFRASTRUCTURE PROFESSIONALS ENTERPRISE ,114040-101 ,"84,241.91",
DFID,DFID,12/11/2012,Aid Programme - Accountable Grant Payments ,Policy Division ,European Timber Trade Federation ,201724-107 ,"62,879.36",
DFID,DFID,12/11/2012,Technical and Advisory Services ,West and Southern Africa ,PKF (UK) LLP ,104600-105 ,"54,333.30",
DFID,DFID,12/11/2012,Research & Development costs ,Research and Evidence Division ,Royal Veterinary College ,203112-101 ,"40,441.20",
DFID,DFID,12/11/2012,Aid Programme - Accountable Grant Payments ,Asia  Caribbean and Overseas Territories ,MAF UK ,202660-102 ,"40,000.00",
DFID,DFID,12/11/2012,Oil - Other Utilities ,East and Central Africa ,TAAM Petroleum Ltd(US$) ,202586-101 ,"38,500.00",Fuel for residential and office generators for September  - South Sudan
DFID,DFID,12/11/2012,Technical and Advisory Services ,East and Central Africa ,CHARLES KENDALL & PARTNERS LIMITED (PROCUREMENT) ,202513-104 ,"37,700.00",
DFID,DFID,12/11/2012,Technical and Advisory Services ,Communications Division ,ITAD LTD ,202155-103 ,"34,680.00",
DFID,DFID,12/11/2012,Technical and Advisory Services ,Asia  Caribbean and Overseas Territories ,MOTT MACDONALD LTD ,201645-105 ,"30,647.16",
DFID,DFID,12/11/2012,Technical and Advisory Services ,International Finance Division ,Nathan Associates London Ltd ,114009-101 ,"25,336.10",
DFID,DFID,12/11/2012,Research & Development costs ,Research and Evidence Division ,Royal Veterinary College ,203112-101 ,"20,220.60",
DFID,DFID,12/11/2012,Research & Development costs ,Research and Evidence Division ,Royal Veterinary College ,203112-101 ,"20,220.60",
DFID,DFID,12/11/2012,Electricity ,Human Resources Security & Facilities Division ,EDF ENERGY ,100106-101 ,"18,000.00",
DFID,DFID,12/11/2012,Training - Course Fees ,Research and Evidence Division ,HM TREASURY VOTES CASH ACCOUNT ,202332-103 ,"15,000.00",
DFID,DFID,12/11/2012,Technical and Advisory Services ,Asia  Caribbean and Overseas Territories ,OXFORD POLICY MANAGEMENT ,202083-101 ,"14,864.97",
DFID,DFID,12/11/2012,Technical and Advisory Services ,East and Central Africa ,SERVICE FOR GENERATIONS INTERNATIONAL ,202401-104 ,"13,879.79",
DFID,DFID,12/11/2012,Water charges ,Human Resources Security & Facilities Division ,BUSINESS STREAM ,100106-101 ,"7,617.08",
DFID,DFID,12/11/2012,Technical and Advisory Services ,Western Asia and Stabilisation Division ,METROP0LITAN POLICE ,203336-101 ,"7,298.81",
DFID,DFID,12/11/2012,Technical and Advisory Services ,Asia  Caribbean and Overseas Territories ,Foreign & Commonwealth Office ,202083-101 ,"7,225.59",
DFID,DFID,12/11/2012,Aid Programme - Accountable Grant Payments ,West and Southern Africa ,Carbon Trust ,202555-101 ,"6,960.08",
DFID,DFID,12/11/2012,Gas ,Human Resources Security & Facilities Division ,Government Procurement Service ,203717-101 ,"6,793.86",
DFID,DFID,12/11/2012,Facilities Management payments ,East and Central Africa ,Architecture Pro Ltd (RW) ,101628-101 ,"4,090.63",
DFID,DFID,12/11/2012,Further Education costs ,East and Central Africa ,Green Thinking (Services) Ltd ,201913-102 ,"3,598.80",
DFID,DFID,12/11/2012,Vehicle Petrol & Oil ,East and Central Africa ,TAAM Petroleum Ltd(US$) ,202586-101 ,"2,625.00",
DFID,DFID,12/11/2012,Electricity ,Human Resources Security & Facilities Division ,Government Procurement Service ,203717-101 ,"2,532.86",
DFID,DFID,12/11/2012,Hotels - Accommodation only ,East and Central Africa ,Juba Grand Hotel ,202586-101 ,"2,376.17",
DFID,DFID,12/11/2012,Hotels - Accommodation only ,East and Central Africa ,Logali House Ltd(US$) ,202594-101 ,"1,966.85",
DFID,DFID,12/11/2012,Storage & Distribution costs ,West and Southern Africa ,Conote Services Ltd ,100152-109 ,"1,765.29",
DFID,DFID,12/11/2012,Technical and Advisory Services ,International Finance Division ,CHARITIES AID FOUNDATION ,202936-101 ,"1,702.40",
DFID,DFID,12/11/2012,Facilities Management payments ,East and Central Africa ,Public Health Solutions Limited ,100234-101 ,"1,696.46",
DFID,DFID,12/11/2012,Generators & spares ,West and Southern Africa ,NP (SL) Ltd ,101629-101 ,"1,621.98",
DFID,DFID,12/11/2012,Generators & spares ,West and Southern Africa ,NP (SL) Ltd ,101629-101 ,"1,621.98",
DFID,DFID,12/11/2012,Technical and Advisory Services ,Research and Evidence Division ,Ian C Davies Conseil Inc ,201014-102 ,"1,607.00",
DFID,DFID,30/11/2012,Hostile Environment Training ,West and Southern Africa ,Pilgrims Group ,100189-101 ,634.14,
DFID,DFID,12/11/2012,Telephone Usage & services ,East and Central Africa ,AFSAT Communications Uganda Limited ,101628-101 ,"1,303.54",
DFID,DFID,15/11/2012,Hostile Environment Training ,West and Southern Africa ,Pilgrims Group ,101622-101 ,638.47,
DFID,DFID,12/11/2012,Facilities Management payments ,West and Southern Africa ,Mr Eze Samson ,101622-101 ,"1,208.05",
DFID,DFID,12/11/2012,Contract & Agency Staff ,Finance and Corporate Performance Division ,Hays Specialist Recruitment Ltd ,100201-101 ,"1,165.50",
DFID,DFID,12/11/2012,Contract & Agency Staff ,Finance and Corporate Performance Division ,MICHAEL PAGE INTERNATIONAL RECRUITMENT LIMITED ,100201-101 ,"1,150.02",
DFID,DFID,12/11/2012,Contract & Agency Staff ,Finance and Corporate Performance Division ,MICHAEL PAGE INTERNATIONAL RECRUITMENT LIMITED ,100201-101 ,"1,150.02",
DFID,DFID,12/11/2012,Contract & Agency Staff ,Finance and Corporate Performance Division ,Hays Specialist Recruitment Ltd ,100201-101 ,"1,102.50",
DFID,DFID,12/11/2012,Air fares ,East and Central Africa ,Highlight Travel SS T/A BCD Travel ,201597-105 ,957.58,
DFID,DFID,12/11/2012,Facilities Management payments ,East and Central Africa ,Architecture Pro Ltd (RW) ,101628-101 ,842.03,
DFID,DFID,12/11/2012,Repairs  Maint  Alter - Property & Constrct. Services ,East and Central Africa ,V. Karibian ,101612-101 ,812.01,
DFID,DFID,12/11/2012,Air fares ,Human Resources Security & Facilities Division ,Catherine Murphy Mwareata ,100269-128 ,781.04,
DFID,DFID,12/11/2012,Hotels - Accommodation only ,International Relations Division ,Recipient name withheld ,100240-103 ,762.00,
DFID,DFID,12/11/2012,Other Building Products ,Human Resources Security & Facilities Division ,CAPITAL SOLUTIONS ,100106-101 ,750.00,
DFID,DFID,12/11/2012,Air fares ,West and Southern Africa ,Recipient name withheld ,101610-101 ,710.00,
DFID,DFID,12/11/2012,Air fares ,West and Southern Africa ,Recipient name withheld ,101610-101 ,710.00,
DFID,DFID,12/11/2012,Storage & Distribution costs ,Business Solutions Division Level ,Ingar Mozambique Lda ,203329-103 ,682.76,
DFID,DFID,12/11/2012,Medical/Health Services ,East and Central Africa ,MAKRO Pharmacy (U) Ltd ,101635-101 ,620.25,
DFID,DFID,12/11/2012,Hotels - Accommodation only ,Asia  Caribbean and Overseas Territories ,Hotel Lake Castle Limited ,114058-101 ,570.72,
DFID,DFID,12/11/2012,Telephone Usage & services ,East and Central Africa ,AFSAT Communications Uganda Limited ,100212-101 ,558.66,
DFID,DFID,12/11/2012,Technical and Advisory Services ,West and Southern Africa ,Nashua Mobile (Pty) Ltd ,114050-101 ,552.59,
DFID,DFID,12/11/2012,Repairs  Maint  Alter - Property & Constrct. Services ,East and Central Africa ,V. Karibian ,101612-101 ,550.35,
DFID,DFID,13/11/2012,Hostile Environment Training ,East and Central Africa ,Pilgrims Group ,101616-101 ,666.19,
DFID,DFID,13/11/2012,Aid Programme - Accountable Grant Payments ,East and Central Africa ,THE SAVE THE CHILDREN FUND ,203183-106 ,"661,913.00",
DFID,DFID,13/11/2012,Aid Programme - Other Financial Aid to Government ,Asia  Caribbean and Overseas Territories ,Jamaica Constabulary Force ,202591-101 ,"550,000.00",
DFID,DFID,13/11/2012,Aid Programme - Other Financial Aid to Government ,Asia  Caribbean and Overseas Territories ,JCF Anti-Corruption Branch,202591-101 ,"250,000.00",
DFID,DFID,13/11/2012,Aid Programme - Accountable Grant Payments ,Research and Evidence Division ,Global Development Network ,112135-103 ,"205,000.00",
DFID,DFID,13/11/2012,Aid Programme - Accountable Grant Payments ,Conflict Humanitarian and Security Division ,International Crisis Group ,202673-101 ,"170,000.00",
DFID,DFID,13/11/2012,Aid Programme - Accountable Grant Payments ,Asia  Caribbean and Overseas Territories ,SNV Vietnam ,200608-104 ,"146,525.92",
DFID,DFID,13/11/2012,Aid Programme - Core contributions ,Research and Evidence Division ,GLOBAL FORUM ON AGRICULTURAL RESEARCH ,202748-101 ,"120,000.00",
DFID,DFID,13/11/2012,Aid Programme - Other Financial Aid to Government ,East and Central Africa ,Financial and Legal Sector Technical Assistance Ministry of Finance Kenya ,103415-101 ,"118,077.52",
DFID,DFID,13/11/2012,Aid Programme - Accountable Grant Payments ,Western Asia and Stabilisation Division ,Supplier Name withheld ,200996-101 ,"111,667.10",
DFID,DFID,13/11/2012,Technical and Advisory Services ,Western Asia and Stabilisation Division ,MOTT MACDONALD LTD ,201846-102 ,"63,852.34",
DFID,DFID,13/11/2012,Technical and Advisory Services ,West and Southern Africa ,Charles Kendall & Partners ,202214-103 ,"45,106.00",
DFID,DFID,13/11/2012,Technical and Advisory Services ,Human Resources Security & Facilities Division ,TURNER & TOWNSEND ,203156-101 ,"41,897.56",
DFID,DFID,13/11/2012,Technical and Advisory Services ,West and Southern Africa ,CHARLES KENDALL & PARTNERS LIMITED (PROCUREMENT) ,113961-106 ,"29,375.00",
DFID,DFID,13/11/2012,Electricity ,Human Resources Security & Facilities Division ,EDF ENERGY ,100187-101 ,"26,921.58",DFID HQ (London) premises annual  electricity cost for 2012/2013  
DFID,DFID,13/11/2012,Research & Development costs ,Research and Evidence Division ,Public World Ltd. ,203656-101 ,"24,600.00",
DFID,DFID,13/11/2012,Technical and Advisory Services ,Western Asia and Stabilisation Division ,Supplier Name withheld ,202112-101 ,"24,286.57",
DFID,DFID,13/11/2012,Technical and Advisory Services ,Western Asia and Stabilisation Division ,Semiotics Consultants (Pvt) Limited ,202328-102 ,"17,742.62",
DFID,DFID,13/11/2012,Secure Staff Accomodation ,East and Central Africa ,Supplier Name withheld ,101634-101 ,"15,018.77",
DFID,DFID,13/11/2012,Secure Staff Accomodation ,East and Central Africa ,Supplier Name withheld ,101634-101 ,"12,390.49",
DFID,DFID,13/11/2012,Technical and Advisory Services ,Business Solutions Division Level ,OPIN SYSTEMS LIMITED ,200002-151 ,"11,678.92",
DFID,DFID,13/11/2012,Technical and Advisory Services ,Western Asia and Stabilisation Division ,Semiotics Consultants (Pvt) Limited ,202378-107 ,"11,536.21",
DFID,DFID,13/11/2012,Technical and Advisory Services ,Asia  Caribbean and Overseas Territories ,Niall Johnston ,200593-110 ,"11,000.00",
DFID,DFID,13/11/2012,Technical and Advisory Services ,Western Asia and Stabilisation Division ,Maliha H. Hussain ,114153-101 ,"10,808.78",
DFID,DFID,13/11/2012,Technical and Advisory Services ,Western Asia and Stabilisation Division ,Semiotics Consultants (Pvt) Limited ,114153-101 ,"10,789.84",
DFID,DFID,13/11/2012,Contract & Agency Staff ,Business Solutions Division Level ,ALLEGIS GROUP LIMITED ,200001-101 ,"6,726.00",
DFID,DFID,13/11/2012,Technical and Advisory Services ,West and Southern Africa ,Komna Oladipo Sessi ,104254-101 ,"6,551.98",
DFID,DFID,13/11/2012,Contract & Agency Staff ,Business Solutions Division Level ,ALLEGIS GROUP LIMITED ,200001-101 ,"5,928.00",
DFID,DFID,13/11/2012,Air fares ,Top Management Group ,Corporate Travel Provider ,100232-108 ,"5,651.39",
DFID,DFID,13/11/2012,Air fares ,Top Management Group ,Corporate Travel Provider ,100232-108 ,"5,651.39",
DFID,DFID,13/11/2012,Contract & Agency Staff ,Business Solutions Division Level ,Networkers Recruitment Services Ltd ,200001-101 ,"5,627.76",
DFID,DFID,13/11/2012,Technical and Advisory Services ,Western Asia and Stabilisation Division ,Semiotics Consultants (Pvt) Limited ,114153-101 ,"5,437.74",
DFID,DFID,13/11/2012,Technical and Advisory Services ,Asia  Caribbean and Overseas Territories ,Scott Baum ,200581-113 ,"5,199.98",
DFID,DFID,13/11/2012,Office Equipment - Purchases ,Western Asia and Stabilisation Division ,HASCOMBE BUSINESS SOLUTION (PVT.) LT ,100186-101 ,"5,116.32",
DFID,DFID,13/11/2012,Repairs  Maint  Alter - Property & Constrct. Services ,East and Central Africa ,SAFECON Electro Mechanical Works PLC ,100082-101 ,"4,936.28",
DFID,DFID,13/11/2012,Air fares ,Top Management Group ,Corporate Travel Provider ,100232-103 ,"4,537.39",
DFID,DFID,13/11/2012,Contract & Agency Staff ,Business Solutions Division Level ,ALLEGIS GROUP LIMITED ,200001-101 ,"4,329.00",
DFID,DFID,13/11/2012,Air fares ,Research and Evidence Division ,Corporate Travel Provider ,100039-102 ,"4,159.50",
DFID,DFID,13/11/2012,Air fares ,Top Management Group ,Corporate Travel Provider ,100232-105 ,"3,862.15",
DFID,DFID,13/11/2012,Air fares ,Top Management Group ,Corporate Travel Provider ,100232-105 ,"3,862.15",
DFID,DFID,13/11/2012,Air fares ,Human Resources Security & Facilities Division ,Corporate Travel Provider ,100261-101 ,"3,862.15",
DFID,DFID,13/11/2012,Facilities Management payments ,West and Southern Africa ,Biga Projects Ltd ,101622-101 ,"3,816.13",
DFID,DFID,13/11/2012,Data Network - land lines ,Business Solutions Division Level ,KUBE NETWORKS LTD ,200002-130 ,"3,684.91",
DFID,DFID,13/11/2012,Air fares ,Research and Evidence Division ,Corporate Travel Provider ,202333-101 ,"3,499.69",
DFID,DFID,13/11/2012,Technical and Advisory Services ,Western Asia and Stabilisation Division ,SHAHID HAFIZ KARDAR ,202378-107 ,"3,428.32",
DFID,DFID,13/11/2012,Technical and Advisory Services ,Western Asia and Stabilisation Division ,Supplier Name withheld ,202112-101 ,"3,395.30",
DFID,DFID,13/11/2012,Technical and Advisory Services ,West and Southern Africa ,Basel Institute On Governance ,202742-101 ,"3,307.85",
DFID,DFID,13/11/2012,Contract & Agency Staff ,Business Solutions Division Level ,ALLEGIS GROUP LIMITED ,200001-101 ,"3,276.00",
DFID,DFID,13/11/2012,Technical and Advisory Services ,West and Southern Africa ,Family Kingdom Limited ,203621-102 ,"2,822.53",
DFID,DFID,13/11/2012,Secure Staff Accomodation ,Asia  Caribbean and Overseas Territories ,Supplier Name withheld ,101603-101 ,"2,709.99",
DFID,DFID,13/11/2012,Contract & Agency Staff ,Business Solutions Division Level ,ALLEGIS GROUP LIMITED ,200005-114 ,"2,550.00",
DFID,DFID,13/11/2012,Air fares ,Western Asia and Stabilisation Division ,Corporate Travel Provider ,101601-110 ,"2,390.52",
DFID,DFID,13/11/2012,Electricity ,Asia  Caribbean and Overseas Territories ,Neptune Properties ,100025-101 ,"2,258.27",
DFID,DFID,13/11/2012,Air fares ,Asia  Caribbean and Overseas Territories ,Corporate Travel Provider ,101604-101 ,"2,236.46",
DFID,DFID,13/11/2012,Air fares ,Asia  Caribbean and Overseas Territories ,Corporate Travel Provider ,201739-101 ,"2,206.54",
DFID,DFID,13/11/2012,Vehicle Repairs & Maintenance ,East and Central Africa ,Auto-African Garage Ltd Juba ,202586-101 ,"2,193.76",
DFID,DFID,13/11/2012,Air fares ,International Finance Division ,Corporate Travel Provider ,202259-101 ,"2,110.89",
DFID,DFID,13/11/2012,Technical and Advisory Services ,Western Asia and Stabilisation Division ,SHAHID HAFIZ KARDAR ,202378-107 ,"2,063.55",
DFID,DFID,13/11/2012,Air fares ,Top Management Group ,Corporate Travel Provider ,100232-105 ,"1,941.59",
DFID,DFID,13/11/2012,Secure Staff Accomodation ,West and Southern Africa ,Supplier Name withheld ,101618-101 ,"1,880.92",
DFID,DFID,13/11/2012,Relocation costs ,West and Southern Africa ,CROWN RELOCATIONS  UK ,100214-101 ,"1,850.69",
DFID,DFID,13/11/2012,Air fares ,Human Resources Security & Facilities Division ,Corporate Travel Provider ,201157-102 ,"1,842.39",
DFID,DFID,13/11/2012,Air fares ,Human Resources Security & Facilities Division ,Corporate Travel Provider ,201157-102 ,"1,842.39",
DFID,DFID,13/11/2012,Air fares ,Policy Division ,Corporate Travel Provider ,203577-101 ,"1,800.59",
DFID,DFID,13/11/2012,Training - Course Fees ,International Relations Division ,COMMUNICAID GRP LIMITED ,202319-101 ,"1,791.90",
DFID,DFID,13/11/2012,Technical and Advisory Services ,Western Asia and Stabilisation Division ,Najma Naheed Pirzada ,203508-101 ,"1,739.22",
DFID,DFID,13/11/2012,Repairs  Maint  Alter - Property & Constrct. Services ,East and Central Africa ,SAFECON Electro Mechanical Works PLC ,101612-101 ,"1,679.87",
DFID,DFID,13/11/2012,Air fares ,West and Southern Africa ,Supplier Name withheld ,101622-101 ,"1,671.54",
DFID,DFID,13/11/2012,Contract & Agency Staff ,Finance and Corporate Performance Division ,MICHAEL PAGE INTERNATIONAL RECRUITMENT LIMITED ,100201-101 ,"1,650.00",
DFID,DFID,13/11/2012,Air fares ,Research and Evidence Division ,Corporate Travel Provider ,202392-102 ,"1,579.65",
DFID,DFID,13/11/2012,Air fares ,Western Asia and Stabilisation Division ,Corporate Travel Provider ,101624-101 ,"1,566.87",
DFID,DFID,13/11/2012,Air fares ,Policy Division ,Corporate Travel Provider ,203577-101 ,"1,541.49",
DFID,DFID,13/11/2012,Air fares ,West and Southern Africa ,Corporate Travel Provider ,101610-101 ,"1,540.74",
DFID,DFID,13/11/2012,Air fares ,Western Asia and Stabilisation Division ,Corporate Travel Provider ,101624-101 ,"1,536.90",
DFID,DFID,13/11/2012,Contract & Agency Staff ,Finance and Corporate Performance Division ,MICHAEL PAGE INTERNATIONAL RECRUITMENT LIMITED ,100201-101 ,"1,534.32",
DFID,DFID,13/11/2012,Air fares ,Internal Audit ,Corporate Travel Provider ,100121-101 ,"1,514.99",
DFID,DFID,13/11/2012,Air fares ,Top Management Group ,Corporate Travel Provider ,100232-105 ,"1,477.19",
DFID,DFID,13/11/2012,Air fares ,Top Management Group ,Corporate Travel Provider ,100232-102 ,"1,477.19",
DFID,DFID,13/11/2012,Air fares ,Top Management Group ,Corporate Travel Provider ,100232-102 ,"1,477.19",
DFID,DFID,13/11/2012,Air fares ,Top Management Group ,Corporate Travel Provider ,100232-102 ,"1,477.19",
DFID,DFID,13/11/2012,Air fares ,Western Asia and Stabilisation Division ,Corporate Travel Provider ,101601-110 ,"1,476.30",
DFID,DFID,13/11/2012,Hotels - Accommodation only ,West and Southern Africa ,Supplier Name withheld ,100152-109 ,"1,474.86",
DFID,DFID,13/11/2012,Technical and Advisory Services ,West and Southern Africa ,CHARLES KENDALL & PARTNERS LIMITED (PROCUREMENT) ,113961-106 ,"1,468.75",
DFID,DFID,13/11/2012,Air fares ,West and Southern Africa ,Corporate Travel Provider ,100189-101 ,"1,426.39",
DFID,DFID,13/11/2012,Air fares ,West and Southern Africa ,Corporate Travel Provider ,100189-101 ,"1,426.39",
DFID,DFID,13/11/2012,Air fares ,Research and Evidence Division ,Corporate Travel Provider ,202392-104 ,"1,339.90",
DFID,DFID,13/11/2012,Air fares ,East and Central Africa ,Corporate Travel Provider ,202586-101 ,"1,317.75",
DFID,DFID,13/11/2012,Air fares ,International Finance Division ,Corporate Travel Provider ,202259-101 ,"1,298.09",
DFID,DFID,13/11/2012,Recruitment costs ,Western Asia and Stabilisation Division ,Orient Advertising ,101624-101 ,"1,276.14",
DFID,DFID,13/11/2012,Hotels - Accommodation only ,West and Southern Africa ,Corporate Travel Provider ,101631-101 ,"1,243.55",
DFID,DFID,13/11/2012,Air fares ,Research and Evidence Division ,Corporate Travel Provider ,100088-101 ,"1,232.39",
DFID,DFID,13/11/2012,Air fares ,East and Central Africa ,Corporate Travel Provider ,101625-104 ,"1,215.69",
DFID,DFID,13/11/2012,Air fares ,East and Central Africa ,Corporate Travel Provider ,101625-103 ,"1,203.94",
DFID,DFID,13/11/2012,Air fares ,Western Asia and Stabilisation Division ,Corporate Travel Provider ,202288-105 ,"1,195.09",
DFID,DFID,13/11/2012,Air fares ,West and Southern Africa ,Supplier Name withheld ,101622-101 ,"1,194.69",
DFID,DFID,13/11/2012,Training - Travel & Subsistence ,West and Southern Africa ,COMMUNICAID GRP LIMITED ,101610-101 ,"1,194.60",
DFID,DFID,13/11/2012,Air fares ,West and Southern Africa ,Corporate Travel Provider ,202345-103 ,"1,181.56",
DFID,DFID,13/11/2012,Air fares ,Research and Evidence Division ,Corporate Travel Provider ,202333-101 ,"1,178.44",
DFID,DFID,13/11/2012,Air fares ,Research and Evidence Division ,Corporate Travel Provider ,100039-106 ,"1,158.75",
DFID,DFID,13/11/2012,Air fares ,Research and Evidence Division ,Corporate Travel Provider ,202392-106 ,"1,158.75",
DFID,DFID,13/11/2012,Hotels - Accommodation only ,Western Asia and Stabilisation Division ,Avari Lahore ,101624-101 ,"1,151.00",
DFID,DFID,13/11/2012,Air fares ,Asia  Caribbean and Overseas Territories ,Corporate Travel Provider ,101603-101 ,"1,123.40",
DFID,DFID,13/11/2012,Air fares ,West and Southern Africa ,Corporate Travel Provider ,101613-101 ,"1,095.02",
DFID,DFID,13/11/2012,Air fares ,West and Southern Africa ,Corporate Travel Provider ,101631-101 ,"1,089.29",
DFID,DFID,13/11/2012,Air fares ,West and Southern Africa ,Corporate Travel Provider ,101631-101 ,"1,089.29",
DFID,DFID,13/11/2012,Air fares ,West and Southern Africa ,Corporate Travel Provider ,101610-101 ,"1,064.85",
DFID,DFID,13/11/2012,Water charges ,West and Southern Africa ,Komawara ,101638-103 ,"1,060.42",
DFID,DFID,13/11/2012,Air fares ,West and Southern Africa ,Corporate Travel Provider ,101631-101 ,"1,058.29",
DFID,DFID,13/11/2012,Air fares ,Middle East & North Africa Division (MENAD) ,Corporate Travel Provider ,202398-101 ,"1,037.80",
DFID,DFID,13/11/2012,Electricity ,West and Southern Africa ,Power Holding co of Nigeria ,101622-101 ,"1,026.10",
DFID,DFID,13/11/2012,Air fares ,Western Asia and Stabilisation Division ,Corporate Travel Provider ,101601-110 ,"1,009.99",
DFID,DFID,13/11/2012,Air fares ,International Finance Division ,Corporate Travel Provider ,100111-101 ,"1,008.81",
DFID,DFID,13/11/2012,Air fares ,International Finance Division ,Corporate Travel Provider ,100111-101 ,"1,008.81",
DFID,DFID,13/11/2012,Air fares ,International Finance Division ,Corporate Travel Provider ,100120-101 ,"1,008.81",
DFID,DFID,13/11/2012,Air fares ,International Finance Division ,Corporate Travel Provider ,100111-101 ,992.40,
DFID,DFID,13/11/2012,Air fares ,Western Asia and Stabilisation Division ,Corporate Travel Provider ,100011-110 ,988.70,
DFID,DFID,13/11/2012,Air fares ,Research and Evidence Division ,Corporate Travel Provider ,202392-109 ,962.19,
DFID,DFID,13/11/2012,other information and communication technologies ,Business Solutions Division Level ,NAYATEL (PVT) LTD ,200002-121 ,955.17,
DFID,DFID,13/11/2012,Air fares ,Middle East & North Africa Division (MENAD) ,Corporate Travel Provider ,101619-101 ,949.09,
DFID,DFID,13/11/2012,Aid Programme - Accountable Grant Payments ,Policy Division ,Corporate Travel Provider ,203326-101 ,937.85,
DFID,DFID,13/11/2012,Aid Programme - Accountable Grant Payments ,Policy Division ,Corporate Travel Provider ,203326-101 ,937.85,
DFID,DFID,13/11/2012,Air fares ,Western Asia and Stabilisation Division ,Corporate Travel Provider ,101601-110 ,935.64,
DFID,DFID,13/11/2012,Hotels - Accommodation only ,Asia  Caribbean and Overseas Territories ,Corporate Travel Provider ,101603-102 ,931.42,
DFID,DFID,13/11/2012,Hotels - Accommodation only ,West and Southern Africa ,Corporate Travel Provider ,101613-101 ,930.40,
DFID,DFID,13/11/2012,Hotels - Accommodation only ,West and Southern Africa ,Corporate Travel Provider ,101613-101 ,930.40,
DFID,DFID,13/11/2012,Air fares ,Policy Division ,Corporate Travel Provider ,202419-103 ,921.85,
DFID,DFID,13/11/2012,Air fares ,West and Southern Africa ,Corporate Travel Provider ,101620-101 ,913.79,
DFID,DFID,13/11/2012,Medical/Health Services ,Western Asia and Stabilisation Division ,INTERHEALTH ,202288-104 ,908.05,
DFID,DFID,13/11/2012,Air fares ,Middle East & North Africa Division (MENAD) ,Corporate Travel Provider ,201701-101 ,906.10,
DFID,DFID,13/11/2012,Air fares ,Top Management Group ,Corporate Travel Provider ,100232-105 ,880.20,
DFID,DFID,13/11/2012,Air fares ,Top Management Group ,Corporate Travel Provider ,100232-102 ,880.20,
DFID,DFID,13/11/2012,Air fares ,Top Management Group ,Corporate Travel Provider ,100232-102 ,880.20,
DFID,DFID,13/11/2012,Air fares ,Top Management Group ,Corporate Travel Provider ,100232-102 ,880.20,
DFID,DFID,13/11/2012,Air fares ,Research and Evidence Division ,Corporate Travel Provider ,202392-109 ,879.25,
DFID,DFID,13/11/2012,Air fares ,West and Southern Africa ,Corporate Travel Provider ,103269-108 ,865.10,
DFID,DFID,13/11/2012,Electricity ,West and Southern Africa ,Power Holding co of Nigeria ,101622-101 ,853.54,
DFID,DFID,13/11/2012,Air fares ,International Finance Division ,Corporate Travel Provider ,202259-101 ,845.09,
DFID,DFID,13/11/2012,Air fares ,International Finance Division ,Corporate Travel Provider ,202259-101 ,845.09,
DFID,DFID,13/11/2012,Air fares ,Research and Evidence Division ,Corporate Travel Provider ,202333-102 ,845.09,
DFID,DFID,13/11/2012,Air fares ,Policy Division ,Corporate Travel Provider ,201724-102 ,844.99,
DFID,DFID,13/11/2012,Air fares ,Western Asia and Stabilisation Division ,Corporate Travel Provider ,203336-105 ,831.49,
DFID,DFID,13/11/2012,Air fares ,Policy Division ,Corporate Travel Provider ,202419-103 ,828.89,
DFID,DFID,13/11/2012,Air fares ,Western Asia and Stabilisation Division ,Corporate Travel Provider ,203336-102 ,827.20,
DFID,DFID,13/11/2012,Aid Programme - Accountable Grant Payments ,Policy Division ,Corporate Travel Provider ,203326-101 ,825.36,
DFID,DFID,13/11/2012,Air fares ,Top Management Group ,Corporate Travel Provider ,100232-108 ,824.75,
DFID,DFID,13/11/2012,Aid Programme - Accountable Grant Payments ,Policy Division ,Corporate Travel Provider ,203326-101 ,816.10,
DFID,DFID,13/11/2012,Air fares ,East and Central Africa ,Corporate Travel Provider ,101635-101 ,815.19,
DFID,DFID,13/11/2012,Air fares ,Research and Evidence Division ,Corporate Travel Provider ,202334-101 ,814.15,
DFID,DFID,13/11/2012,Air fares ,Western Asia and Stabilisation Division ,Corporate Travel Provider ,101601-110 ,813.69,
DFID,DFID,13/11/2012,Air fares ,Policy Division ,Corporate Travel Provider ,100277-103 ,810.09,
DFID,DFID,13/11/2012,Air fares ,East and Central Africa ,Corporate Travel Provider ,200657-103 ,809.09,
DFID,DFID,13/11/2012,Electricity ,West and Southern Africa ,Power Holding co of Nigeria ,101622-101 ,808.42,
DFID,DFID,13/11/2012,Air fares ,Western Asia and Stabilisation Division ,Corporate Travel Provider ,202288-105 ,805.38,
DFID,DFID,13/11/2012,Air fares ,East and Central Africa ,Corporate Travel Provider ,101625-102 ,800.55,
DFID,DFID,13/11/2012,Air fares ,West and Southern Africa ,Corporate Travel Provider ,101620-101 ,797.79,
DFID,DFID,13/11/2012,Air fares ,Policy Division ,Corporate Travel Provider ,100275-101 ,791.09,
DFID,DFID,13/11/2012,Air fares ,Asia  Caribbean and Overseas Territories ,Corporate Travel Provider ,100084-101 ,785.25,
DFID,DFID,13/11/2012,Air fares ,Western Asia and Stabilisation Division ,Corporate Travel Provider ,100011-110 ,783.90,
DFID,DFID,13/11/2012,Air fares ,West and Southern Africa ,Corporate Travel Provider ,101618-101 ,781.50,
DFID,DFID,13/11/2012,Hotels - Accommodation only ,Asia  Caribbean and Overseas Territories ,Corporate Travel Provider ,101603-102 ,777.90,
DFID,DFID,13/11/2012,Aid Programme - Accountable Grant Payments ,Policy Division ,Corporate Travel Provider ,203326-101 ,774.55,
DFID,DFID,13/11/2012,Air fares ,International Finance Division ,Corporate Travel Provider ,202432-101 ,773.09,
DFID,DFID,13/11/2012,Air fares ,Policy Division ,Corporate Travel Provider ,202419-105 ,762.35,
DFID,DFID,13/11/2012,Air fares ,Asia  Caribbean and Overseas Territories ,Corporate Travel Provider ,202403-101 ,758.90,
DFID,DFID,13/11/2012,Air fares ,Policy Division ,Corporate Travel Provider ,200659-113 ,756.60,
DFID,DFID,13/11/2012,Training - Travel & Subsistence ,Western Asia and Stabilisation Division ,Gerry's Travel Agency Private Limited ,101624-101 ,747.83,
DFID,DFID,13/11/2012,Air fares ,West and Southern Africa ,Corporate Travel Provider ,101613-101 ,747.79,
DFID,DFID,13/11/2012,Air fares ,International Finance Division ,Corporate Travel Provider ,100111-101 ,746.81,
DFID,DFID,13/11/2012,Air fares ,Western Asia and Stabilisation Division ,Corporate Travel Provider ,202288-107 ,741.37,
DFID,DFID,13/11/2012,Air fares ,Policy Division ,Corporate Travel Provider ,203577-101 ,729.69,
DFID,DFID,13/11/2012,Air fares ,Policy Division ,Corporate Travel Provider ,203577-101 ,729.69,
DFID,DFID,13/11/2012,Air fares ,Policy Division ,Corporate Travel Provider ,202402-103 ,720.29,
DFID,DFID,13/11/2012,Air fares ,Policy Division ,Corporate Travel Provider ,202402-104 ,720.29,
DFID,DFID,13/11/2012,Hardware - printers ,Business Solutions Division Level ,RICOH UK LTD ,200001-113 ,720.00,
DFID,DFID,13/11/2012,Air fares ,Policy Division ,Corporate Travel Provider ,202373-102 ,717.99,
DFID,DFID,13/11/2012,Air fares ,Western Asia and Stabilisation Division ,Corporate Travel Provider ,201699-101 ,713.70,
DFID,DFID,13/11/2012,Training - Course Fees ,Research and Evidence Division ,UNIVERSITY OF SOUTHAMPTON ,100039-114 ,700.00,
DFID,DFID,13/11/2012,Training - Course Fees ,Research and Evidence Division ,UNIVERSITY OF SOUTHAMPTON ,100039-114 ,700.00,
DFID,DFID,13/11/2012,Air fares ,East and Central Africa ,Corporate Travel Provider ,101630-101 ,698.89,
DFID,DFID,13/11/2012,Air fares ,Western Asia and Stabilisation Division ,Corporate Travel Provider ,202288-102 ,692.20,
DFID,DFID,13/11/2012,Air fares ,Western Asia and Stabilisation Division ,Corporate Travel Provider ,202288-104 ,692.20,
DFID,DFID,13/11/2012,Air fares ,Western Asia and Stabilisation Division ,Corporate Travel Provider ,202288-104 ,692.20,
DFID,DFID,13/11/2012,Air fares ,Western Asia and Stabilisation Division ,Corporate Travel Provider ,101601-110 ,692.20,
DFID,DFID,13/11/2012,Air fares ,West and Southern Africa ,Supplier Name withheld ,104227-102 ,681.49,
DFID,DFID,13/11/2012,Air fares ,West and Southern Africa ,Supplier Name withheld ,104227-102 ,681.49,
DFID,DFID,13/11/2012,Air fares ,Western Asia and Stabilisation Division ,Corporate Travel Provider ,100020-101 ,679.55,
DFID,DFID,13/11/2012,Air fares ,Western Asia and Stabilisation Division ,Corporate Travel Provider ,202288-106 ,676.05,
DFID,DFID,13/11/2012,Training - Travel & Subsistence ,Western Asia and Stabilisation Division ,BONDS TRAVEL BUREAU ,101624-101 ,675.02,
DFID,DFID,30/11/2012,Hostile Environment Training ,East and Central Africa ,Pilgrims Group ,101616-101 ,666.19,
DFID,DFID,13/11/2012,Air fares ,West and Southern Africa ,Supplier Name withheld ,200681-101 ,665.61,
DFID,DFID,13/11/2012,Air fares ,West and Southern Africa ,Supplier Name withheld ,201433-103 ,664.49,
DFID,DFID,13/11/2012,Air fares ,Asia  Caribbean and Overseas Territories ,Corporate Travel Provider ,101603-101 ,662.76,
DFID,DFID,13/11/2012,Hotels - Accommodation only ,Business Solutions Division Level ,Corporate Travel Provider ,200001-101 ,657.67,
DFID,DFID,13/11/2012,Air fares ,Middle East & North Africa Division (MENAD) ,Corporate Travel Provider ,202399-102 ,646.40,
DFID,DFID,13/11/2012,Hotels - Accommodation only ,West and Southern Africa ,Supplier Name withheld ,104189-104 ,632.08,
DFID,DFID,13/11/2012,Hotels - Accommodation only ,West and Southern Africa ,Supplier Name withheld ,114206-104 ,632.08,
DFID,DFID,13/11/2012,Contract & Agency Staff ,Asia  Caribbean and Overseas Territories ,Hays Specialist Recruitment Ltd ,100084-101 ,627.65,
DFID,DFID,13/11/2012,Repairs  Maint  Alter - Property & Constrct. Services ,East and Central Africa ,SAFECON Electro Mechanical Works PLC ,202913-104 ,625.61,
DFID,DFID,13/11/2012,Air fares ,West and Southern Africa ,Corporate Travel Provider ,101613-101 ,621.79,
DFID,DFID,13/11/2012,Air fares ,Western Asia and Stabilisation Division ,Corporate Travel Provider ,202288-106 ,620.73,
DFID,DFID,13/11/2012,Contract & Agency Staff ,Asia  Caribbean and Overseas Territories ,Hays Specialist Recruitment Ltd ,100084-101 ,611.62,
DFID,DFID,13/11/2012,Air fares ,Research and Evidence Division ,Corporate Travel Provider ,100088-101 ,610.60,
DFID,DFID,13/11/2012,Air fares ,Western Asia and Stabilisation Division ,Corporate Travel Provider ,101624-101 ,610.12,
DFID,DFID,13/11/2012,Electricity ,West and Southern Africa ,Power Holding co of Nigeria ,100152-101 ,609.86,
DFID,DFID,13/11/2012,Hotels - Accommodation only ,Research and Evidence Division ,Corporate Travel Provider ,100039-104 ,609.09,
DFID,DFID,13/11/2012,Hotels - Accommodation only ,Human Resources Security & Facilities Division ,Corporate Travel Provider ,100269-128 ,609.09,
DFID,DFID,13/11/2012,Air fares ,Middle East & North Africa Division (MENAD) ,Corporate Travel Provider ,100307-101 ,603.07,
DFID,DFID,13/11/2012,Air fares ,Research and Evidence Division ,Corporate Travel Provider ,202392-103 ,601.49,
DFID,DFID,13/11/2012,Air fares ,Policy Division ,Corporate Travel Provider ,202419-103 ,601.09,
DFID,DFID,13/11/2012,Training - Course Fees ,Human Resources Security & Facilities Division ,Advent IM Ltd ,201157-102 ,600.00,
DFID,DFID,13/11/2012,Air fares ,Middle East & North Africa Division (MENAD) ,Corporate Travel Provider ,201701-101 ,599.60,
DFID,DFID,13/11/2012,Air fares ,Western Asia and Stabilisation Division ,Corporate Travel Provider ,101624-101 ,598.45,
DFID,DFID,13/11/2012,Air fares ,International Finance Division ,Corporate Travel Provider ,201723-102 ,587.15,
DFID,DFID,13/11/2012,Air fares ,International Relations Division ,Corporate Travel Provider ,100262-101 ,585.65,
DFID,DFID,13/11/2012,Air fares ,Conflict Humanitarian and Security Division ,Corporate Travel Provider ,100049-101 ,584.25,
DFID,DFID,13/11/2012,Air fares ,Research and Evidence Division ,Corporate Travel Provider ,202392-104 ,575.46,
DFID,DFID,13/11/2012,Air fares ,Top Management Group ,Corporate Travel Provider ,100232-108 ,575.07,
DFID,DFID,13/11/2012,Air fares ,Top Management Group ,Corporate Travel Provider ,100232-108 ,575.07,
DFID,DFID,13/11/2012,Contract & Agency Staff ,Human Resources Security & Facilities Division ,Hays Specialist Recruitment Ltd ,100270-102 ,573.40,
DFID,DFID,13/11/2012,Air fares ,West and Southern Africa ,Corporate Travel Provider ,101631-101 ,569.49,
DFID,DFID,13/11/2012,Air fares ,Research and Evidence Division ,Corporate Travel Provider ,202331-101 ,567.25,
DFID,DFID,13/11/2012,Air fares ,East and Central Africa ,Corporate Travel Provider ,202596-105 ,567.15,
DFID,DFID,13/11/2012,Air fares ,Conflict Humanitarian and Security Division ,Corporate Travel Provider ,100049-101 ,567.15,
DFID,DFID,13/11/2012,Air fares ,Research and Evidence Division ,Corporate Travel Provider ,202333-101 ,552.10,
DFID,DFID,13/11/2012,Technical and Advisory Services ,West and Southern Africa ,Mukwa Travel and Tours ,203000-101 ,549.34,
DFID,DFID,13/11/2012,Air fares ,Policy Division ,Corporate Travel Provider ,201555-103 ,547.00,
DFID,DFID,13/11/2012,Air fares ,Conflict Humanitarian and Security Division ,Corporate Travel Provider ,202410-101 ,541.09,
DFID,DFID,13/11/2012,Air fares ,Middle East & North Africa Division (MENAD) ,Corporate Travel Provider ,201705-101 ,540.39,
DFID,DFID,13/11/2012,Hotels - Accommodation only ,Research and Evidence Division ,Corporate Travel Provider ,202392-101 ,539.46,
DFID,DFID,13/11/2012,Contract & Agency Staff ,Human Resources Security & Facilities Division ,MARGARET HODGE RECRUITMENT LTD ,100266-109 ,527.99,
DFID,DFID,13/11/2012,Air fares ,Top Management Group ,Corporate Travel Provider ,100232-103 ,524.50,
DFID,DFID,13/11/2012,Air fares ,Western Asia and Stabilisation Division ,Corporate Travel Provider ,100011-110 ,524.00,
DFID,DFID,13/11/2012,Hotels - Accommodation only ,Policy Division ,Corporate Travel Provider ,202373-102 ,523.90,
DFID,DFID,13/11/2012,Hotels - Accommodation only ,Policy Division ,Corporate Travel Provider ,100275-101 ,523.90,
DFID,DFID,13/11/2012,Medical/Health Services ,Western Asia and Stabilisation Division ,INTERHEALTH ,202288-104 ,523.10,
DFID,DFID,13/11/2012,Air fares ,Policy Division ,Corporate Travel Provider ,100274-109 ,513.18,
DFID,DFID,13/11/2012,Air fares ,Middle East & North Africa Division (MENAD) ,Corporate Travel Provider ,100307-101 ,509.00,
DFID,DFID,13/11/2012,Hotels - Accommodation only ,Middle East & North Africa Division (MENAD) ,Recipient name withheld ,100146-101 ,502.89,
DFID,DFID,13/11/2012,Technical and Advisory Services ,West and Southern Africa ,Mukwa Travel and Tours ,201801-101 ,502.82,
DFID,DFID,13/11/2012,Hotels - Accommodation only ,Human Resources Security & Facilities Division ,Corporate Travel Provider ,100266-101 ,502.61,
DFID,DFID,14/11/2012,Aid Programme - Emergency Food Aid ,East and Central Africa ,World Food Programme ODLA ,203685-101 ,"4,255,319.15",
DFID,DFID,14/11/2012,Aid Programme - Partnership Programme Arrangements ,Policy Division ,WATERAID ,202621-101 ,"1,050,410.00",
DFID,DFID,14/11/2012,Technical and Advisory Services ,Communications Division ,VOLUNTARY SERVICE OVERSEAS ,202883-101 ,"1,019,005.20",
DFID,DFID,14/11/2012,Aid Programme - Accountable Grant Payments ,Communications Division ,BRITISH COUNCIL ,203378-101 ,"692,177.43",
DFID,DFID,14/11/2012,Aid Programme - Accountable Grant Payments ,West and Southern Africa ,Musika Development Initiatives Ltd ,202999-102 ,"650,756.00",
DFID,DFID,14/11/2012,Aid Programme - Humanitarian Material Relief Assistance and Services ,East and Central Africa ,THE INTERNATIONAL COMMITTEE OF THE RED CROSS (ICRC) ,203183-104 ,"560,000.00",
DFID,DFID,14/11/2012,Aid Programme - Accountable Grant Payments ,East and Central Africa ,Kenya Gatsby Trust ,202698-103 ,"508,294.00",
DFID,DFID,14/11/2012,Technical and Advisory Services ,West and Southern Africa ,GRM INTERNATIONAL LTD ,114230-101 ,"421,315.29",
DFID,DFID,14/11/2012,Technical and Advisory Services ,Western Asia and Stabilisation Division ,Supplier Name withheld ,202733-101 ,"302,283.85",
DFID,DFID,14/11/2012,Technical and Advisory Services ,Western Asia and Stabilisation Division ,Supplier Name withheld ,202733-101 ,"302,283.85",
DFID,DFID,14/11/2012,Technical and Advisory Services ,West and Southern Africa ,COFFEY INTERNATIONAL DEVELOPMENT LTD ,201590-102 ,"274,459.59",
DFID,DFID,14/11/2012,Technical and Advisory Services ,East and Central Africa ,ADAM SMITH INTERNATIONAL  LTD ,200329-107 ,"252,075.21",
DFID,DFID,14/11/2012,Aid Programme - Accountable Grant Payments ,East and Central Africa , THE RESEARCH FOUNDATION ,200120-114 ,"243,993.37",
DFID,DFID,14/11/2012,Technical and Advisory Services ,East and Central Africa ,ADAM SMITH INTERNATIONAL  LTD ,200329-108 ,"183,939.93",
DFID,DFID,14/11/2012,Technical and Advisory Services ,Western Asia and Stabilisation Division ,Supplier Name withheld ,202733-101 ,"159,099.68",
DFID,DFID,14/11/2012,Technical and Advisory Services ,Western Asia and Stabilisation Division ,Supplier Name withheld ,202733-101 ,"159,099.68",
DFID,DFID,14/11/2012,Technical and Advisory Services ,West and Southern Africa ,GRM INTERNATIONAL LTD ,202370-102 ,"152,402.57",
DFID,DFID,14/11/2012,Technical and Advisory Services ,East and Central Africa ,Crown Agents Bank ,200120-110 ,"149,493.27",
DFID,DFID,14/11/2012,Research & Development costs ,Research and Evidence Division ,LONDON SCHOOL OF ECONOMICS AND POLITICAL SCIENCE ,201006-101 ,"146,500.93",
DFID,DFID,14/11/2012,Aid Programme - Accountable Grant Payments ,Asia  Caribbean and Overseas Territories ,CHRISTIAN AID ,114532-110 ,"134,988.00",
DFID,DFID,14/11/2012,Technical and Advisory Services ,West and Southern Africa ,GRM INTERNATIONAL LTD ,104190-104 ,"110,164.46",
DFID,DFID,14/11/2012,Technical and Advisory Services ,Western Asia and Stabilisation Division ,Supplier Name withheld ,202733-101 ,"106,688.42",
DFID,DFID,14/11/2012,Research & Development costs ,West and Southern Africa ,HEALTH PARTNERS INTERNATIONAL ,200497-102 ,"96,720.57",
DFID,DFID,14/11/2012,Technical and Advisory Services ,East and Central Africa ,IPA-International Procurement Agency (BV) ,113400-111 ,"85,190.29",
DFID,DFID,14/11/2012,Aid Programme - Joint programme contribution ,East and Central Africa ,   THE WORLD BANK ,103548-107 ,"80,000.00",
DFID,DFID,14/11/2012,Technical and Advisory Services ,Research and Evidence Division ,CAB INTERNATIONAL ,112152-101 ,"67,043.94",
DFID,DFID,14/11/2012,Technical and Advisory Services ,East and Central Africa ,EDUCATION FOR CHANGE LTD ,202513-103 ,"49,306.25",
DFID,DFID,14/11/2012,Technical and Advisory Services ,Asia  Caribbean and Overseas Territories ,IMC Worldwide Ltd ,202433-106 ,"37,101.44",
DFID,DFID,14/11/2012,Technical and Advisory Services ,Asia  Caribbean and Overseas Territories ,TURNER & TOWNSEND ,202433-108 ,"34,079.82",
DFID,DFID,14/11/2012,Technical and Advisory Services ,Middle East & North Africa Division (MENAD) ,UPPER QUARTILE ,203620-101 ,"31,591.85",
DFID,DFID,14/11/2012,Legal costs ,International Finance Division ,Marriott Davies Yapp LLP ,202259-101 ,"26,959.68",Provision of Legal services for DFID programmes 
DFID,DFID,14/11/2012,Technical and Advisory Services ,East and Central Africa ,Crown Agents Bank ,202657-106 ,"15,700.00",
DFID,DFID,14/11/2012,Training - Course Fees ,Business Solutions Division Level ,Emergn ,200001-101 ,"15,000.00",
DFID,DFID,14/11/2012,Technical and Advisory Services ,West and Southern Africa ,COFFEY INTERNATIONAL DEVELOPMENT LTD ,202476-102 ,"12,907.56",
DFID,DFID,14/11/2012,Contract & Agency Staff ,Human Resources Security & Facilities Division ,AMCS UK ,100272-101 ,"12,375.00",
DFID,DFID,14/11/2012,Technical and Advisory Services ,West and Southern Africa ,CROWN RELOCATIONS  UK ,114206-104 ,"11,040.10",
DFID,DFID,14/11/2012,Aid Programme - Accountable Grant Payments ,West and Southern Africa ,EGPAF ,202637-105 ,"8,715.33",
DFID,DFID,14/11/2012,Facilities Management payments ,East and Central Africa ,DMS Africa(Local) ,202594-101 ,"5,352.64",
DFID,DFID,14/11/2012,Technical and Advisory Services ,West and Southern Africa ,INFRASTRUCTURE AFRICA LTD ,201551-105 ,"4,839.11",
DFID,DFID,14/11/2012,Data network- remote working ,Business Solutions Division Level ,SKYVISION GLOBAL NETWORKS LLC ,200002-121 ,"4,680.90",
DFID,DFID,14/11/2012,Technical and Advisory Services ,Asia  Caribbean and Overseas Territories ,Andrew Rogers (Self Employed) ,202083-101 ,"4,448.04",
DFID,DFID,14/11/2012,Technical and Advisory Services ,Human Resources Security & Facilities Division ,Marriott Davies Yapp LLP ,203156-101 ,"4,404.96",
DFID,DFID,14/11/2012,Technical and Advisory Services ,West and Southern Africa ,CROWN RELOCATIONS  UK ,114206-104 ,"4,180.95",
DFID,DFID,14/11/2012,Repairs  Maint  Alter - Removal & waste disposal services ,Human Resources Security & Facilities Division ,BYWATERS ,100187-101 ,"4,097.60",
DFID,DFID,14/11/2012,Technical and Advisory Services ,Joint Trade Policy Division ,Eggplant12 Films Ltd ,203530-102 ,"3,718.00",
DFID,DFID,14/11/2012,Technical and Advisory Services ,Research and Evidence Division ,critical faculty ,202242-103 ,"3,625.00",
DFID,DFID,14/11/2012,Supplier Services ,Policy Division ,SOCIAL DEVELOPMENT DIRECT LTD ,200659-115 ,"3,360.00",
DFID,DFID,14/11/2012,Telephone Usage & services ,Business Solutions Division Level ,BT BACS PAYMENTS ,200002-130 ,"3,259.66",
DFID,DFID,14/11/2012,Technical and Advisory Services ,International Finance Division ,Marriott Davies Yapp LLP ,202259-101 ,"3,183.96",
DFID,DFID,14/11/2012,Technical and Advisory Services ,East and Central Africa ,HAREWELLE INTERNATIONAL LIMITED ,202534-103 ,"2,833.00",
DFID,DFID,14/11/2012,Technical and Advisory Services ,Western Asia and Stabilisation Division ,WILSON  BRYDON & KENNEDY ,203341-102 ,"2,700.00",
DFID,DFID,14/11/2012,Hardware - printers ,East and Central Africa ,MFI OFFICE SOLUTIONS (U) LIMITED ,101635-101 ,"2,687.98",
DFID,DFID,14/11/2012,Relocation costs ,Western Asia and Stabilisation Division ,Supplier Name withheld ,101601-110 ,"2,566.48",
DFID,DFID,14/11/2012,Relocation costs ,West and Southern Africa ,CROWN RELOCATIONS  UK ,101610-101 ,"2,548.52",
DFID,DFID,14/11/2012,Technical and Advisory Services ,West and Southern Africa ,Family Kingdom Limited ,203621-102 ,"2,455.92",
DFID,DFID,14/11/2012,Hotels - Accommodation only ,East and Central Africa ,Juba Grand Hotel ,202586-101 ,"2,021.21",
DFID,DFID,14/11/2012,Technical and Advisory Services ,Research and Evidence Division ,Marriott Davies Yapp LLP ,201642-101 ,"1,954.08",
DFID,DFID,14/11/2012,Technical and Advisory Services ,East and Central Africa ,Marriott Davies Yapp LLP ,203109-101 ,"1,788.48",
DFID,DFID,14/11/2012,Technical and Advisory Services ,Research and Evidence Division ,Martin Prowse ,201014-102 ,"1,660.00",
DFID,DFID,14/11/2012,Hotels - Accommodation only ,West and Southern Africa ,Ulendo Safaris ,100144-101 ,"1,396.36",
DFID,DFID,14/11/2012,Vehicle Petrol & Oil ,West and Southern Africa ,British High Commission ,101618-101 ,"1,349.95",
DFID,DFID,14/11/2012,Hardware - printers ,East and Central Africa ,MFI OFFICE SOLUTIONS (U) LIMITED ,100234-101 ,"1,323.93",
DFID,DFID,14/11/2012,Office Supplies ,East and Central Africa ,JIT Beverages ,202586-101 ,"1,295.32",
DFID,DFID,14/11/2012,Staff Travel - Air Fares ,West and Southern Africa ,DANA Agency ,101620-101 ,"1,243.65",
DFID,DFID,14/11/2012,Facilities Management payments ,East and Central Africa ,K.B.M Investments Ltd ,100234-101 ,"1,242.33",
DFID,DFID,14/11/2012,Contract Catering Services ,Research and Evidence Division ,MITIE Catering Services Ltd ,202392-104 ,"1,190.40",
DFID,DFID,14/11/2012,Contract & Agency Staff ,Finance and Corporate Performance Division ,Hays Specialist Recruitment Ltd ,100201-101 ,"1,165.50",
DFID,DFID,14/11/2012,Contract & Agency Staff ,Finance and Corporate Performance Division ,MICHAEL PAGE INTERNATIONAL RECRUITMENT LIMITED ,100201-101 ,"1,150.00",
DFID,DFID,14/11/2012,Contract & Agency Staff ,Finance and Corporate Performance Division ,Hays Specialist Recruitment Ltd ,100201-101 ,"1,130.16",
DFID,DFID,14/11/2012,Repairs  Maint  Alter - Property & Constrct. Services ,West and Southern Africa ,Zimpest ,101638-103 ,"1,070.53",
DFID,DFID,14/11/2012,Air fares ,Middle East & North Africa Division (MENAD) ,Foreign & Commonwealth Office ,100307-101 ,950.67,
DFID,DFID,14/11/2012,Data network- remote working ,Business Solutions Division Level ,Networkshop Limited ,200002-121 ,947.70,
DFID,DFID,14/11/2012,Training - Travel & Subsistence ,West and Southern Africa ,Ulendo Safaris ,101618-101 ,941.26,
DFID,DFID,14/11/2012,Training - Travel & Subsistence ,West and Southern Africa ,Ulendo Safaris ,101618-101 ,940.56,
DFID,DFID,14/11/2012,Facilities Management payments ,West and Southern Africa ,B & D Consultancy Company Limited ,101613-101 ,843.82,
DFID,DFID,14/11/2012,Hostile Environment Training ,Western Asia and Stabilisation Division ,Supplier Name withheld ,101601-110 ,802.14,
DFID,DFID,14/11/2012,Training - Travel & Subsistence ,West and Southern Africa ,Ulendo Safaris ,101618-101 ,788.21,
DFID,DFID,14/11/2012,Air fares ,Middle East & North Africa Division (MENAD) ,Foreign & Commonwealth Office ,201701-101 ,785.94,
DFID,DFID,14/11/2012,Vehicle Petrol & Oil ,West and Southern Africa ,British High Commission ,101618-101 ,778.05,
DFID,DFID,14/11/2012,Storage & Distribution costs ,Western Asia and Stabilisation Division ,SPECTRA  GROUP UK LTD ,102014-102 ,738.00,
DFID,DFID,14/11/2012,Facilities Management payments ,West and Southern Africa ,Pryme Soluhyns ,101613-101 ,694.81,
DFID,DFID,14/11/2012,Facilities Management payments ,West and Southern Africa ,Jem Intercontinental Services Ghana ,101613-101 ,682.93,
DFID,DFID,14/11/2012,Staff Travel - Air Fares ,West and Southern Africa ,DANA Agency ,101620-101 ,659.19,
DFID,DFID,14/11/2012,Hotels - Accommodation only ,West and Southern Africa ,Recipient name withheld ,201978-102 ,646.60,
DFID,DFID,14/11/2012,Training - Travel & Subsistence ,West and Southern Africa ,Ulendo Safaris ,100144-101 ,571.49,
DFID,DFID,14/11/2012,Hotels - Accommodation only ,International Relations Division ,Recipient name withheld ,100240-101 ,565.36,
DFID,DFID,14/11/2012,Vehicle Petrol & Oil ,West and Southern Africa ,British High Commission ,100144-101 ,551.39,
DFID,DFID,14/11/2012,Medical/Health Services ,Western Asia and Stabilisation Division ,INTERHEALTH ,102014-102 ,545.50,
DFID,DFID,14/11/2012,Hotels - Accommodation only ,International Finance Division ,Recipient name withheld ,202259-101 ,506.91,
DFID,DFID,14/11/2012,Medical/Health Services ,Western Asia and Stabilisation Division ,INTERHEALTH ,102014-102 ,502.30,
DFID,DFID,15/11/2012,Aid Programme - Accountable Grant Payments ,West and Southern Africa ,INTERNATIONAL RESCUE COMMITTEE UK ,105861-102 ,"2,978,132.00",
DFID,DFID,15/11/2012,Technical and Advisory Services ,West and Southern Africa ,Crown Agents Bank ,202183-101 ,"209,047.58",
DFID,DFID,15/11/2012,Aid Programme - Accountable Grant Payments ,Middle East & North Africa Division (MENAD) ,MERCY CORPS ,203236-105 ,"107,683.00",
DFID,DFID,15/11/2012,Technical and Advisory Services ,West and Southern Africa ,COFFEY INTERNATIONAL DEVELOPMENT LTD ,104190-109 ,"103,622.72",
DFID,DFID,15/11/2012,Aid Programme - Accountable Grant Payments ,Communications Division ,READ FOUNDATION ,202197-101 ,"91,627.00",
DFID,DFID,15/11/2012,Aid Programme - Joint programme contribution ,Asia  Caribbean and Overseas Territories ,AUSAID ,203601-106 ,"48,698.00",
DFID,DFID,15/11/2012,Aid Programme - Accountable Grant Payments ,International Finance Division ,SCHOOL OF ORIENTAL & AFRICAN STUDIES ,200973-101 ,"44,956.13",
DFID,DFID,15/11/2012,Aid Programme - Accountable Grant Payments ,Communications Division ,MALARIA NO MORE UK ,201522-101 ,"40,623.00",
DFID,DFID,15/11/2012,Technical and Advisory Services ,East and Central Africa ,LTS International Ltd. ,201866-106 ,"35,202.18",
DFID,DFID,15/11/2012,Technical and Advisory Services ,East and Central Africa ,HLSP LIMITED ,203016-102 ,"33,656.00",
DFID,DFID,15/11/2012,Technical and Advisory Services ,West and Southern Africa ,EFFECTIVE DEVELOPMENT GROUP (EDG) ,113961-105 ,"31,333.20",
DFID,DFID,15/11/2012,DFID Purchased Relief Supplies ,West and Southern Africa ,CHARLES KENDALL & PARTNERS LIMITED (PROCUREMENT) ,202524-114 ,"19,066.67",
DFID,DFID,15/11/2012,Technical and Advisory Services ,East and Central Africa ,IPA-International Procurement Agency (BV) ,113400-111 ,"15,829.46",
DFID,DFID,15/11/2012,Technical and Advisory Services ,Western Asia and Stabilisation Division ,Supplier Name withheld ,203309-103 ,"12,720.27",
DFID,DFID,15/11/2012,Technical and Advisory Services ,East and Central Africa ,COFFEY INTERNATIONAL DEVELOPMENT LTD ,200779-107 ,"12,084.87",
DFID,DFID,15/11/2012,Hotels - Accommodation only ,West and Southern Africa ,Supplier Name withheld ,100152-109 ,"11,036.26",
DFID,DFID,15/11/2012,Technical and Advisory Services ,West and Southern Africa ,CHARLES KENDALL & PARTNERS LIMITED (PROCUREMENT) ,113961-106 ,"5,584.84",
DFID,DFID,09/11/2012,Hostile Environment Training ,Western Asia and Stabilisation Division ,Pilgrims Group ,101624-101 ,673.13,
DFID,DFID,15/11/2012,Air fares ,Asia  Caribbean and Overseas Territories ,Hanoi Toserco ,101636-101 ,"4,279.25",
DFID,DFID,15/11/2012,Training - Course Fees ,Human Resources Security & Facilities Division ,QA Limited ,100272-101 ,"4,108.00",
DFID,DFID,15/11/2012,Training - Course Fees ,Human Resources Security & Facilities Division ,QA Limited ,100272-101 ,"3,962.00",
DFID,DFID,15/11/2012,Hostile Environment Training ,East and Central Africa ,Pilgrims Group ,202586-101 ,752.11,
DFID,DFID,15/11/2012,Conferences  Seminars & Meeting/Event Resource ,Research and Evidence Division ,Department for Business  Innovation & Skills ,202332-102 ,"3,240.00",
DFID,DFID,15/11/2012,Air fares ,West and Southern Africa ,Supplier Name withheld ,101622-101 ,"2,721.57",
DFID,DFID,02/11/2012,Hostile Environment Training ,West and Southern Africa ,Pilgrims Group ,100189-101 ,760.97,
DFID,DFID,15/11/2012,Other travel costs ,Western Asia and Stabilisation Division ,HOME OFFICE ,100020-101 ,"2,060.00",
DFID,DFID,15/11/2012,Computer Software Licenses ,Business Solutions Division Level ,MTI Technology Ltd ,200002-116 ,"1,736.16",
DFID,DFID,15/11/2012,Data Network -Satellite ,Western Asia and Stabilisation Division ,SPECTRA  GROUP UK LTD ,102014-102 ,"1,710.00",
DFID,DFID,15/11/2012,Technical and Advisory Services ,Communications Division ,TRIPLE LINE CONSULTING LTD ,100229-101 ,"1,695.45",
DFID,DFID,15/11/2012,Technical and Advisory Services ,Research and Evidence Division ,RS DREW LTD ,201014-102 ,"1,530.00",
DFID,DFID,15/11/2012,Contract & Agency Staff ,Finance and Corporate Performance Division ,MICHAEL PAGE INTERNATIONAL RECRUITMENT LIMITED ,100201-101 ,"1,513.32",
DFID,DFID,15/11/2012,Hotels - Accommodation only ,West and Southern Africa ,Supplier Name withheld ,101622-103 ,"1,275.13",
DFID,DFID,15/11/2012,Data Network -Satellite ,Western Asia and Stabilisation Division ,SPECTRA  GROUP UK LTD ,102014-102 ,"1,260.00",
DFID,DFID,15/11/2012,Contract & Agency Staff ,Finance and Corporate Performance Division ,Search Consultancy Ltd ,100201-101 ,"1,200.00",
DFID,DFID,15/11/2012,Technical and Advisory Services ,Communications Division ,TRIPLE LINE CONSULTING LTD ,114423-102 ,"1,193.47",
DFID,DFID,15/11/2012,Training - Travel & Subsistence ,Asia  Caribbean and Overseas Territories ,Hanoi Toserco ,101636-101 ,"1,163.01",
DFID,DFID,15/11/2012,Hotels - Accommodation only ,West and Southern Africa ,Supplier Name withheld ,100152-109 ,"1,054.36",
DFID,DFID,15/11/2012,Repairs  Maint  Alter - Removal & waste disposal services ,Human Resources Security & Facilities Division ,SHANKS WASTE MANAGMENT LIMITED ,100106-101 ,982.47,
DFID,DFID,15/11/2012,Technical and Advisory Services ,West and Southern Africa ,CHARLES KENDALL & PARTNERS LIMITED (PROCUREMENT) ,202524-115 ,953.33,
DFID,DFID,15/11/2012,Technical and Advisory Services ,East and Central Africa ,IPA-International Procurement Agency (BV) ,113400-111 ,815.22,
DFID,DFID,30/11/2012,Training Providers/Facilitation Services ,Policy Division ,Pilgrims Group ,202402-103 ,760.97,
DFID,DFID,09/11/2012,Hostile Environment Training ,Western Asia and Stabilisation Division ,Pilgrims Group ,101624-101 ,802.14,
DFID,DFID,15/11/2012,Hotels - Accommodation only ,Policy Division ,Recipient name withheld ,100277-101 ,750.28,
DFID,DFID,15/11/2012,Furniture & Fittings ,West and Southern Africa ,Bluku Services ,100097-101 ,745.14,
DFID,DFID,15/11/2012,Contract & Agency Staff ,Human Resources Security & Facilities Division ,MICHAEL PAGE INTERNATIONAL RECRUITMENT LIMITED ,100266-110 ,717.06,
DFID,DFID,15/11/2012,Hotels - Accommodation only ,Policy Division ,Recipient name withheld ,100274-108 ,675.89,
DFID,DFID,15/11/2012,Hotels - Accommodation only ,West and Southern Africa ,Supplier Name withheld ,101622-103 ,670.96,
DFID,DFID,15/11/2012,Hotels - Accommodation only ,West and Southern Africa ,Supplier Name withheld ,104200-103 ,670.96,
DFID,DFID,15/11/2012,Training - Course Fees ,Internal Audit ,Pilgrims Group ,100121-101 ,802.14,
DFID,DFID,15/11/2012,Training - Travel & Subsistence ,West and Southern Africa ,Supplier Name withheld ,100152-101 ,637.57,
DFID,DFID,15/11/2012,Hotels - Accommodation only ,West and Southern Africa ,Supplier Name withheld ,101622-104 ,637.57,
DFID,DFID,15/11/2012,Training - Travel & Subsistence ,West and Southern Africa ,Supplier Name withheld ,101622-101 ,637.57,
DFID,DFID,15/11/2012,Hotels - Accommodation only ,West and Southern Africa ,Supplier Name withheld ,101622-101 ,620.76,
DFID,DFID,15/11/2012,Hotels - Accommodation only ,West and Southern Africa ,Supplier Name withheld ,100152-105 ,575.12,
DFID,DFID,15/11/2012,Subscriptions ,Communications Division ,THE PRESS ASSOCIATION ,100197-101 ,558.07,
DFID,DFID,15/11/2012,Water charges ,East and Central Africa ,Mekere Sultan ,202586-101 ,555.56,
DFID,DFID,15/11/2012,Air fares ,West and Southern Africa ,Supplier Name withheld ,100152-101 ,554.89,
DFID,DFID,15/11/2012,Air fares ,Conflict Humanitarian and Security Division ,Recipient name withheld ,202410-101 ,513.50,
DFID,DFID,15/11/2012,Recruitment costs ,East and Central Africa ,AFS INTERNATIONAL ,100082-101 ,512.76,
DFID,DFID,16/11/2012,Aid Programme - Accountable Grant Payments ,Policy Division ,The Carter Center ,201034-101 ,"2,500,000.00",
DFID,DFID,16/11/2012,Aid Programme - Trust Funds contributions ,Research and Evidence Division ,   THE WORLD BANK ,200241-103 ,"1,900,000.00",
DFID,DFID,16/11/2012,Aid Programme - Accountable Grant Payments ,Middle East & North Africa Division (MENAD) ,CARE INTERNATIONAL UK ,203121-101 ,"1,615,450.63",
DFID,DFID,16/11/2012,Aid Programme - Trust Funds contributions ,Policy Division ,IBRD HSBC T ,202954-102 ,"1,500,000.00",
DFID,DFID,16/11/2012,Aid Programme - Voluntary contributions ,Western Asia and Stabilisation Division ,IOM ,114520-103 ,"713,684.00",
DFID,DFID,16/11/2012,Aid Programme - Accountable Grant Payments ,East and Central Africa ,Ifakara Health Institute ,200715-102 ,"394,123.48",
DFID,DFID,16/11/2012,Aid Programme - Accountable Grant Payments ,Policy Division ,Center for Global Development ,202820-101 ,"316,952.00",
DFID,DFID,16/11/2012,Technical and Advisory Services ,West and Southern Africa ,DAI EUROPE LIMITED ,113961-104 ,"309,191.50",
DFID,DFID,16/11/2012,Technical and Advisory Services ,East and Central Africa ,PRICEWATERHOUSECOOPERS ,201913-103 ,"162,587.47",
DFID,DFID,16/11/2012,Aid Programme - Accountable Grant Payments ,Asia  Caribbean and Overseas Territories ,CITWES  Tsinghua University ,203174-101 ,"84,660.00",
DFID,DFID,16/11/2012,Technical and Advisory Services ,Research and Evidence Division ,PRICEWATERHOUSECOOPERS ,200822-101 ,"76,800.00",
DFID,DFID,16/11/2012,Technical and Advisory Services ,Asia  Caribbean and Overseas Territories ,ERNST &  YOUNG PRIVATE LTD ,200599-101 ,"51,498.32",
DFID,DFID,16/11/2012,Technical and Advisory Services ,Policy Division ,PRICEWATERHOUSECOOPERS ,114370-104 ,"51,200.00",
DFID,DFID,16/11/2012,Aid Programme - Accountable Grant Payments ,Communications Division ,GlobalGiving UK ,202712-101 ,"41,751.44",
DFID,DFID,16/11/2012,Aid Programme - Accountable Grant Payments ,Policy Division ,Clean Development Mechanism (CDM) Watch ,201918-106 ,"18,200.56",
DFID,DFID,16/11/2012,Hardware - networking equipment ,Business Solutions Division Level ,CABLE & WIRELESS COMMUN ,200003-121 ,"17,590.10",
DFID,DFID,16/11/2012,Technical and Advisory Services ,Policy Division ,PRICEWATERHOUSECOOPERS ,114370-105 ,"17,000.02",
DFID,DFID,16/11/2012,Technical and Advisory Services ,East and Central Africa ,COFFEY INTERNATIONAL DEVELOPMENT LTD ,200779-107 ,"16,626.65",
DFID,DFID,16/11/2012,Telephone Sys -hardware ,Business Solutions Division Level ,CABLE & WIRELESS COMMUN ,200003-121 ,"13,161.52",
DFID,DFID,16/11/2012,Training - Course Fees ,West and Southern Africa ,Training Expertise Ltd ,101610-101 ,"11,591.60",
DFID,DFID,16/11/2012,Technical and Advisory Services ,Research and Evidence Division ,  CfBT Education Trust ,202242-105 ,"11,400.00",
DFID,DFID,16/11/2012,Technical and Advisory Services ,Western Asia and Stabilisation Division ,Semiotics Consultants (Pvt) Limited ,200694-102 ,"11,377.01",
DFID,DFID,16/11/2012,Training Providers/Facilitation Services ,Research and Evidence Division ,Mandarin Film ,200529-107 ,"11,280.90",
DFID,DFID,16/11/2012,Technical and Advisory Services ,Western Asia and Stabilisation Division ,Reza Ali Development Consultant ,114153-101 ,"8,329.97",
DFID,DFID,16/11/2012,Technical and Advisory Services ,Asia  Caribbean and Overseas Territories ,JJP Mundy Partnering & Development Consulting ,201286-101 ,"6,000.00",
DFID,DFID,16/11/2012,Vehicle Petrol & Oil ,East and Central Africa ,Kobil Petroleum Rwanda SARL ,101628-101 ,"5,610.33",
DFID,DFID,16/11/2012,Relocation costs ,West and Southern Africa ,CROWN RELOCATIONS  UK ,101622-101 ,"5,473.49",
DFID,DFID,16/11/2012,Vehicle Petrol & Oil ,East and Central Africa ,Kobil Petroleum Rwanda SARL ,100212-101 ,"4,284.43",
DFID,DFID,16/11/2012,Technical and Advisory Services ,East and Central Africa ,COFFEY INTERNATIONAL DEVELOPMENT LTD ,202917-101 ,"3,405.31",
DFID,DFID,16/11/2012,Technical and Advisory Services ,Western Asia and Stabilisation Division ,Sarah Saeed ,113484-106 ,"3,121.51",
DFID,DFID,16/11/2012,Technical and Advisory Services ,Policy Division ,GBRW LIMITED ,201733-107 ,"2,600.63",
DFID,DFID,16/11/2012,Storage & Distribution costs ,West and Southern Africa ,Conote Services Ltd ,101622-103 ,"2,551.95",
DFID,DFID,16/11/2012,Technical and Advisory Services ,West and Southern Africa ,COFFEY INTERNATIONAL DEVELOPMENT LTD ,103269-101 ,"2,481.00",
DFID,DFID,16/11/2012,Relocation costs ,East and Central Africa ,CROWN RELOCATIONS  UK ,202594-101 ,"2,404.81",
DFID,DFID,16/11/2012,Air fares ,Internal Audit ,EuroTours Ghana Ltd ,100121-101 ,"2,392.25",
DFID,DFID,16/11/2012,Telephone Usage & services ,West and Southern Africa ,MTN Nigeria Communications Ltd ,101622-101 ,"2,240.20",
DFID,DFID,16/11/2012,Technical and Advisory Services ,West and Southern Africa ,Babatunde Kabir Ipaye ,114206-104 ,"1,985.18",
DFID,DFID,16/11/2012,Aid Programme - Accountable Grant Payments ,Asia  Caribbean and Overseas Territories ,Anguilla National Trust ,201049-101 ,"1,842.63",
DFID,DFID,16/11/2012,Relocation costs ,West and Southern Africa ,CROWN RELOCATIONS  UK ,101622-101 ,"1,735.60",
DFID,DFID,16/11/2012,Technical and Advisory Services ,West and Southern Africa ,Supplier Name withheld ,201433-104 ,"1,705.68",
DFID,DFID,16/11/2012,Consultancy Services (As defined by central gov) ,Western Asia and Stabilisation Division ,Shazreh Hussain ,100185-101 ,"1,323.90",
DFID,DFID,16/11/2012,Conferences  Seminars & Meeting/Event Resource ,Western Asia and Stabilisation Division ,BRITISH CLUB ISLAMABAD ,101624-101 ,971.53,
DFID,DFID,16/11/2012,Conferences  Seminars & Meeting/Event Resource ,Top Management Group ,Girlguiding UK ,100232-104 ,940.00,
DFID,DFID,16/11/2012,Storage & Distribution costs ,West and Southern Africa ,Conote Services Ltd ,101622-101 ,902.08,
DFID,DFID,16/11/2012,Conferences  Seminars & Meeting/Event Resource ,Western Asia and Stabilisation Division ,BRITISH CLUB ISLAMABAD ,101624-101 ,884.86,
DFID,DFID,16/11/2012,Air fares ,Human Resources Security & Facilities Division ,Sara Joan Curran ,100269-128 ,875.00,
DFID,DFID,16/11/2012,Other Building Costs ,Human Resources Security & Facilities Division ,Gilgen Door Systems UK Ltd ,100187-101 ,817.00,
DFID,DFID,16/11/2012,Hostile Environment Training ,Middle East & North Africa Division (MENAD) ,Pilgrims Group ,201701-101 ,802.14,
DFID,DFID,16/11/2012,Technical and Advisory Services ,Human Resources Security & Facilities Division ,HCR Group Ltd ,100269-161 ,714.00,
DFID,DFID,16/11/2012,Training Providers/Facilitation Services ,Middle East & North Africa Division (MENAD) ,UNIVERSITY OF SOUTHAMPTON ,100146-101 ,700.00,
DFID,DFID,16/11/2012,Professional member subscriptions ,Human Resources Security & Facilities Division ,Reed Elsevier (UK) Ltd T/A LN ,100270-102 ,690.00,
DFID,DFID,16/11/2012,Subscriptions ,Asia  Caribbean and Overseas Territories ,BRITISH HIGH COMMISSION ,100113-101 ,689.05,
DFID,DFID,16/11/2012,Subscriptions ,Asia  Caribbean and Overseas Territories ,BRITISH HIGH COMMISSION ,100113-101 ,689.05,
DFID,DFID,16/11/2012,Storage & Distribution costs ,West and Southern Africa ,Conote Services Ltd ,100152-101 ,680.52,
DFID,DFID,16/11/2012,Electricity ,East and Central Africa ,EWSA ,100212-101 ,651.66,
DFID,DFID,16/11/2012,Hotels - Accommodation only ,West and Southern Africa ,Supplier Name withheld ,101622-101 ,639.63,
DFID,DFID,16/11/2012,Training - Travel & Subsistence ,Western Asia and Stabilisation Division ,SHAKIL EXPRESS (PVT.) LTD ,100185-101 ,627.30,
DFID,DFID,16/11/2012,Training - Course Fees ,West and Southern Africa ,Training Expertise Ltd ,101610-101 ,623.12,
DFID,DFID,16/11/2012,Contract & Agency Staff ,Human Resources Security & Facilities Division ,Hays Specialist Recruitment Ltd ,100270-102 ,573.40,
DFID,DFID,16/11/2012,Hotels - Accommodation only ,East and Central Africa ,Recipient name withheld ,101625-101 ,561.45,
DFID,DFID,16/11/2012,Telephone Usage & services ,West and Southern Africa ,MTN Nigeria Communications Ltd ,100152-101 ,560.18,
DFID,DFID,16/11/2012,Hotels - Accommodation only ,East and Central Africa ,Recipient name withheld ,101625-105 ,557.68,
DFID,DFID,16/11/2012,Hotels - Accommodation only ,International Finance Division ,Recipient name withheld ,100120-101 ,535.26,
DFID,DFID,16/11/2012,Hotels - Accommodation only ,Research and Evidence Division ,Recipient name withheld ,202331-102 ,530.16,
DFID,DFID,16/11/2012,Contract & Agency Staff ,Human Resources Security & Facilities Division ,MARGARET HODGE RECRUITMENT LTD ,100266-109 ,527.99,
DFID,DFID,17/11/2012,Air fares ,East and Central Africa ,British Airways ,101635-101 ,"1,610.83",
DFID,DFID,17/11/2012,Hotels - Accommodation only ,Research and Evidence Division ,Recipient name withheld ,202392-106 ,529.38,
DFID,DFID,18/11/2012,Hotels - Accommodation only ,Asia  Caribbean and Overseas Territories ,Hotel Lake Castle Limited ,114058-101 ,574.02,
DFID,DFID,19/11/2012,Aid Programme - Humanitarian Material Relief Assistance and Services ,Western Asia and Stabilisation Division ,International Organization for Migration ,202930-102 ,"1,500,000.00",
DFID,DFID,19/11/2012,Aid Programme - Accountable Grant Payments ,West and Southern Africa ,MERLIN ,105861-102 ,"1,329,798.00",
DFID,DFID,19/11/2012,Research & Development costs ,Research and Evidence Division ,ECONOMIC & SOCIAL REASEARCH COUNCIL ,200461-101 ,"1,008,000.00",
DFID,DFID,19/11/2012,Technical and Advisory Services ,Research and Evidence Division ,PRICEWATERHOUSECOOPERS ,200822-101 ,"884,008.00",
DFID,DFID,19/11/2012,Technical and Advisory Services ,West and Southern Africa ,HTSPE LTD ,104189-101 ,"685,249.34",
DFID,DFID,19/11/2012,Technical and Advisory Services ,Policy Division ,PRICEWATERHOUSECOOPERS ,114370-104 ,"589,338.67",
DFID,DFID,19/11/2012,Aid Programme - Voluntary contributions ,Asia  Caribbean and Overseas Territories ,CARIBBEAN COMMUNITY CLIMATE CHANGE CENTER ,202595-101 ,"574,960.00",
DFID,DFID,19/11/2012,Technical and Advisory Services ,Policy Division ,TROPICAL HEALTH AND EDUCATION TRUST ,202208-101 ,"430,965.50",
DFID,DFID,19/11/2012,Aid Programme - Accountable Grant Payments ,East and Central Africa ,International Institute for Environment and Development (IIED) ,201913-113 ,"400,000.00",
DFID,DFID,19/11/2012,Aid Programme - Partnership Programme Arrangements ,Policy Division ,ISLAMIC RELIEF ,203105-101 ,"300,000.00",
DFID,DFID,19/11/2012,Technical and Advisory Services ,Policy Division ,PRICEWATERHOUSECOOPERS ,114370-105 ,"233,206.01",
DFID,DFID,19/11/2012,Aid Programme - Joint programme contribution ,Western Asia and Stabilisation Division ,Supplier Name withheld ,203474-101 ,"166,666.00",
DFID,DFID,19/11/2012,Aid Programme - Accountable Grant Payments ,Communications Division ,OPPORTUNITY INTERNATIONAL UK ,202197-101 ,"145,541.00",
DFID,DFID,19/11/2012,Aid Programme - Accountable Grant Payments ,Policy Division ,ENVIRONMENTAL INVESTIGATION AGENCY (EIA) ,201724-115 ,"92,180.00",
DFID,DFID,19/11/2012,Research & Development costs ,Research and Evidence Division ,ECONOMIC & SOCIAL REASEARCH COUNCIL ,200461-101 ,"35,000.00",
DFID,DFID,19/11/2012,Repairs  Maint  Alter - Property & Constrct. Services ,West and Southern Africa ,HITL COMPANY LIMITED ,100097-101 ,"27,720.00",
DFID,DFID,19/11/2012,Technical and Advisory Services ,West and Southern Africa ,Paud murphy consultants ,103269-101 ,"24,039.40",
DFID,DFID,19/11/2012,Technical and Advisory Services ,Asia  Caribbean and Overseas Territories ,PRABIR KUMAR DAS ,202123-105 ,"15,633.27",
DFID,DFID,19/11/2012,Secure Staff Accomodation ,West and Southern Africa ,Supplier Name withheld ,101610-101 ,"10,395.78",
DFID,DFID,19/11/2012,Secure Staff Accomodation ,West and Southern Africa ,Supplier Name withheld ,101610-101 ,"10,341.34",
DFID,DFID,19/11/2012,Secure Staff Accomodation ,West and Southern Africa ,Supplier Name withheld ,101610-101 ,"10,065.89",
DFID,DFID,19/11/2012,Secure Staff Accomodation ,West and Southern Africa ,Supplier Name withheld ,101610-101 ,"10,065.89",
DFID,DFID,19/11/2012,Conferences  Seminars & Meeting/Event Resource ,Research and Evidence Division ,Searcy Tansley & Co. Ltd ,202331-105 ,"9,136.00",
DFID,DFID,19/11/2012,Other Building Costs ,Human Resources Security & Facilities Division ,MITIE Technical Facilities Management Ltd ,100106-101 ,"6,188.71",
DFID,DFID,19/11/2012,Training - Travel & Subsistence ,West and Southern Africa ,COMMUNICAID GRP LIMITED ,101610-101 ,"5,595.00",
DFID,DFID,19/11/2012,Secure Staff Accomodation ,East and Central Africa ,Supplier Name withheld ,101635-101 ,"3,922.79",
DFID,DFID,19/11/2012,Technical and Advisory Services ,West and Southern Africa ,Mavis MacCarthy ,201857-103 ,"2,329.45",
DFID,DFID,19/11/2012,Technical and Advisory Services ,Western Asia and Stabilisation Division ,Matthew Paul Bunce ,203336-105 ,"2,200.00",
DFID,DFID,19/11/2012,Air fares ,Asia  Caribbean and Overseas Territories ,KUONI BUSINESS TRAVEL INDIA PVT LTD ,201689-101 ,"2,169.22",
DFID,DFID,19/11/2012,Air fares ,Asia  Caribbean and Overseas Territories ,KUONI BUSINESS TRAVEL INDIA PVT LTD ,201689-101 ,"2,024.22",
DFID,DFID,19/11/2012,Air fares ,Asia  Caribbean and Overseas Territories ,KUONI BUSINESS TRAVEL INDIA PVT LTD ,201689-101 ,"1,953.62",
DFID,DFID,19/11/2012,Computer Consumables ,East and Central Africa ,Services & Computer Industries (U) Limited ,101635-101 ,"1,659.38",
DFID,DFID,19/11/2012,Technical and Advisory Services ,Research and Evidence Division ,CHRISTOPHER ADAM ,201712-102 ,"1,560.81",
DFID,DFID,19/11/2012,Hotels - Accommodation only ,West and Southern Africa ,Capital Hotel ,100144-101 ,"1,543.45",
DFID,DFID,19/11/2012,Conferences  Seminars & Meeting/Event Resource ,West and Southern Africa ,Cresta Golfview Hotel Lusaka ,201309-102 ,"1,539.00",
DFID,DFID,19/11/2012,Contract & Agency Staff ,Finance and Corporate Performance Division ,MICHAEL PAGE INTERNATIONAL RECRUITMENT LIMITED ,100201-101 ,"1,513.32",
DFID,DFID,19/11/2012,Technical and Advisory Services ,Policy Division ,HAREWELLE INTERNATIONAL LIMITED ,202860-102 ,"1,300.00",
DFID,DFID,19/11/2012,Other Building Costs ,Human Resources Security & Facilities Division ,MITIE Technical Facilities Management Ltd ,100106-101 ,"1,208.90",
DFID,DFID,19/11/2012,Other Building Costs ,Human Resources Security & Facilities Division ,MITIE Technical Facilities Management Ltd ,100106-101 ,"1,197.90",
DFID,DFID,19/11/2012,Air fares ,Asia  Caribbean and Overseas Territories ,KUONI BUSINESS TRAVEL INDIA PVT LTD ,201689-101 ,"1,112.36",
DFID,DFID,19/11/2012,Repairs  Maint  Alter - Property & Constrct. Services ,West and Southern Africa ,Kayum Electronica ,101620-101 ,"1,080.50",
DFID,DFID,19/11/2012,Hotels - Accommodation only ,East and Central Africa ,Recipient name withheld ,201913-102 ,"1,036.80",
DFID,DFID,19/11/2012,Hotels - Accommodation only ,West and Southern Africa ,Capital Hotel ,100144-101 ,902.47,
DFID,DFID,19/11/2012,Air fares ,East and Central Africa ,Simbatravelcare Limited ,200795-107 ,898.74,
DFID,DFID,19/11/2012,Air fares ,Asia  Caribbean and Overseas Territories ,KUONI BUSINESS TRAVEL INDIA PVT LTD ,101615-101 ,860.39,
DFID,DFID,19/11/2012,Air fares ,Asia  Caribbean and Overseas Territories ,Saimon Overseas Ltd ,101603-101 ,834.49,
DFID,DFID,19/11/2012,Oil - Other Utilities ,West and Southern Africa ,British Embassy ,101638-103 ,824.94,
DFID,DFID,19/11/2012,Computer Consumables ,East and Central Africa ,Services & Computer Industries (U) Limited ,100234-101 ,817.31,
DFID,DFID,19/11/2012,Training - Travel & Subsistence ,Asia  Caribbean and Overseas Territories ,KUONI BUSINESS TRAVEL INDIA PVT LTD ,201689-101 ,763.52,
DFID,DFID,19/11/2012,Air fares ,Asia  Caribbean and Overseas Territories ,Saimon Overseas Ltd ,101603-102 ,759.47,
DFID,DFID,19/11/2012,Hotels - Accommodation only ,International Finance Division ,Recipient name withheld ,202259-101 ,727.03,
DFID,DFID,19/11/2012,Other passenger transport ,East and Central Africa ,Recipient name withheld ,201913-102 ,720.00,
DFID,DFID,19/11/2012,Vehicle Repairs & Maintenance ,Asia  Caribbean and Overseas Territories ,Rahimafrooz Distribution Limited ,100025-101 ,704.30,
DFID,DFID,19/11/2012,Training - Travel & Subsistence ,East and Central Africa ,Kenya Airways ,101635-101 ,670.67,
DFID,DFID,19/11/2012,Mobile telephones & accessories ,West and Southern Africa ,ECONET ,101638-104 ,670.61,
DFID,DFID,19/11/2012,Contract & Agency Staff ,International Finance Division ,Hays Specialist Recruitment Ltd ,100120-101 ,638.72,
DFID,DFID,19/11/2012,Other Building Costs ,Human Resources Security & Facilities Division ,MITIE Technical Facilities Management Ltd ,100106-101 ,602.58,
DFID,DFID,19/11/2012,Training - Travel & Subsistence ,Asia  Caribbean and Overseas Territories ,KUONI BUSINESS TRAVEL INDIA PVT LTD ,201689-101 ,584.72,
DFID,DFID,19/11/2012,Hotels - Accommodation only ,Research and Evidence Division ,Recipient name withheld ,100039-102 ,575.79,
DFID,DFID,19/11/2012,Mobile telephones & accessories ,Asia  Caribbean and Overseas Territories ,Grameen Phone ,101603-101 ,552.27,
DFID,DFID,19/11/2012,Water charges ,East and Central Africa ,Mekere Sultan ,202586-101 ,526.32,
DFID,DFID,20/11/2012,Aid Programme - Accountable Grant Payments ,West and Southern Africa ,INTERNATIONAL RESCUE COMMITTEE UK ,105862-103 ,"3,400,910.00",
DFID,DFID,20/11/2012,Aid Programme - Trust Funds contributions ,Policy Division ,IBRD (HSBC)  C/O THE WORLD BANK ,203034-103 ,"2,000,000.00",
DFID,DFID,20/11/2012,Aid Programme - Challenge Fund payments ,Asia  Caribbean and Overseas Territories ,Harewelle International Limited. ,107402-102 ,"1,879,854.04",
DFID,DFID,20/11/2012,Technical and Advisory Services ,Asia  Caribbean and Overseas Territories ,MAXWELL STAMP PLC ,114175-102 ,"1,372,075.23",
DFID,DFID,20/11/2012,Technical and Advisory Services ,West and Southern Africa ,Cambridge  Education Limited ,104200-101 ,"1,105,258.08",
DFID,DFID,20/11/2012,Aid Programme - Other Financial Aid to Government ,East and Central Africa ,Ministry of Finance Tanzania  Public Financial Management Reform Programme ,203008-101 ,"1,000,000.00",
DFID,DFID,20/11/2012,Aid Programme - Accountable Grant Payments ,East and Central Africa , Overseas Development Institute ,201609-101 ,"722,750.00",
DFID,DFID,20/11/2012,Technical and Advisory Services ,Asia  Caribbean and Overseas Territories ,CAMBRIDGE EDUCATION LTD ,108034-101 ,"482,352.48",
DFID,DFID,20/11/2012,Technical and Advisory Services ,West and Southern Africa ,SEARCH FOR COMMON GROUND ,200856-103 ,"393,072.00",
DFID,DFID,20/11/2012,Aid Programme - Accountable Grant Payments ,West and Southern Africa ,University of Cape Town ,104855-105 ,"387,564.78",
DFID,DFID,20/11/2012,Aid Programme - Core contributions ,East and Central Africa ,INFRASTRUCTURE CONSORTIUM FOR AFRICA ,200222-102 ,"250,000.00",
DFID,DFID,20/11/2012,Aid Programme - Other Financial Aid to Government ,West and Southern Africa ,Anti-Corruption Commission Republic of Zambia ,201107-102 ,"246,466.22",
DFID,DFID,20/11/2012,Aid Programme - Voluntary contributions ,Middle East & North Africa Division (MENAD) ,UNFPA ,203451-101 ,"222,807.00",
DFID,DFID,20/11/2012,Technical and Advisory Services ,East and Central Africa ,ATOS CONSULTING LIMITED ,113400-103 ,"203,877.46",
DFID,DFID,20/11/2012,Technical and Advisory Services ,Asia  Caribbean and Overseas Territories ,MAXWELL STAMP PLC ,114175-103 ,"200,000.00",
DFID,DFID,20/11/2012,Aid Programme - Accountable Grant Payments ,West and Southern Africa ,PLAN MALAWI- CBM PROJECT ,200469-115 ,"172,232.00",
DFID,DFID,20/11/2012,Technical and Advisory Services ,Asia  Caribbean and Overseas Territories ,MAXWELL STAMP PLC ,114175-101 ,"159,302.93",
DFID,DFID,20/11/2012,Technical and Advisory Services ,West and Southern Africa ,COFFEY INTERNATIONAL DEVELOPMENT LTD ,104190-103 ,"138,262.90",
DFID,DFID,20/11/2012,Technical and Advisory Services ,Middle East & North Africa Division (MENAD) ,OXFORD POLICY MANAGEMENT ,202241-104 ,"122,963.10",
DFID,DFID,20/11/2012,Aid Programme - Accountable Grant Payments ,International Relations Division , Overseas Development Institute ,202670-101 ,"111,805.08",
DFID,DFID,20/11/2012,Technical and Advisory Services ,Asia  Caribbean and Overseas Territories ,Harewelle International Limited. ,107402-101 ,"94,082.38",
DFID,DFID,20/11/2012,Technical and Advisory Services ,West and Southern Africa ,GRM INTERNATIONAL LTD ,202352-102 ,"93,076.44",
DFID,DFID,20/11/2012,Technical and Advisory Services ,Research and Evidence Division ,COFFEY INTERNATIONAL DEVELOPMENT LTD ,203193-101 ,"81,496.80",
DFID,DFID,20/11/2012,Aid Programme - Accountable Grant Payments ,Asia  Caribbean and Overseas Territories ,WESTMINSTER FOUNDATION FOR DEMOCRACY ,200593-103 ,"76,054.00",
DFID,DFID,20/11/2012,Technical and Advisory Services ,East and Central Africa ,Cambridge  Education Limited ,202610-102 ,"59,754.77",
DFID,DFID,20/11/2012,Technical and Advisory Services ,Research and Evidence Division ,HTSPE LTD ,203193-101 ,"58,950.00",
DFID,DFID,20/11/2012,Aid Programme - Accountable Grant Payments ,Middle East & North Africa Division (MENAD) ,European Council on Foreign Relations ,203366-101 ,"48,666.00",
DFID,DFID,20/11/2012,Technical and Advisory Services ,Asia  Caribbean and Overseas Territories ,DELOITTE TOUCHE TOHMATSU INDIA PRIVA ,108070-101 ,"31,181.38",
DFID,DFID,20/11/2012,Technical and Advisory Services ,West and Southern Africa ,GRM INTERNATIONAL LTD ,202352-102 ,"28,950.84",
DFID,DFID,20/11/2012,Technical and Advisory Services ,Asia  Caribbean and Overseas Territories ,Intellectual Capital Advisory Services Private Limited ,114293-103 ,"22,749.04",
DFID,DFID,20/11/2012,Technical and Advisory Services ,Asia  Caribbean and Overseas Territories ,Allen Lane Limited ,202083-101 ,"22,146.11",
DFID,DFID,20/11/2012,Technical and Advisory Services ,East and Central Africa ,OpenCities Ltd ,202991-101 ,"20,919.00",
DFID,DFID,20/11/2012,Technical and Advisory Services ,East and Central Africa ,COFFEY INTERNATIONAL DEVELOPMENT LTD ,202302-102 ,"15,000.00",
DFID,DFID,20/11/2012,Facilities Management payments ,Asia  Caribbean and Overseas Territories ,CB RICHARD ELLIS SOUTH ASIA PVT LTD ,201689-105 ,"13,612.89",
DFID,DFID,20/11/2012,Technical and Advisory Services ,East and Central Africa ,HTSPE LTD ,103548-101 ,"12,433.21",
DFID,DFID,20/11/2012,Repairs  Maint  Alter - Property & Constrct. Services ,East and Central Africa ,DMS Africa(Local) ,202594-101 ,"10,963.05",
DFID,DFID,20/11/2012,Technical and Advisory Services ,Asia  Caribbean and Overseas Territories ,SIDBI Venture Capital Limited ,114293-102 ,"10,270.45",
DFID,DFID,20/11/2012,Aid Programme - Accountable Grant Payments ,Asia  Caribbean and Overseas Territories ,SNV Vietnam ,200608-104 ,"7,535.22",
DFID,DFID,20/11/2012,Technical and Advisory Services ,Asia  Caribbean and Overseas Territories ,Crisil Risk and Infrastructure Solutions Limited ,202736-101 ,"6,639.85",
DFID,DFID,20/11/2012,Aid Programme - Accountable Grant Payments ,Asia  Caribbean and Overseas Territories ,INDIAN INSTITUTE OF MANAGEMENT BANGL ,114320-113 ,"6,222.32",
DFID,DFID,20/11/2012,Technical and Advisory Services ,Asia  Caribbean and Overseas Territories ,Amarchand & Mangaldas & Suresh A Shroff & Co. ,114293-102 ,"5,640.12",
DFID,DFID,20/11/2012,Telephone Usage & services ,East and Central Africa ,VODACOM TANZANIA ,101634-101 ,"5,592.06",
DFID,DFID,20/11/2012,Technical and Advisory Services ,East and Central Africa ,HAREWELLE INTERNATIONAL LIMITED ,202534-103 ,"4,422.47",
DFID,DFID,20/11/2012,Technical and Advisory Services ,Asia  Caribbean and Overseas Territories ,Harewelle International Limited. ,107402-105 ,"3,536.16",
DFID,DFID,20/11/2012,Technical and Advisory Services ,Western Asia and Stabilisation Division ,Christian Dennys ,203341-102 ,"3,254.95",
DFID,DFID,20/11/2012,Training - Travel & Subsistence ,Asia  Caribbean and Overseas Territories ,KUONI BUSINESS TRAVEL INDIA PVT LTD ,201689-101 ,"2,432.89",
DFID,DFID,20/11/2012,Telephone Usage & services ,East and Central Africa ,VODACOM TANZANIA ,100230-101 ,"2,396.60",
DFID,DFID,20/11/2012,Technical and Advisory Services ,Asia  Caribbean and Overseas Territories ,SPC MANAGEMENT SERVICES PRIVATE LIMI ,114177-101 ,"2,259.11",
DFID,DFID,20/11/2012,Contract & Agency Staff ,Human Resources Security & Facilities Division ,Michaeil Page Int. Recruitment Ltd ,100268-101 ,"2,220.00",
DFID,DFID,20/11/2012,Gas ,Human Resources Security & Facilities Division ,CORONA ENERGY ,100187-101 ,"2,057.42",
DFID,DFID,20/11/2012,Storage & Distribution costs ,Western Asia and Stabilisation Division ,CROWN RELOCATIONS  UK ,101624-101 ,"1,966.06",
DFID,DFID,20/11/2012,Air fares ,Human Resources Security & Facilities Division ,Samuel Jay Kutnick ,100269-128 ,"1,835.00",
DFID,DFID,20/11/2012,Contract Catering Services ,Asia  Caribbean and Overseas Territories ,THE GOURMET FACTORY ,201689-105 ,"1,796.52",
DFID,DFID,20/11/2012,Technical and Advisory Services ,Asia  Caribbean and Overseas Territories ,KEIKO TSUNEKAWA BUTTERWORTH ,201645-109 ,"1,672.00",
DFID,DFID,20/11/2012,Telephone Usage & services ,East and Central Africa ,MTN RWANDACELL ,101628-101 ,"1,578.86",
DFID,DFID,20/11/2012,Contract & Agency Staff ,Policy Division ,Hays Specialist Recruitment Ltd ,100191-101 ,"1,531.01",
DFID,DFID,20/11/2012,Contract & Agency Staff ,Finance and Corporate Performance Division ,Hays Specialist Recruitment Ltd ,202836-101 ,"1,373.29",
DFID,DFID,20/11/2012,Contract & Agency Staff ,Finance and Corporate Performance Division ,Hays Specialist Recruitment Ltd ,202836-101 ,"1,301.79",
DFID,DFID,20/11/2012,Contract & Agency Staff ,Finance and Corporate Performance Division ,MICHAEL PAGE INTERNATIONAL RECRUITMENT LIMITED ,100201-101 ,"1,150.02",
DFID,DFID,20/11/2012,Contract & Agency Staff ,Finance and Corporate Performance Division ,Hays Specialist Recruitment Ltd ,100201-101 ,"1,130.16",
DFID,DFID,20/11/2012,Contract & Agency Staff ,Finance and Corporate Performance Division ,Hays Specialist Recruitment Ltd ,100201-101 ,"1,102.50",
DFID,DFID,20/11/2012,Air fares ,Asia  Caribbean and Overseas Territories ,KUONI BUSINESS TRAVEL INDIA PVT LTD ,201689-101 ,"1,033.75",
DFID,DFID,20/11/2012,Furniture & Fittings ,Human Resources Security & Facilities Division ,J S  SEATING LIMITED ,100187-101 ,"1,018.80",
DFID,DFID,20/11/2012,Air fares ,Asia  Caribbean and Overseas Territories ,KUONI BUSINESS TRAVEL INDIA PVT LTD ,201689-101 ,967.89,
DFID,DFID,20/11/2012,Training - Course Fees ,West and Southern Africa ,ESAMI - Maputo ,101620-101 ,942.80,
DFID,DFID,20/11/2012,Air fares ,Asia  Caribbean and Overseas Territories ,Saimon Overseas Ltd ,203398-101 ,891.31,
DFID,DFID,20/11/2012,Technical and Advisory Services ,Asia  Caribbean and Overseas Territories ,Web Werks India Pvt. Ltd. ,114506-101 ,876.84,
DFID,DFID,20/11/2012,Contract & Agency Staff ,Finance and Corporate Performance Division ,Hays Specialist Recruitment Ltd ,202836-101 ,858.07,
DFID,DFID,20/11/2012,Hotels - Accommodation only ,West and Southern Africa ,Grand Hotel ,101610-101 ,848.08,
DFID,DFID,20/11/2012,Hotels - Accommodation only ,West and Southern Africa ,Grand Hotel ,101610-101 ,848.08,
DFID,DFID,20/11/2012,Hotels - Accommodation only ,West and Southern Africa ,Grand Hotel ,101610-101 ,848.08,
DFID,DFID,20/11/2012,Air fares ,East and Central Africa ,BCD Travel (KSH) ,101616-101 ,847.23,
DFID,DFID,20/11/2012,Hotels - Accommodation only ,West and Southern Africa ,Grand Hotel ,101610-101 ,833.10,
DFID,DFID,20/11/2012,Training - Travel & Subsistence ,Asia  Caribbean and Overseas Territories ,KUONI BUSINESS TRAVEL INDIA PVT LTD ,201689-101 ,828.60,
DFID,DFID,20/11/2012,Hotels - Accommodation only ,Policy Division ,Recipient name withheld ,200659-115 ,826.89,
DFID,DFID,20/11/2012,Staff Travel - Air Fares ,West and Southern Africa ,DANA Agency ,101620-101 ,779.63,
DFID,DFID,20/11/2012,Repairs  Maint  Alter - Property & Constrct. Services ,West and Southern Africa ,Clemto Investments Ltd ,101622-101 ,751.19,
DFID,DFID,20/11/2012,Hotels - Accommodation only ,Research and Evidence Division ,Recipient name withheld ,100039-108 ,722.81,
DFID,DFID,20/11/2012,Training - Travel & Subsistence ,Asia  Caribbean and Overseas Territories ,KUONI BUSINESS TRAVEL INDIA PVT LTD ,201689-101 ,691.79,
DFID,DFID,20/11/2012,Telephone Usage & services ,East and Central Africa ,RWANDATEL SA ,101628-101 ,691.75,
DFID,DFID,20/11/2012,Telephone Usage & services ,East and Central Africa ,MTN RWANDACELL ,100212-101 ,676.65,
DFID,DFID,20/11/2012,Hotels - Accommodation only ,East and Central Africa ,BCD Travel (KSH) ,101616-101 ,646.16,
DFID,DFID,20/11/2012,Conferences  Seminars & Meeting/Event Resource ,Internal Audit ,INSTITUTE OF INTERNAL AUDITORS-UK ,100121-101 ,635.00,
DFID,DFID,20/11/2012,Air fares ,East and Central Africa ,WFP Sudan Juba Sub Imprest(US$) ,202594-101 ,629.72,
DFID,DFID,20/11/2012,Air fares ,East and Central Africa ,Recipient name withheld ,101635-101 ,627.54,
DFID,DFID,20/11/2012,Further Education costs ,East and Central Africa ,University of Nairobi Enterprises & Services Ltd ,101630-101 ,624.55,
DFID,DFID,20/11/2012,Hotels - Accommodation only ,Research and Evidence Division ,Recipient name withheld ,202333-101 ,522.83,
DFID,DFID,20/11/2012,Vehicle Petrol & Oil ,Asia  Caribbean and Overseas Territories ,Sikder Filling and Serivce Station ,100025-101 ,514.50,
DFID,DFID,20/11/2012,Air fares ,West and Southern Africa ,Jeffery Travels ,101610-101 ,512.26,
DFID,DFID,21/11/2012,Aid Programme - Accountable Grant Payments ,Policy Division ,IIED  ,202834-101 ,"676,636.00",
DFID,DFID,21/11/2012,Aid Programme - Partnership Programme Arrangements ,Policy Division ,INTERNATIONAL ALERT ,202687-101 ,"434,790.00",
DFID,DFID,21/11/2012,Technical and Advisory Services ,West and Southern Africa ,ATOS CONSULTING LIMITED ,200452-101 ,"392,356.86",
DFID,DFID,21/11/2012,Technical and Advisory Services ,West and Southern Africa ,HTSPE LTD ,200681-101 ,"386,776.57",
DFID,DFID,21/11/2012,Aid Programme - Accountable Grant Payments ,West and Southern Africa ,Action Against Hunger - USA ,202061-101 ,"353,606.00",
DFID,DFID,21/11/2012,Technical and Advisory Services ,Asia  Caribbean and Overseas Territories ,CAPITA HELM CORPORATION LTD ,107448-101 ,"328,315.01",
DFID,DFID,21/11/2012,Aid Programme - Accountable Grant Payments ,Policy Division ,INSTITUTE OF DEVELOPMENT STUDIES ,202830-101 ,"296,042.00",
DFID,DFID,21/11/2012,Technical and Advisory Services ,West and Southern Africa ,The World Bank (EFO) ,203312-102 ,"230,000.00",
DFID,DFID,21/11/2012,Technical and Advisory Services ,West and Southern Africa ,DAI Europe ,201958-102 ,"180,763.34",
DFID,DFID,21/11/2012,Technical and Advisory Services ,Business Solutions Division Level ,MICROSOFT LTD ,200001-101 ,"88,905.60",Microsoft Premier Support Contract 2012-2013 
DFID,DFID,21/11/2012,Aid Programme - Voluntary contributions ,Asia  Caribbean and Overseas Territories ,The World Bank (EFO) ,201375-104 ,"80,000.00",
DFID,DFID,21/11/2012,Technical and Advisory Services ,Western Asia and Stabilisation Division ,Supplier Name withheld ,114488-101 ,"77,718.00",
DFID,DFID,21/11/2012,Aid Programme - Accountable Grant Payments ,International Relations Division ,EAST WEST MANAGEMENT INSTITUTE ,114326-103 ,"69,999.93",
DFID,DFID,21/11/2012,Technical and Advisory Services ,Western Asia and Stabilisation Division ,DAI EUROPE LIMITED ,202261-102 ,"54,752.00",
DFID,DFID,21/11/2012,Technical and Advisory Services ,Western Asia and Stabilisation Division ,OXFORD POLICY MANAGEMENT ,108742-101 ,"45,489.15",
DFID,DFID,21/11/2012,Technical and Advisory Services ,Western Asia and Stabilisation Division ,DAI EUROPE LIMITED ,202233-102 ,"35,999.88",
DFID,DFID,21/11/2012,Technical and Advisory Services ,Western Asia and Stabilisation Division ,DAI EUROPE LIMITED ,202261-101 ,"35,999.88",
DFID,DFID,21/11/2012,Technical and Advisory Services ,East and Central Africa ,PRICEWATERHOUSECOOPERS ,200250-111 ,"26,650.63",
DFID,DFID,21/11/2012,Technical and Advisory Services ,Asia  Caribbean and Overseas Territories ,OXFORD CONSULTING PARTNERS ,202833-101 ,"25,583.04",
DFID,DFID,21/11/2012,Technical and Advisory Services ,East and Central Africa ,HTSPE LTD ,103548-101 ,"21,849.21",
DFID,DFID,21/11/2012,Technical and Advisory Services ,Western Asia and Stabilisation Division ,DAI EUROPE LIMITED ,202233-103 ,"20,925.00",
DFID,DFID,21/11/2012,Technical and Advisory Services ,East and Central Africa ,COFFEY INTERNATIONAL DEVELOPMENT LTD ,202597-101 ,"13,184.54",
DFID,DFID,21/11/2012,Technical and Advisory Services ,Asia  Caribbean and Overseas Territories ,TURNER & TOWNSEND ,100114-104 ,"10,713.45",
DFID,DFID,21/11/2012,Technical and Advisory Services ,Joint Trade Policy Division ,Co-Creation Hub Nigeria ,203530-102 ,"10,596.25",
DFID,DFID,21/11/2012,Secure Staff Accomodation ,West and Southern Africa ,Supplier Name withheld ,101610-101 ,"10,564.44",
DFID,DFID,21/11/2012,Technical and Advisory Services ,Western Asia and Stabilisation Division ,Dr Farzana Bari ,203264-101 ,"9,467.06",
DFID,DFID,21/11/2012,Repairs  Maint  Alter - Property & Constrct. Services ,Western Asia and Stabilisation Division ,Supplier Name withheld ,100061-101 ,"8,875.16",
DFID,DFID,21/11/2012,Technical and Advisory Services ,East and Central Africa ,Common Futures Consulting Limited ,201866-105 ,"8,313.00",
DFID,DFID,21/11/2012,Contract & Agency Staff ,Business Solutions Division Level ,OPIN SYSTEMS LIMITED ,200001-101 ,"6,384.00",
DFID,DFID,21/11/2012,Technical and Advisory Services ,Asia  Caribbean and Overseas Territories ,Southasia Institute of Advance Studies ,114324-102 ,"5,896.08",
DFID,DFID,21/11/2012,Aid Programme - Accountable Grant Payments ,Asia  Caribbean and Overseas Territories ,Dolma Development Fund ,203426-101 ,"5,833.32",
DFID,DFID,21/11/2012,Legal costs ,International Finance Division ,Marriott Davies Yapp LLP ,202259-101 ,"5,271.60",
DFID,DFID,21/11/2012,Furniture & Fittings ,West and Southern Africa ,CHARLES KENDALL & PARTNERS LIMITED (PROCUREMENT) ,100069-101 ,"4,685.75",
DFID,DFID,21/11/2012,Technical and Advisory Services ,Western Asia and Stabilisation Division ,Inshan Ali Nawaz ,113331-103 ,"4,489.99",
DFID,DFID,21/11/2012,Data Network - land lines ,Business Solutions Division Level ,Level 3 ,200002-117 ,"4,068.26",
DFID,DFID,21/11/2012,Oil - Other Utilities ,Western Asia and Stabilisation Division ,Pakistan State Oil Company Ltd ,101624-101 ,"3,660.57",
DFID,DFID,21/11/2012,Technical and Advisory Services ,West and Southern Africa ,British Airways Ltd ,106059-102 ,"3,025.60",
DFID,DFID,21/11/2012,Relocation costs ,East and Central Africa ,CROWN RELOCATIONS  UK ,101616-101 ,"2,749.83",
DFID,DFID,21/11/2012,Contract Catering Services ,Western Asia and Stabilisation Division ,Supplier Name withheld ,100011-110 ,"2,595.48",
DFID,DFID,21/11/2012,Computer software maintenance ,Business Solutions Division Level ,Rufus Leonard Ltd ,200002-196 ,"2,316.00",
DFID,DFID,21/11/2012,Technical and Advisory Services ,Human Resources Security & Facilities Division ,MidlandHR ,100272-101 ,"2,100.00",
DFID,DFID,21/11/2012,Gas ,Human Resources Security & Facilities Division ,CORONA ENERGY ,100106-101 ,"2,046.84",
DFID,DFID,21/11/2012,Repairs  Maint  Alter - Property & Constrct. Services ,West and Southern Africa ,Pekolyn Tech. Services ,101622-101 ,"1,936.91",
DFID,DFID,21/11/2012,Repairs  Maint  Alter - Property & Constrct. Services ,West and Southern Africa ,Pekolyn Tech. Services ,101622-101 ,"1,936.91",
DFID,DFID,21/11/2012,Repairs  Maint  Alter - Property & Constrct. Services ,West and Southern Africa ,Pekolyn Tech. Services ,101622-101 ,"1,936.91",
DFID,DFID,21/11/2012,Repairs  Maint  Alter - Property & Constrct. Services ,West and Southern Africa ,Pekolyn Tech. Services ,101622-101 ,"1,936.91",
DFID,DFID,21/11/2012,Aid Programme - Humanitarian Material Relief Assistance and Services ,Western Asia and Stabilisation Division ,Hotel Indus Hyderabad ,202930-103 ,"1,846.48",
DFID,DFID,21/11/2012,Hotels - Accommodation only ,Western Asia and Stabilisation Division ,Hotel Indus Hyderabad ,101624-101 ,"1,782.77",
DFID,DFID,21/11/2012,Legal costs ,Finance and Corporate Performance Division ,Marriott Davies Yapp LLP ,100201-101 ,"1,766.40",
DFID,DFID,21/11/2012,Legal costs ,Policy Division ,Marriott Davies Yapp LLP ,202372-102 ,"1,683.60",
DFID,DFID,21/11/2012,Contract & Agency Staff ,Finance and Corporate Performance Division ,MICHAEL PAGE INTERNATIONAL RECRUITMENT LIMITED ,100201-101 ,"1,650.00",
DFID,DFID,21/11/2012,Data Network - land lines ,Business Solutions Division Level ,Level 3 ,200002-117 ,"1,588.38",
DFID,DFID,21/11/2012,Recruitment costs ,East and Central Africa ,Info Mind Solutions plc ,100082-101 ,"1,543.00",
DFID,DFID,21/11/2012,Gas ,Human Resources Security & Facilities Division ,CORONA ENERGY ,100106-101 ,"1,401.24",
DFID,DFID,21/11/2012,Repairs  Maint  Alter - Property & Constrct. Services ,West and Southern Africa ,Pekolyn Tech. Services ,101622-101 ,"1,378.84",
DFID,DFID,21/11/2012,Air fares ,West and Southern Africa ,Lamar Travel Agency ,101629-101 ,"1,319.10",
DFID,DFID,21/11/2012,Contract & Agency Staff ,International Finance Division ,Hays Specialist Recruitment Ltd ,100120-101 ,"1,307.25",
DFID,DFID,21/11/2012,Training - Travel & Subsistence ,Western Asia and Stabilisation Division ,Pace Travels ,101624-101 ,"1,255.76",
DFID,DFID,21/11/2012,Technical and Advisory Services ,International Finance Division ,Marriott Davies Yapp LLP ,100098-101 ,"1,097.50",
DFID,DFID,21/11/2012,Contract & Agency Staff ,Finance and Corporate Performance Division ,Hays Specialist Recruitment Ltd ,202836-101 ,"1,030.42",
DFID,DFID,21/11/2012,Technical and Advisory Services ,East and Central Africa ,Jasper-Semu & Associates (USD) ,200187-101 ,977.65,
DFID,DFID,21/11/2012,Contract Catering Services ,Western Asia and Stabilisation Division ,Supplier Name withheld ,100011-110 ,832.91,
DFID,DFID,21/11/2012,Telephone Usage & services ,West and Southern Africa ,Telecomunicacoes de Mocambique ,101620-101 ,829.45,
DFID,DFID,21/11/2012,Telephone Usage & services ,Western Asia and Stabilisation Division ,PMCL ,101624-101 ,826.27,
DFID,DFID,21/11/2012,Contract Catering Services ,Western Asia and Stabilisation Division ,Supplier Name withheld ,101601-110 ,804.02,
DFID,DFID,21/11/2012,Training - Course Fees ,Internal Audit ,Pilgrims Group ,100121-101 ,802.14,
DFID,DFID,21/11/2012,Other passenger transport ,East and Central Africa ,Adika Tour and Travel PLC ,202913-104 ,735.87,
DFID,DFID,21/11/2012,Training - Travel & Subsistence ,West and Southern Africa ,Mukwa Travel and Tours ,101637-101 ,714.64,
DFID,DFID,21/11/2012,Training - Travel & Subsistence ,Western Asia and Stabilisation Division ,BONDS TRAVEL BUREAU ,101624-101 ,709.80,
DFID,DFID,21/11/2012,Training - Travel & Subsistence ,Western Asia and Stabilisation Division ,Pace Travels ,101624-101 ,701.95,
DFID,DFID,21/11/2012,Facilities Management payments ,East and Central Africa ,Dream Clean Limited ,101635-101 ,684.59,
DFID,DFID,21/11/2012,Data Network - land lines ,West and Southern Africa ,MICRO COM Sprl ,101610-101 ,675.25,
DFID,DFID,26/11/2012,Training - Course Fees ,Internal Audit ,Pilgrims Group ,100121-101 ,802.14,
DFID,DFID,21/11/2012,Training - Travel & Subsistence ,Western Asia and Stabilisation Division ,Pace Travels ,101624-101 ,627.88,
DFID,DFID,21/11/2012,Training - Travel & Subsistence ,Western Asia and Stabilisation Division ,Pace Travels ,101624-101 ,627.88,
DFID,DFID,21/11/2012,Training - Travel & Subsistence ,Western Asia and Stabilisation Division ,BONDS TRAVEL BUREAU ,101624-101 ,624.50,
DFID,DFID,21/11/2012,Training - Travel & Subsistence ,West and Southern Africa ,British Airways Ltd ,100254-101 ,587.12,
DFID,DFID,21/11/2012,Technical and Advisory Services ,Asia  Caribbean and Overseas Territories ,SPC MANAGEMENT SERVICES PRIVATE LIMI ,114177-101 ,583.09,
DFID,DFID,21/11/2012,Telephone Usage & services ,Western Asia and Stabilisation Division ,Telenor Pakistan  ,101624-101 ,581.96,
DFID,DFID,21/11/2012,Hotels - Accommodation only ,Internal Audit ,Hotel Cardoso S A R L ,100121-101 ,557.44,
DFID,DFID,21/11/2012,Hotels - Accommodation only ,Internal Audit ,Hotel Cardoso S A R L ,100121-101 ,557.44,
DFID,DFID,21/11/2012,Hotels - Accommodation only ,Internal Audit ,Hotel Cardoso S A R L ,100121-101 ,557.44,
DFID,DFID,21/11/2012,Hotels - Accommodation only ,Finance and Corporate Performance Division ,Recipient name withheld ,202836-102 ,528.97,
DFID,DFID,21/11/2012,Hotels - Accommodation only ,International Finance Division ,Recipient name withheld ,100098-101 ,521.58,
DFID,DFID,21/11/2012,Legal costs ,Asia  Caribbean and Overseas Territories ,Marriott Davies Yapp LLP ,202083-101 ,503.50,
DFID,DFID,22/11/2012,Aid Programme - Joint programme contribution ,East and Central Africa ,WHO (GENEVA) ,113303-105 ,"2,293,155.00",
DFID,DFID,22/11/2012,Technical and Advisory Services ,East and Central Africa ,BMB  MOTT  MACDONALD ,104978-115 ,"1,778,870.00",
DFID,DFID,22/11/2012,Technical and Advisory Services ,East and Central Africa ,MARIE STOPES INTERNATIONAL ,201518-102 ,"1,745,865.00",
DFID,DFID,22/11/2012,Technical and Advisory Services ,Asia  Caribbean and Overseas Territories ,MARIE STOPES INTERNATIONAL ,201518-103 ,"1,045,328.00",
DFID,DFID,22/11/2012,Aid Programme - Partnership Programme Arrangements ,Policy Division ,HELPAGE INTERNATIONAL ,202566-101 ,"667,567.25",
DFID,DFID,22/11/2012,Technical and Advisory Services ,West and Southern Africa ,MALARIA CONSORTIUM ,104223-101 ,"603,480.00",
DFID,DFID,22/11/2012,Technical and Advisory Services ,Western Asia and Stabilisation Division ,HTSPE LTD ,202491-102 ,"325,258.00",
DFID,DFID,22/11/2012,Technical and Advisory Services ,Western Asia and Stabilisation Division ,Supplier Name withheld ,202109-102 ,"302,367.38",
DFID,DFID,22/11/2012,Aid Programme - Voluntary contributions ,East and Central Africa ,UNICEF ,103022-102 ,"300,000.00",
DFID,DFID,22/11/2012,Aid Programme - Accountable Grant Payments ,East and Central Africa ,VSO ,202525-101 ,"263,071.00",
DFID,DFID,22/11/2012,Technical and Advisory Services ,Asia  Caribbean and Overseas Territories ,BMB MOTT  MACDONALD ,107480-101 ,"229,331.51",
DFID,DFID,22/11/2012,Technical and Advisory Services ,Western Asia and Stabilisation Division ,Supplier Name withheld ,202109-102 ,"185,868.28",
DFID,DFID,22/11/2012,Aid Programme - Accountable Grant Payments ,West and Southern Africa ,NATIONAL DEMOCRATIC INSTITUTE (NDI) ,202477-109 ,"159,930.27",
DFID,DFID,22/11/2012,Technical and Advisory Services ,East and Central Africa ,BMB  MOTT  MACDONALD ,104978-115 ,"147,474.16",
DFID,DFID,22/11/2012,Technical and Advisory Services ,West and Southern Africa ,GRM INTERNATIONAL LTD ,113871-128 ,"117,872.31",
DFID,DFID,22/11/2012,Technical and Advisory Services ,Policy Division ,TRIPLE LINE CONSULTING LTD ,202035-101 ,"112,861.94",
DFID,DFID,22/11/2012,Technical and Advisory Services ,East and Central Africa ,COWI A S ,200250-112 ,"103,341.50",
DFID,DFID,22/11/2012,Technical and Advisory Services ,East and Central Africa ,I T TRANSPORT LTD ,105409-103 ,"97,043.28",
DFID,DFID,22/11/2012,Technical and Advisory Services ,Asia  Caribbean and Overseas Territories ,BMB MOTT  MACDONALD ,107480-101 ,"89,792.21",
DFID,DFID,22/11/2012,Technical and Advisory Services ,Asia  Caribbean and Overseas Territories ,PRICEWATERHOUSECOOPERS PRIVATE LTD ,113287-102 ,"69,577.64",
DFID,DFID,22/11/2012,Technical and Advisory Services ,Asia  Caribbean and Overseas Territories ,HTSPE LTD ,201129-104 ,"44,781.95",
DFID,DFID,22/11/2012,Recruitment costs ,International Relations Division ,HM REVENUE AND CUSTOMS ,100086-101 ,"41,000.00",DFID Contribution to the HMG European Faststreamer Programme for 2012/13 
DFID,DFID,22/11/2012,Aid Programme - Accountable Grant Payments ,West and Southern Africa ,ZAMBIA INSTITUTE FOR POLICY ANALYSIS AND RESEARCH ,201944-102 ,"40,872.76",
DFID,DFID,22/11/2012,Aid Programme - Trust Funds contributions ,East and Central Africa ,The World Bank (EFO) ,202900-104 ,"40,000.00",
DFID,DFID,22/11/2012,Aid Programme - Accountable Grant Payments ,East and Central Africa ,VSO ,202525-105 ,"38,911.00",
DFID,DFID,22/11/2012,Other rentals ,East and Central Africa ,Delegation of the European Union to South Sudan ,202586-101 ,"33,909.03",Shared FCO/ EU secure common compound costs - South Sudan
DFID,DFID,22/11/2012,Research & Development costs ,Research and Evidence Division ,OVERSEAS DEVELOPMENT INSTITUTE ,201642-101 ,"27,630.00",
DFID,DFID,22/11/2012,Technical and Advisory Services ,East and Central Africa ,ORGUT UK ,200284-105 ,"24,845.70",
DFID,DFID,22/11/2012,Technical and Advisory Services ,Asia  Caribbean and Overseas Territories ,HTSPE LTD ,201129-104 ,"21,157.50",
DFID,DFID,22/11/2012,Technical and Advisory Services ,East and Central Africa ,Jasper-Semu & Associates (USD) ,200217-104 ,"18,599.83",
DFID,DFID,22/11/2012,Technical and Advisory Services ,Western Asia and Stabilisation Division ,Ipsos MORI ,202491-104 ,"14,400.00",
DFID,DFID,22/11/2012,Storage & Distribution costs ,Business Solutions Division Level ,TNT Express (UK) Ltd ,200001-101 ,"11,568.37",
DFID,DFID,22/11/2012,Technical and Advisory Services ,West and Southern Africa ,Ignacio Mas ,203000-102 ,"10,784.00",
DFID,DFID,22/11/2012,Secure Staff Accomodation ,West and Southern Africa ,Supplier Name withheld ,101610-101 ,"10,623.41",
DFID,DFID,22/11/2012,Secure Staff Accomodation ,West and Southern Africa ,Supplier Name withheld ,101610-101 ,"10,622.10",
DFID,DFID,22/11/2012,Secure Staff Accomodation ,West and Southern Africa ,Supplier Name withheld ,101610-101 ,"10,620.79",
DFID,DFID,22/11/2012,Technical and Advisory Services ,Joint Trade Policy Division ,Co-Creation Hub Nigeria ,203530-102 ,"10,596.25",
DFID,DFID,22/11/2012,Secure Staff Accomodation ,West and Southern Africa ,Supplier Name withheld ,101610-101 ,"10,550.45",
DFID,DFID,22/11/2012,Telephone Usage & services ,Business Solutions Division Level ,Level 3 ,200002-117 ,"7,457.10",
DFID,DFID,22/11/2012,Generators & spares ,West and Southern Africa ,NP (SL) Ltd ,101629-101 ,"6,777.24",
DFID,DFID,22/11/2012,Conferences  Seminars & Meeting/Event Resource ,Research and Evidence Division ,Department for Business  Innovation & Skills ,202332-103 ,"6,680.00",
DFID,DFID,22/11/2012,Aid Programme - Accountable Grant Payments ,East and Central Africa , Overseas Development Institute ,201587-111 ,"5,280.00",
DFID,DFID,22/11/2012,Data Network - land lines ,Business Solutions Division Level ,VERIZON UK LIMITED ,200002-126 ,"4,372.93",
DFID,DFID,22/11/2012,Facilities Management payments ,East and Central Africa ,Furnico General Services. ,101628-101 ,"3,440.01",
DFID,DFID,22/11/2012,Technical and Advisory Services ,Western Asia and Stabilisation Division ,Supplier Name withheld ,114525-102 ,"2,935.00",
DFID,DFID,22/11/2012,Facilities Management payments ,West and Southern Africa ,Fracham Company ,101622-101 ,"2,617.18",
DFID,DFID,22/11/2012,Training - Travel & Subsistence ,West and Southern Africa ,British Airways PLC ,100152-101 ,"2,372.26",
DFID,DFID,22/11/2012,Relocation costs ,East and Central Africa ,CROWN RELOCATIONS  UK ,101628-101 ,"2,356.66",
DFID,DFID,22/11/2012,Training Providers/Facilitation Services ,East and Central Africa ,Simbatravelcare Limited ,200787-106 ,"1,977.34",
DFID,DFID,22/11/2012,Contract & Agency Staff ,Policy Division ,Hays Specialist Recruitment Ltd ,100191-101 ,"1,701.12",
DFID,DFID,22/11/2012,Training Providers/Facilitation Services ,East and Central Africa ,Simbatravelcare Limited ,200787-106 ,"1,681.56",
DFID,DFID,22/11/2012,Telephone Usage & services ,West and Southern Africa ,Vodacom ,101610-101 ,"1,625.95",
DFID,DFID,22/11/2012,Hostile Environment Training ,Western Asia and Stabilisation Division ,Supplier Name withheld ,101601-110 ,"1,604.28",
DFID,DFID,22/11/2012,Contract & Agency Staff ,Policy Division ,Hays Specialist Recruitment Ltd ,100191-101 ,"1,488.48",
DFID,DFID,22/11/2012,Telephone Usage & services ,West and Southern Africa ,Vodacom ,101610-101 ,"1,321.20",
DFID,DFID,22/11/2012,Contract & Agency Staff ,Finance and Corporate Performance Division ,Hays Specialist Recruitment Ltd ,100201-101 ,"1,165.50",
DFID,DFID,22/11/2012,Training - Course Fees ,Research and Evidence Division ,INSTITUTE OF RISK MANAGEMENT ,100039-101 ,"1,074.00",
DFID,DFID,22/11/2012,Training - Course Fees ,International Relations Division ,GATEWAY LANGUAGE SERVICES LTD ,100086-101 ,"1,073.25",
DFID,DFID,22/11/2012,Mobile telephones & accessories ,East and Central Africa ,Network of the World Ltd ,202594-101 ,"1,072.12",
DFID,DFID,22/11/2012,Training - Travel & Subsistence ,West and Southern Africa ,Supplier Name withheld ,101622-101 ,"1,013.47",
DFID,DFID,22/11/2012,Training Providers/Facilitation Services ,East and Central Africa ,Simbatravelcare Limited ,200787-106 ,988.67,
DFID,DFID,22/11/2012,Training Providers/Facilitation Services ,East and Central Africa ,Simbatravelcare Limited ,200787-106 ,958.97,
DFID,DFID,22/11/2012,Contract & Agency Staff ,Policy Division ,Hays Specialist Recruitment Ltd ,100191-101 ,956.88,
DFID,DFID,22/11/2012,Air fares ,East and Central Africa ,Highlight Travel SS T/A BCD Travel ,201597-105 ,944.13,
DFID,DFID,22/11/2012,Other Admin Costs ,West and Southern Africa ,PricewaterhouseCoopers inc ,101631-101 ,911.55,
DFID,DFID,22/11/2012,Air fares ,Asia  Caribbean and Overseas Territories ,British Airways PLC ,100084-101 ,895.40,
DFID,DFID,22/11/2012,Hotels - Accommodation only ,International Finance Division ,Recipient name withheld ,100098-101 ,829.11,
DFID,DFID,22/11/2012,Training - Travel & Subsistence ,West and Southern Africa ,British Airways PLC ,101622-101 ,716.30,
DFID,DFID,22/11/2012,Data Network - land lines ,Business Solutions Division Level ,Level 3 ,200002-117 ,698.94,
DFID,DFID,22/11/2012,Hotels - Accommodation only ,Policy Division ,Recipient name withheld ,202419-103 ,672.15,
DFID,DFID,22/11/2012,Facilities Management payments ,West and Southern Africa ,Fracham Company ,100152-101 ,654.29,
DFID,DFID,22/11/2012,Contract & Agency Staff ,Asia  Caribbean and Overseas Territories ,Hays Specialist Recruitment Ltd ,100084-101 ,652.12,
DFID,DFID,22/11/2012,Telephone Usage & services ,West and Southern Africa ,Vodacom ,100068-101 ,633.55,
DFID,DFID,22/11/2012,Contract & Agency Staff ,Asia  Caribbean and Overseas Territories ,Hays Specialist Recruitment Ltd ,100084-101 ,603.96,
DFID,DFID,22/11/2012,Hotels - Accommodation only ,Conflict Humanitarian and Security Division ,Recipient name withheld ,100049-101 ,581.85,
DFID,DFID,22/11/2012,Contract & Agency Staff ,Human Resources Security & Facilities Division ,Hays Specialist Recruitment Ltd ,100270-102 ,573.40,
DFID,DFID,22/11/2012,Other Building Costs ,Human Resources Security & Facilities Division ,HCS Business Interiors ,100106-101 ,529.20,
DFID,DFID,22/11/2012,Telephone Usage & services ,West and Southern Africa ,Vodacom ,100068-101 ,511.45,
DFID,DFID,23/11/2012,Aid Programme - Accountable Grant Payments ,West and Southern Africa ,POPULATION  SERVICES INTERNATIONAL ,202251-101 ,"3,105,671.55",
DFID,DFID,23/11/2012,Aid Programme - Pooled/Basket funding ,International Finance Division ,BILL & MELINDA GATES FOUNDATION (USD) ,201101-109 ,"1,638,054.65",
DFID,DFID,23/11/2012,Aid Programme - Pooled/Basket funding ,West and Southern Africa ,BILL & MELINDA GATES FOUNDATION (USD) ,203652-101 ,"1,095,364.32",
DFID,DFID,23/11/2012,Aid Programme - Accountable Grant Payments ,Asia  Caribbean and Overseas Territories ,Clinton Health Access Initiative  Inc ,202575-103 ,"1,027,937.05",
DFID,DFID,23/11/2012,Contraceptives ,East and Central Africa ,IPA-International Procurement Agency (BV) ,202420-103 ,"588,802.07",
DFID,DFID,23/11/2012,Technical and Advisory Services ,Western Asia and Stabilisation Division ,Supplier Name withheld ,202311-102 ,"551,693.87",
DFID,DFID,23/11/2012,Aid Programme - Humanitarian Material Relief Assistance and Services ,West and Southern Africa ,World Food  Programme ,202909-105 ,"500,000.00",
DFID,DFID,23/11/2012,Aid Programme - Accountable Grant Payments ,Policy Division ,WESTMINSTER FOUNDATION FOR DEMOCRACY ,202308-101 ,"478,067.00",
DFID,DFID,23/11/2012,Aid Programme - Accountable Grant Payments ,West and Southern Africa ,EFInA ,104187-104 ,"409,609.99",
DFID,DFID,23/11/2012,Aid Programme - Accountable Grant Payments ,Asia  Caribbean and Overseas Territories ,SNV Netherlands Development Organisation(Nepal) ,201488-102 ,"392,000.00",
DFID,DFID,23/11/2012,Other Building Products ,Human Resources Security & Facilities Division ,ISG Fit Out Ltd ,203156-101 ,"290,098.73",
DFID,DFID,23/11/2012,Aid Programme - Accountable Grant Payments ,Policy Division ,Clinton Health Access Initiative  Inc ,202575-102 ,"280,346.51",
DFID,DFID,23/11/2012,Aid Programme - Accountable Grant Payments ,West and Southern Africa ,EFInA ,104187-104 ,"271,800.19",
DFID,DFID,23/11/2012,Aid Programme - Accountable Grant Payments ,West and Southern Africa ,Clinton Health Access Initiative  Inc ,202575-105 ,"249,196.84",
DFID,DFID,23/11/2012,Technical and Advisory Services ,West and Southern Africa ,Abt Associates ,202342-102 ,"244,789.12",
DFID,DFID,23/11/2012,Aid Programme - Other Financial Aid to Government ,East and Central Africa ,Financial and Legal Sector Technical Assistance Ministry of Finance Kenya ,103415-101 ,"151,089.19",
DFID,DFID,23/11/2012,Technical and Advisory Services ,Asia  Caribbean and Overseas Territories ,ADAM SMITH INTERNATIONAL  LTD ,201367-103 ,"119,623.21",
DFID,DFID,23/11/2012,Technical and Advisory Services ,East and Central Africa ,CHARLES KENDALL & PARTNERS LIMITED (PROCUREMENT) ,202513-101 ,"115,319.46",
DFID,DFID,23/11/2012,Data Network - land lines ,Business Solutions Division Level ,CABLE & WIRELESS COMMUN ,200002-185 ,"107,828.81",Data/Broadband/Telecomms services for DFID overseas offices for October 2012
DFID,DFID,23/11/2012,Technical and Advisory Services ,West and Southern Africa ,KPMG Auditores e Consultores SA ,103993-101 ,"74,542.55",
DFID,DFID,23/11/2012,Aid Programme - Accountable Grant Payments ,Research and Evidence Division ,AATF ,201501-102 ,"64,625.00",
DFID,DFID,23/11/2012,Data Network - land lines ,Business Solutions Division Level ,CABLE & WIRELESS COMMUN ,203329-103 ,"55,548.17",Data/Broadband/Telecomms services for DFID overseas offices for October 2012
DFID,DFID,23/11/2012,Aid Programme - Accountable Grant Payments ,East and Central Africa ,BRITISH COUNCIL ,201587-107 ,"45,520.00",
DFID,DFID,23/11/2012,Technical and Advisory Services ,Policy Division ,Triple Line Consulting Limited ,201242-101 ,"42,563.65",
DFID,DFID,23/11/2012,Technical and Advisory Services ,East and Central Africa ,ADAM SMITH INTERNATIONAL  LTD ,200221-107 ,"36,904.32",
DFID,DFID,23/11/2012,Aid Programme - Accountable Grant Payments ,Western Asia and Stabilisation Division ,NATIONAL RURAL SUPPORT PROGRAMME (NRSP) ,200694-104 ,"27,964.00",
DFID,DFID,23/11/2012,Technical and Advisory Services ,West and Southern Africa ,HLSP LIMITED ,203543-101 ,"27,475.00",
DFID,DFID,23/11/2012,Secure Staff Accomodation ,West and Southern Africa ,Supplier Name withheld ,101629-101 ,"23,000.00",
DFID,DFID,23/11/2012,Cleaning Costs ,Human Resources Security & Facilities Division ,MITIE Technical Facilities Management Ltd ,100187-101 ,"20,291.78",
DFID,DFID,23/11/2012,Technical and Advisory Services ,Policy Division ,Triple Line Consulting Limited ,100045-101 ,"17,385.16",
DFID,DFID,23/11/2012,Contraceptives ,East and Central Africa ,IPA-International Procurement Agency (BV) ,202420-103 ,"17,369.66",
DFID,DFID,23/11/2012,Facilities Management payments ,Human Resources Security & Facilities Division ,MITIE Technical Facilities Management Ltd ,100187-101 ,"16,093.50",
DFID,DFID,23/11/2012,Technical and Advisory Services ,West and Southern Africa ,HLSP LTD ,202706-101 ,"14,539.66",
DFID,DFID,23/11/2012,Technical and Advisory Services ,West and Southern Africa ,Charles Kendall & Partners ,202214-103 ,"14,155.05",
DFID,DFID,23/11/2012,Technical and Advisory Services ,East and Central Africa ,SERVICE FOR GENERATIONS INTERNATIONAL ,202401-104 ,"13,785.24",
DFID,DFID,23/11/2012,Cleaning Costs ,Human Resources Security & Facilities Division ,MITIE Technical Facilities Management Ltd ,100106-101 ,"11,917.40",
DFID,DFID,23/11/2012,Secure Staff Accomodation ,East and Central Africa ,Supplier Name withheld ,101635-101 ,"11,250.00",
DFID,DFID,23/11/2012,Secure Staff Accomodation ,West and Southern Africa ,Supplier Name withheld ,100068-101 ,"10,532.90",
DFID,DFID,23/11/2012,Secure Staff Accomodation ,West and Southern Africa ,Supplier Name withheld ,100068-101 ,"10,422.32",
DFID,DFID,23/11/2012,Secure Staff Accomodation ,West and Southern Africa ,Supplier Name withheld ,101610-101 ,"10,101.14",
DFID,DFID,23/11/2012,Technical and Advisory Services ,West and Southern Africa ,IRWIN GRAYSON ASSOCIATES ,114073-101 ,"9,981.20",
DFID,DFID,23/11/2012,Facilities Management payments ,Human Resources Security & Facilities Division ,MITIE Technical Facilities Management Ltd ,100106-101 ,"9,451.75",
DFID,DFID,23/11/2012,Furniture & Fittings ,West and Southern Africa ,Tsunami Axis Ltd ,100097-101 ,"9,352.00",
DFID,DFID,23/11/2012,Technical and Advisory Services ,Business Solutions Division Level ,CABLE & WIRELESS COMMUN ,200002-185 ,"9,159.77",
DFID,DFID,23/11/2012,Technical and Advisory Services ,Business Solutions Division Level ,CABLE & WIRELESS COMMUN ,200002-185 ,"9,159.77",
DFID,DFID,23/11/2012,Repairs  Maint  Alter - Property & Constrct. Services ,Human Resources Security & Facilities Division ,MITIE Technical Facilities Management Ltd ,100106-101 ,"8,625.37",
DFID,DFID,23/11/2012,Subscriptions ,Research and Evidence Division ,NATURE PUBLISHING GROUP ,202348-103 ,"8,528.40",
DFID,DFID,23/11/2012,Telephone Usage & services ,Business Solutions Division Level ,CABLE & WIRELESS COMMUN ,200002-185 ,"8,501.87",
DFID,DFID,23/11/2012,Repairs  Maint  Alter - Property & Constrct. Services ,Human Resources Security & Facilities Division ,MITIE Technical Facilities Management Ltd ,100187-101 ,"8,155.72",
DFID,DFID,23/11/2012,Contract & Agency Staff ,Conflict Humanitarian and Security Division ,SOCIAL DEVELOPMENT DIRECT LTD ,100049-101 ,"6,250.00",
DFID,DFID,23/11/2012,Technical and Advisory Services ,West and Southern Africa ,Anton Eberhard ,201433-104 ,"5,767.93",
DFID,DFID,23/11/2012,Technical and Advisory Services ,Business Solutions Division Level ,CABLE & WIRELESS COMMUN ,203329-103 ,"4,718.67",
DFID,DFID,23/11/2012,Technical and Advisory Services ,Business Solutions Division Level ,CABLE & WIRELESS COMMUN ,203329-103 ,"4,718.67",
DFID,DFID,23/11/2012,Technical and Advisory Services ,East and Central Africa ,Dickson Malunda (PhD) ,202917-101 ,"4,542.32",
DFID,DFID,23/11/2012,Telephone Usage & services ,Business Solutions Division Level ,CABLE & WIRELESS COMMUN ,203329-103 ,"4,379.75",
DFID,DFID,23/11/2012,Subscriptions ,Research and Evidence Division ,Asempa Limited ,202348-103 ,"3,621.60",
DFID,DFID,23/11/2012,Data Network - land lines ,Business Solutions Division Level ,CABLE & WIRELESS COMMUN ,200002-185 ,"3,527.70",
DFID,DFID,23/11/2012,Subscriptions ,Research and Evidence Division ,OXFORD UNIVERSITY PRESS (JOURNALS) ,202348-103 ,"3,480.00",
DFID,DFID,23/11/2012,Technical and Advisory Services ,Asia  Caribbean and Overseas Territories ,Dinh Xuan Lam ,200608-101 ,"2,329.00",
DFID,DFID,23/11/2012,Technical and Advisory Services ,East and Central Africa ,HTSPE LTD ,203153-102 ,"2,293.20",
DFID,DFID,23/11/2012,Technical and Advisory Services ,East and Central Africa ,CHARLES KENDALL & PARTNERS LIMITED (PROCUREMENT) ,202513-104 ,"2,277.68",
DFID,DFID,23/11/2012,Training - Course Fees ,East and Central Africa ,  THE WORLD BANK ,101612-101 ,"2,201.15",
DFID,DFID,23/11/2012,Technical and Advisory Services ,Asia  Caribbean and Overseas Territories ,Nguyen Quang Quynh ,200608-101 ,"2,161.37",
DFID,DFID,23/11/2012,Technical and Advisory Services ,East and Central Africa ,CHARLES KENDALL & PARTNERS LIMITED (PROCUREMENT) ,202513-104 ,"2,119.75",
DFID,DFID,23/11/2012,Data Network - land lines ,Business Solutions Division Level ,CABLE & WIRELESS COMMUN ,203329-103 ,"1,817.29",
DFID,DFID,23/11/2012,Technical and Advisory Services ,Research and Evidence Division ,Ian C Davies Conseil Inc ,201014-102 ,"1,626.00",
DFID,DFID,23/11/2012,Technical and Advisory Services ,East and Central Africa ,Margaret Kakande ,200349-104 ,"1,572.25",
DFID,DFID,23/11/2012,Hotels - Accommodation only ,Research and Evidence Division ,Recipient name withheld ,100088-101 ,"1,294.86",
DFID,DFID,23/11/2012,Recruitment costs ,Human Resources Security & Facilities Division ,MTB CONSULTING ,100269-130 ,"1,080.00",
DFID,DFID,23/11/2012,Contract & Agency Staff ,Finance and Corporate Performance Division ,Hays Specialist Recruitment Ltd ,100201-101 ,988.92,
DFID,DFID,30/11/2012,Hostile Environment Training ,Western Asia and Stabilisation Division ,Pilgrims Group ,202288-102 ,802.14,
DFID,DFID,23/11/2012,Air fares ,West and Southern Africa ,DANA Agency ,101620-101 ,845.08,
DFID,DFID,23/11/2012,Technical and Advisory Services ,Research and Evidence Division ,Development Evaluation Consulting LLC ,201014-102 ,707.40,
DFID,DFID,23/11/2012,Technical and Advisory Services ,Human Resources Security & Facilities Division ,MITIE Technical Facilities Management Ltd ,100187-101 ,639.05,
DFID,DFID,02/11/2012,Training - Course Fees ,Internal Audit ,Pilgrims Group ,100121-101 ,898.13,
DFID,DFID,23/11/2012,Contract & Agency Staff ,Human Resources Security & Facilities Division ,MARGARET HODGE RECRUITMENT LTD ,100266-109 ,527.99,
DFID,DFID,23/11/2012,Data Network - land lines ,Business Solutions Division Level ,Level 3 ,200002-117 ,516.00,
DFID,DFID,25/11/2012,Hotels - Accommodation only ,Western Asia and Stabilisation Division ,Recipient name withheld ,101601-110 ,"2,131.00",
DFID,DFID,25/11/2012,Building Plant - Air Conditioners ,Asia  Caribbean and Overseas Territories ,Haroon Engineering Limited ,100025-101 ,530.62,
DFID,DFID,26/11/2012,Aid Programme - Trust Funds contributions ,Policy Division ,IBRD HSBC T ,202954-101 ,"3,000,000.00",
DFID,DFID,26/11/2012,Aid Programme - Accountable Grant Payments ,Asia  Caribbean and Overseas Territories ,Manusher Jonno Foundation ,113976-102 ,"2,000,000.00",
DFID,DFID,26/11/2012,Aid Programme - Other Financial Aid to Government ,Asia  Caribbean and Overseas Territories ,Ministry of Economic Development & Trade Montserrat ,202824-103 ,"1,503,260.00",
DFID,DFID,26/11/2012,Aid Programme - Voluntary contributions ,Asia  Caribbean and Overseas Territories ,UNDP CONTRIBUTIONS ACCOUNT ,200628-101 ,"1,250,000.00",
DFID,DFID,26/11/2012,Aid Programme - Accountable Grant Payments ,Western Asia and Stabilisation Division ,THE ASIA FOUNDATION ,202289-101 ,"1,239,351.67",
DFID,DFID,26/11/2012,Aid Programme - Trust Funds contributions ,Research and Evidence Division ,IBRD HSBC T ,202954-104 ,"1,000,000.00",
DFID,DFID,26/11/2012,Technical and Advisory Services ,Western Asia and Stabilisation Division ,MSI ,202413-104 ,"794,549.00",
DFID,DFID,26/11/2012,Technical and Advisory Services ,Western Asia and Stabilisation Division ,DAI Europe ,114433-102 ,"288,779.23",
DFID,DFID,26/11/2012,Technical and Advisory Services ,Western Asia and Stabilisation Division ,MSI ,202413-104 ,"276,626.00",
DFID,DFID,26/11/2012,Technical and Advisory Services ,West and Southern Africa ,ADAM SMITH INTERNATIONAL ,201139-101 ,"235,154.40",
DFID,DFID,26/11/2012,Research & Development costs ,Research and Evidence Division ,UNIVERSITY OF LEEDS ,201025-102 ,"194,927.11",
DFID,DFID,26/11/2012,Research & Development costs ,Research and Evidence Division ,London School of Hygiene and Tropical Medicine ,201447-101 ,"190,440.83",
DFID,DFID,26/11/2012,Technical and Advisory Services ,Policy Division ,LONDON SCHOOL OF ECONOMICS AND POLITICAL SCIENCE ,114188-101 ,"149,092.80",
DFID,DFID,26/11/2012,Technical and Advisory Services ,Policy Division ,LONDON SCHOOL OF ECONOMICS AND POLITICAL SCIENCE ,114188-101 ,"129,022.00",
DFID,DFID,26/11/2012,Aid Programme - Accountable Grant Payments ,Communications Division ,Riders for Health ,202197-101 ,"105,731.00",
DFID,DFID,26/11/2012,Technical and Advisory Services ,West and Southern Africa ,OPTIONS CONSULTANCY SERVICES LIMITED ,200344-102 ,"96,465.28",
DFID,DFID,26/11/2012,Technical and Advisory Services ,International Finance Division ,MAXWELL STAMP PLC ,200634-102 ,"94,436.18",
DFID,DFID,26/11/2012,Technical and Advisory Services ,Western Asia and Stabilisation Division ,Supplier Name withheld ,201023-104 ,"75,264.96",
DFID,DFID,26/11/2012,Technical and Advisory Services ,Policy Division ,TROPICAL HEALTH AND EDUCATION TRUST ,202208-101 ,"64,605.13",
DFID,DFID,26/11/2012,Aid Programme - Accountable Grant Payments ,Communications Division ,SIGHT SAVERS INTERNATIONAL ,202197-101 ,"50,000.00",
DFID,DFID,26/11/2012,Technical and Advisory Services ,Western Asia and Stabilisation Division ,Supplier Name withheld ,114348-102 ,"49,794.14",
DFID,DFID,26/11/2012,Secure Staff Accomodation ,East and Central Africa ,Supplier Name withheld ,101633-101 ,"45,072.00",Secure Staff Accomodation costs - annual rental on 2 premises  (10/09/12 - 10/09/13)- Sudan 
DFID,DFID,26/11/2012,Subscriptions ,Research and Evidence Division ,Elsevier B.V. ,202348-103 ,"44,970.57","Annual e-subscription to over 1,800  peer review  journals ( Economics, Climate and environment and Infrastructure etc) for the period Dec 2012-Dec 2013."
DFID,DFID,26/11/2012,Aid Programme - Voluntary contributions ,East and Central Africa ,INTERNATIONAL IDEA ,200156-106 ,"40,395.00",
DFID,DFID,26/11/2012,Aid Programme - Accountable Grant Payments ,East and Central Africa ,The Centre for Humanitarian Dialogue ,200548-108 ,"30,000.00",
DFID,DFID,26/11/2012,Technical and Advisory Services ,West and Southern Africa ,PKF Professional Services ,200274-104 ,"28,426.44",
DFID,DFID,26/11/2012,Technical and Advisory Services ,Asia  Caribbean and Overseas Territories ,OXFORD POLICY MANAGEMENT ,114100-101 ,"27,189.91",
DFID,DFID,26/11/2012,Furniture & Fittings ,East and Central Africa ,DOMUS WOODWORKS LIMITED(USD) ,100230-101 ,"25,680.61",Local house pack for new DFID staff ( 5 properties) -  September 2012 to January 2013 - DFID Tanzania
DFID,DFID,26/11/2012,Technical and Advisory Services ,West and Southern Africa ,MOTT MACDONALD LTD ,202344-104 ,"25,306.25",
DFID,DFID,26/11/2012,Research & Development costs ,Research and Evidence Division ,London School of Hygiene and Tropical Medicine ,201642-101 ,"24,884.00",
DFID,DFID,26/11/2012,Aid Programme - Accountable Grant Payments ,West and Southern Africa ,The Regents of the University of California ,202477-110 ,"22,754.84",
DFID,DFID,26/11/2012,Secure Staff Accomodation ,Asia  Caribbean and Overseas Territories ,Supplier Name withheld ,100113-107 ,"22,747.98",
DFID,DFID,26/11/2012,Secure Staff Accomodation ,Asia  Caribbean and Overseas Territories ,Supplier Name withheld ,201689-105 ,"22,747.98",
DFID,DFID,26/11/2012,Technical and Advisory Services ,East and Central Africa ,John Connell ,202913-101 ,"21,275.20",
DFID,DFID,26/11/2012,Aid Programme - Accountable Grant Payments ,East and Central Africa ,Center for Strategic Analyses and Research (C-SAR) ,202522-104 ,"19,128.13",
DFID,DFID,26/11/2012,Technical and Advisory Services ,Western Asia and Stabilisation Division ,RIVER PATH ASSOCIATES ,101624-101 ,"18,367.50",
DFID,DFID,26/11/2012,Technical and Advisory Services ,West and Southern Africa ,Coffey International Development ,203592-101 ,"18,318.87",
DFID,DFID,26/11/2012,Technical and Advisory Services ,Asia  Caribbean and Overseas Territories ,Pricewaterhousecoopers Pvt. Ltd. ,113963-101 ,"13,567.15",
DFID,DFID,26/11/2012,Technical and Advisory Services ,Asia  Caribbean and Overseas Territories ,PRICEWATERHOUSE COOPERS PRIVATE LIMI ,114320-111 ,"11,138.21",
DFID,DFID,26/11/2012,Secure Staff Accomodation ,East and Central Africa ,Supplier Name withheld ,100082-101 ,"10,576.50",
DFID,DFID,26/11/2012,Technical and Advisory Services ,Western Asia and Stabilisation Division ,Supplier Name withheld ,201023-103 ,"10,210.21",
DFID,DFID,26/11/2012,Secure Staff Accomodation ,East and Central Africa ,Supplier Name withheld ,101612-101 ,"9,932.71",
DFID,DFID,26/11/2012,Technical and Advisory Services ,Western Asia and Stabilisation Division ,MOTT MACDONALD LTD ,114153-101 ,"9,460.00",
DFID,DFID,26/11/2012,Technical and Advisory Services ,East and Central Africa ,Ipact at the University of Aberdeen ,200842-110 ,"9,193.09",
DFID,DFID,26/11/2012,Technical and Advisory Services ,Asia  Caribbean and Overseas Territories ,Intellectual Capital Advisory Services Private Limited ,114293-103 ,"8,386.39",
DFID,DFID,26/11/2012,Technical and Advisory Services ,International Finance Division ,MAXWELL STAMP PLC ,200634-102 ,"5,531.32",
DFID,DFID,26/11/2012,Subscriptions ,Research and Evidence Division ,INTERNATIONAL MONETARY FUND ,202348-103 ,"4,432.08",
DFID,DFID,26/11/2012,Technical and Advisory Services ,Asia  Caribbean and Overseas Territories ,PRICEWATERHOUSE COOPERS PRIVATE LIMI ,114320-111 ,"3,969.50",
DFID,DFID,26/11/2012,Secure Staff Accomodation ,West and Southern Africa ,Supplier Name withheld ,101638-103 ,"3,742.98",
DFID,DFID,26/11/2012,Generators & spares ,Asia  Caribbean and Overseas Territories ,RAJSHREE ELECTRICALS ,201689-105 ,"3,635.95",
DFID,DFID,26/11/2012,Technical and Advisory Services ,West and Southern Africa ,Ben Shepherd ,202416-105 ,"3,500.00",
DFID,DFID,26/11/2012,Air fares ,Top Management Group ,Corporate Travel Provider ,100232-105 ,"3,484.49",
DFID,DFID,26/11/2012,Air fares ,Top Management Group ,Corporate Travel Provider ,100232-105 ,"3,484.49",
DFID,DFID,26/11/2012,Air fares ,Human Resources Security & Facilities Division ,Corporate Travel Provider ,100261-101 ,"3,484.49",
DFID,DFID,26/11/2012,Other Building Costs ,West and Southern Africa ,S R Nicolaou ,101637-101 ,"3,458.00",
DFID,DFID,26/11/2012,Air fares ,West and Southern Africa ,Corporate Travel Provider ,100189-101 ,"3,370.89",
DFID,DFID,26/11/2012,Facilities Management payments ,East and Central Africa ,British High Commission(Tsh) ,101634-101 ,"3,321.83",
DFID,DFID,26/11/2012,Air fares ,Top Management Group ,Corporate Travel Provider ,100232-102 ,"3,303.20",
DFID,DFID,26/11/2012,Air fares ,Top Management Group ,Corporate Travel Provider ,100232-102 ,"3,303.20",
DFID,DFID,26/11/2012,Air fares ,Top Management Group ,Corporate Travel Provider ,100232-102 ,"3,303.20",
DFID,DFID,26/11/2012,Conferences  Seminars & Meeting/Event Resource ,Research and Evidence Division ,CROWNE PLAZA LONDON-ST JAMES ,202332-102 ,"3,300.00",
DFID,DFID,26/11/2012,Training - Course Fees ,Asia  Caribbean and Overseas Territories , International Development UEA ,101603-102 ,"3,200.00",
DFID,DFID,26/11/2012,Hotels - Accommodation only ,West and Southern Africa ,Corporate Travel Provider ,101610-101 ,"2,954.21",
DFID,DFID,26/11/2012,Air fares ,Top Management Group ,Corporate Travel Provider ,100232-106 ,"2,932.99",
DFID,DFID,26/11/2012,Air fares ,Top Management Group ,Corporate Travel Provider ,100232-106 ,"2,932.99",
DFID,DFID,26/11/2012,Subscriptions ,Research and Evidence Division ,AAAS/SCIENCE ,202348-103 ,"2,848.30",
DFID,DFID,26/11/2012,Subscriptions ,Research and Evidence Division ,United Nations Publications ,202348-103 ,"2,847.52",
DFID,DFID,26/11/2012,Air fares ,West and Southern Africa ,Corporate Travel Provider ,100189-101 ,"2,537.80",
DFID,DFID,26/11/2012,Air fares ,Top Management Group ,Corporate Travel Provider ,100232-105 ,"2,537.80",
DFID,DFID,26/11/2012,Air fares ,Conflict Humanitarian and Security Division ,Corporate Travel Provider ,100049-101 ,"2,494.15",
DFID,DFID,26/11/2012,Medical/Health Services ,West and Southern Africa ,FLIMAS ,101638-101 ,"2,292.95",
DFID,DFID,26/11/2012,Air fares ,Top Management Group ,Corporate Travel Provider ,100232-104 ,"2,221.65",
DFID,DFID,26/11/2012,Air fares ,Top Management Group ,Corporate Travel Provider ,100232-104 ,"2,221.65",
DFID,DFID,26/11/2012,Technical and Advisory Services ,West and Southern Africa ,Erika Schutze ,202536-103 ,"2,053.64",
DFID,DFID,26/11/2012,Cleaning Costs ,West and Southern Africa ,Sparklean Services Nig Ltd ,101622-101 ,"1,991.61",
DFID,DFID,26/11/2012,Air fares ,Western Asia and Stabilisation Division ,Corporate Travel Provider ,100020-101 ,"1,971.20",
DFID,DFID,26/11/2012,Facilities Management payments ,Asia  Caribbean and Overseas Territories ,PEST CONTROL CONSULTANTS & SERVICES ,201689-105 ,"1,817.36",
DFID,DFID,26/11/2012,Air fares ,East and Central Africa ,Corporate Travel Provider ,101625-104 ,"1,757.04",
DFID,DFID,26/11/2012,Air fares ,East and Central Africa ,Corporate Travel Provider ,101625-104 ,"1,757.04",
DFID,DFID,26/11/2012,Air fares ,East and Central Africa ,Corporate Travel Provider ,101625-104 ,"1,757.04",
DFID,DFID,26/11/2012,Furniture & Fittings ,West and Southern Africa ,Inspirations ,101637-101 ,"1,711.38",
DFID,DFID,26/11/2012,Training - Travel & Subsistence ,Finance and Corporate Performance Division ,KUONI BUSINESS TRAVEL INDIA PVT LTD ,100201-101 ,"1,675.04",
DFID,DFID,26/11/2012,Air fares ,Western Asia and Stabilisation Division ,Corporate Travel Provider ,101601-110 ,"1,660.60",
DFID,DFID,26/11/2012,Air fares ,Western Asia and Stabilisation Division ,Corporate Travel Provider ,101601-110 ,"1,650.70",
DFID,DFID,26/11/2012,Training - Travel & Subsistence ,West and Southern Africa ,Premier Travel ,100256-101 ,"1,625.70",
DFID,DFID,26/11/2012,Furniture & Fittings,East and Central Africa ,Morco Textiles Ltd(Tsh) ,101634-101 ,"1,597.59",
DFID,DFID,26/11/2012,Air fares ,Western Asia and Stabilisation Division ,Corporate Travel Provider ,203350-101 ,"1,573.55",
DFID,DFID,26/11/2012,Air fares ,Western Asia and Stabilisation Division ,Corporate Travel Provider ,101601-110 ,"1,569.25",
DFID,DFID,26/11/2012,Recruitment costs ,East and Central Africa ,Nation Media Group Limited ,101616-101 ,"1,556.83",
DFID,DFID,26/11/2012,Air fares ,West and Southern Africa ,Corporate Travel Provider ,100189-101 ,"1,546.65",
DFID,DFID,26/11/2012,Air fares ,Top Management Group ,Corporate Travel Provider ,100232-105 ,"1,546.65",
DFID,DFID,26/11/2012,Medical/Health Services ,West and Southern Africa ,FLIMAS ,100256-101 ,"1,528.63",
DFID,DFID,26/11/2012,Electricity ,Asia  Caribbean and Overseas Territories ,Dhaka Electric Supply Company Ltd ,101603-101 ,"1,523.90",
DFID,DFID,26/11/2012,Contract & Agency Staff ,Finance and Corporate Performance Division ,MICHAEL PAGE INTERNATIONAL RECRUITMENT LIMITED ,100201-101 ,"1,513.32",
DFID,DFID,26/11/2012,Air fares ,East and Central Africa ,WFP Sudan Juba Sub Imprest(US$) ,202594-101 ,"1,506.59",
DFID,DFID,26/11/2012,Air fares ,Policy Division ,Corporate Travel Provider ,202419-103 ,"1,457.04",
DFID,DFID,26/11/2012,Air fares ,Research and Evidence Division ,Corporate Travel Provider ,100039-110 ,"1,429.96",
DFID,DFID,26/11/2012,Air fares ,Research and Evidence Division ,Corporate Travel Provider ,100039-110 ,"1,429.96",
DFID,DFID,26/11/2012,Air fares ,Research and Evidence Division ,Corporate Travel Provider ,100039-108 ,"1,426.09",
DFID,DFID,26/11/2012,Facilities Management payments ,Asia  Caribbean and Overseas Territories ,CB RICHARD ELLIS SOUTH ASIA PVT LTD ,201689-105 ,"1,411.08",
DFID,DFID,26/11/2012,Air fares ,Western Asia and Stabilisation Division ,Corporate Travel Provider ,101601-110 ,"1,400.60",
DFID,DFID,26/11/2012,Air fares ,Western Asia and Stabilisation Division ,Corporate Travel Provider ,202288-105 ,"1,368.99",
DFID,DFID,26/11/2012,Recruitment costs ,West and Southern Africa ,Mac Recruitment ,101637-101 ,"1,368.61",
DFID,DFID,26/11/2012,Electricity ,East and Central Africa ,UMEME Ltd ,101635-101 ,"1,336.13",
DFID,DFID,26/11/2012,Air fares ,Research and Evidence Division ,Corporate Travel Provider ,202333-104 ,"1,328.34",
DFID,DFID,26/11/2012,Air fares ,Research and Evidence Division ,Corporate Travel Provider ,100088-101 ,"1,209.76",
DFID,DFID,26/11/2012,Air fares ,Research and Evidence Division ,Corporate Travel Provider ,202333-104 ,"1,204.11",
DFID,DFID,26/11/2012,Air fares ,Policy Division ,Corporate Travel Provider ,202402-103 ,"1,199.48",
DFID,DFID,26/11/2012,Air fares ,East and Central Africa ,Corporate Travel Provider ,101635-101 ,"1,159.96",
DFID,DFID,26/11/2012,Air fares ,Policy Division ,Corporate Travel Provider ,201555-103 ,"1,138.99",
DFID,DFID,26/11/2012,Air fares ,Internal Audit ,Corporate Travel Provider ,100121-101 ,"1,137.68",
DFID,DFID,26/11/2012,Air fares ,Asia  Caribbean and Overseas Territories ,Corporate Travel Provider ,101605-101 ,"1,137.25",
DFID,DFID,26/11/2012,Air fares ,Asia  Caribbean and Overseas Territories ,Centrust Travel ,101603-101 ,"1,127.26",
DFID,DFID,26/11/2012,Hotels - Accommodation only ,East and Central Africa ,Corporate Travel Provider ,101628-101 ,"1,120.74",
DFID,DFID,26/11/2012,Hotels - Accommodation only ,East and Central Africa ,Corporate Travel Provider ,101635-101 ,"1,120.74",
DFID,DFID,26/11/2012,Hotels - Accommodation only ,East and Central Africa ,Corporate Travel Provider ,101635-101 ,"1,120.74",
DFID,DFID,26/11/2012,Air fares ,International Finance Division ,Corporate Travel Provider ,202259-101 ,"1,115.25",
DFID,DFID,26/11/2012,Air fares ,International Finance Division ,Corporate Travel Provider ,202259-101 ,"1,115.25",
DFID,DFID,26/11/2012,Air fares ,Policy Division ,Corporate Travel Provider ,100276-104 ,"1,084.95",
DFID,DFID,26/11/2012,Air fares ,East and Central Africa ,Corporate Travel Provider ,100016-106 ,"1,076.63",
DFID,DFID,26/11/2012,Air fares ,International Relations Division ,Corporate Travel Provider ,202617-101 ,"1,075.04",
DFID,DFID,26/11/2012,Air fares ,Internal Audit ,The Express Travel Group ,100121-101 ,"1,073.09",
DFID,DFID,26/11/2012,Air fares ,International Relations Division ,Corporate Travel Provider ,201711-104 ,"1,050.89",
DFID,DFID,26/11/2012,Air fares ,West and Southern Africa ,Corporate Travel Provider ,101620-101 ,"1,045.49",
DFID,DFID,26/11/2012,Training - Travel & Subsistence ,East and Central Africa ,The Express Travel Group ,101612-101 ,"1,044.83",
DFID,DFID,26/11/2012,Hotels - Accommodation only ,East and Central Africa ,Corporate Travel Provider ,101634-101 ,"1,028.64",
